Workbook

Sheet Instr Refs Auths
A6: Brief instructions
A8: Note that, except for the first page (Irrigation System Information), entries in the green boxes are required. Entries in the blue boxes are optional. All entries in the first page are optional.
A9: Start in the irrigation System Information tab and enter information about the condition of the irrigation system.
A10: In the ETo, Soil, C.C., Irr tab, enter the location, select the ETo zone in the pull down list. Refer to the map on the ETo Zones Map page to identify your ETo zone. In the Soil Texture section, Select the soil type in the pull down list. If you don't know the soil texture, try using the app "SoilWeb" on your smartphone or computer. Enter the throat area of the catch cans you used in the irrigation assessment. In the irrigation section, enter the year for the irrigaiton schedule you would like to produce. Enter the desired depth the soil should be wetted. If irrigation is restricted to specific days of the week, indicate those days irrigation is allowed.
A11: In the Catch Can Field Worksheet, Enter the run time the valve was on during this test. Enter the landscape coefficient (KL) of the irrigation zone. If there was runoff, enter the number of minutes the valve was when the runoff occurred. Enter the volumes of water collected in the catch cans in the Catch Can Measurements section. Measure the volumes in milliliters (mL). Remember to use at least 24 catch cans and in multiples of 4. Leave unused boxes blank. There will be a "Targeted capture volume" calculated based on the throat area you entered in the previous page. Use this volume as a guide only. Be sure to not overflow any of the catch cans. Use the grid in th elower section to draw a map of the irrigation zone. This can be helpful in locating problem sprinklers or emitters.
A12: The Irrigation Summary page includes information entered in previous pages and calculation results from the catch can test. Some of this would be used in programming irrigation controllers. Specifically these are the "Run Time per Cycle" and the "Number of Cycles". The run time is the duration the valve was on before runoff was generated. A 1 hour interval between cycles is easiest to program, but may be determined by the total duration of the program if it is longer than an hour.
A13: The Irrig Calendar displays the days of the year when the irrigation program should run. These dates consider days irrigation is allowed, historical weather, and rain events (if rain information is entered).
A14: To print all sheets, use Crtl-Shift-A.
A15: To print the instructions, use Ctrl-Shift-I.
A16: To print the Irrigation system info; ETo, Soil, CC, Irr Info; and Catch Can Field Worksheets only, use Ctrl-Shift-S.
A17: To print the Irrig Summary and Irrig Calendar sheets only, use Ctrl-Shift-C.
A18: If the macros are not working, try closing the spreadsheet, then reopen and "Enable Macros".
A20: Please contact Loren Oki should you have issues to report (lroki@ucdavis.edu).
A29: References
A31: Costello, L.R. and K.S. Jones. 2014. Water Use Classifications of Landscape Species. WUCOLS IV.
A32: California Department of Water Resources, the University of California, and the California Center for
A33: Urban Horticulture (UC Davis). http://ucanr.edu/sites/WUCOLS/.
A34: http://ucanr.edu/sites/WUCOLS/
A36: Landscape Irrigation Auditor Second Edition. 2011. Irrigation Association. Falls Church, VA
A38: McCabe, J. (ed). 2010. Turf and landscape irrigation best management practices. Irrigation
A39: Association Water Management Committee.
A40: http://www.irrigation.org/uploadedFiles/Resources/BMP_Revised_12-2010.pdf
A42: Shaw, D.A. and D.R. Pittenger. 2009. Landscape irrigation system evaluation and management.
A43: University of California, Cooperative Extension.
A44: http://ucanr.org/sites/urbanhort/files/80223.pdf
A48: Authors
A50: Lorence R. Oki, Ph.D. | B50: Darren Haver, Ph.D.
A51: Associate Specialist in Cooperative Extension | B51: Water Resources/Water Quality Advisor
A52: Department of Plant Sciences, MS6 | B52: Director of South Coast REC and UCCE Orange
A53: One Shields Avenue | B53: South Coast Research & Extension Center
A54: 1110 Env Hort | B54: 7601 Irvine Blvd.
A55: Davis, CA 95616-8587 | B55: Irvine, CA 92618
A56: (530) 754-4135 | B56: (949) 653-1814
A57: lroki@ucdavis.edu | B57: dlhaver@ucanr.edu
A60: The original version of this worksheet was developed for the Orange County Parks by:
A62: Darren Haver, Ph.D. and
A63: Rene Orta, Grant Johnson, and Corey Harris
A64: Staff Research Associates
A65: South Coast Research & Extension Center
A67: version 1.20 March 16, 2015

Sheet Irrigation System Information
A3: Irrigation system Information
A4: Record irrigation system zone information
A7: Zone name: | B7: Test zone 12 | E7: Evaluator(s): | F7: Auditor XYZ
A8: Date: | B8: 19/25/2014
A11: Controller Model: | B11: WaterManager X2 | E11: Station #: | F11: Turf west
A12: Program #: | B12: Test program 12
A15: Valve Model: | E15: Emitter:
A16: GPM: | E16: Working pressure (psi):
A19: Valve conditions: | E19: Wiring:
A20: Is valve tagged? | E20: Tag Number:
A23: Grass type: | E23: Weeds:
A24: Trees: | E24: Shrubs:
A27: Broken Components | B27: Head/Nozzles not similar | C27: MPR's | D27: Clogged nozzle or emitter | E27: Spray Misdirected | F27: Heads not vertical | G27: Heads not turning
A28: Spray blocked | B28: Wrong Pattern (¼-½-Full) | C28: Sunken Heads | D28: Pressure reguation used | E28: Unequal pressure | F28: Over Spray
A30: Picture File Names:

Sheet ETo, Soil, C.C., Irr Info.
A1: ETo Zone, Soil Texture, and Catch Can Type Worksheet
A2: Determine values for each of the sections below and enter values into the fields provided. Note: fields highlighted in green must be filled out in order for other calculations in the spread sheet to work properly
A3: ETo Zone
A5: Location: | C5: Davis | E5: Find the ETo zone of your location on the ETo Zones Map tab of this worksheet. Then, select the zone number from the drop down list (to the left of this text). Enter the name of the location in the space provided.
A6: ETo Zone: | C6: 14
A9: Soil Texture
B11: Soil Texture: | C11: sandy loam | E11: Select the soil texture from the drop down list
A13: Commonly Used Catch Cans
A15: Type | C15: Throat area (sq. in) | E15: Type | G15: Throat area (sq. in)
A16: Cal Poly | C16: 16.6 | E16: Tuna Can (3 ¼" dia) | G16: 8.3
E17: Measure the can diameter to verify this.
A20: US Bureau of Reclamation | C20: 14.2
E21: If catch can type is unknown, enter the diameter in the box below in inches. The throat area will be calculated.
J22: Enter the throat area of the catch can used below:
A24: Texas Aggies | C24: 16.6
G26: Dia of container (in.): | H26: 5 | J26: 16.6
G27: Throat area (sq.in.): | H27: =(H26/2)^2*3.14159 -> 19.6349375
A29: Irrigation information
C31: Irrigation schedule for year: | D31: 2017
C33: Depth to wet: | D33: 12 | E33: inches | F33: The recommended depth to wet for turf is 12 inches.
A35: Select the days of the week irrigation is allowed. A check mark indicates that irrigation is allowed on that day.
A36: If there are no restrictions, make sure all of the boxes are checked.

Sheet Catch Can Field Worksheet
A1: Catch Can Field Worksheet
A2: Determine values for each of the sections below and enter values into the fields provided. Note: fields highlighted in green must be filled out in order for other calculations in the spread sheet to work properly .
D3: Valve turned on: | E3: Manually / Controller | K3: Wind(mph):
D4: Valve turned on: | F4: : | G4: am / pm | K4: Number of catch cans: | L4: =COUNT(B13:B22)+COUNT(D13:D22)+COUNT(F13:F22)+COUNT(H13:H22) -> 40
D5: Valve turned off: | F5: : | G5: am / pm | K5: Zone KL or KS: | L5: 0.6
D6: Actual Run time: | F6: 6 | G6: minutes | J6: (Landscape coefficient, KL, or species coefficient, KS)
F8: Determine how many minutes it takes to generate runoff. If there was no runoff, leave blank :
C9: Did runoff occur?: | D9: Yes / No | L9: 12
L10: 31
A11: Catch Can Measurements (in mL)
A13: 1 | B13: 35 | C13: 11 | D13: 15 | E13: 21 | F13: 25 | G13: 31 | H13: 25 | J13: Use at least 24 catch cans and in multiples of 4. Be sure to measure the volume in milliliters (mL). Measuring to the nearest 5 mL is sufficient.
A14: 2 | B14: 30 | C14: 12 | D14: 20 | E14: 22 | F14: 30 | G14: 32 | H14: 25
A15: 3 | B15: 20 | C15: 13 | D15: 40 | E15: 23 | F15: 40 | G15: 33 | H15: 30
A16: 4 | B16: 20 | C16: 14 | D16: 25 | E16: 24 | F16: 30 | G16: 34 | H16: 30
A17: 5 | B17: 25 | C17: 15 | D17: 35 | E17: 25 | F17: 40 | G17: 35 | H17: 10
A18: 6 | B18: 35 | C18: 16 | D18: 25 | E18: 26 | F18: 30 | G18: 36 | H18: 30 | J18: Try to collect the volume indicated below. Do not overflow the continer.
A19: 7 | B19: 15 | C19: 17 | D19: 30 | E19: 27 | F19: 30 | G19: 37 | H19: 20
A20: 8 | B20: 20 | C20: 18 | D20: 30 | E20: 28 | F20: 30 | G20: 38 | H20: 25 | J20: =CONCATENATE("Targeted capture volume = ",ROUNDUP(Throat_area*1.5,0)," mL.") -> Targeted capture volume = 25 mL.
A21: 9 | B21: 40 | C21: 19 | D21: 40 | E21: 29 | F21: 20 | G21: 39 | H21: 20
A22: 10 | B22: 20 | C22: 20 | D22: 40 | E22: 30 | F22: 20 | G22: 40 | H22: 30 | J22: Use the chart below to map the sprinklers and record your catch can set up.
A23: Diagram:

Sheet drop down list menus (hidden)
C1: Inches | P1: Used for Ranking | S1: Used for Ranking
A2: Controller | C2: ml | E2: Yes | G2: Very Good | L2: Annual ryegrass | P2: =IF(#REF!<>"",#REF!+#REF!/1000,"") ->  | S2: =IF(#REF!<>"",#REF!+#REF!/1000,"") -> 
A3: Manually | C3: Ounces | E3: No | G3: Good | L3: Bermudagrass | P3: =IF(#REF!<>"",#REF!+#REF!/1000,"") ->  | S3: =IF(#REF!<>"",#REF!+#REF!/1000,"") -> 
C4: cm | G4: Average | L4: Kentucky bluegrass | P4: =IF(#REF!<>"",#REF!+#REF!/1000,"") ->  | S4: =IF(#REF!<>"",#REF!+#REF!/1000,"") -> 
G5: Bad | L5: Kikuyugrass | P5: =IF(#REF!<>"",#REF!+#REF!/1000,"") ->  | S5: =IF(#REF!<>"",#REF!+#REF!/1000,"") -> 
G6: Very bad | L6: Perennial ryegrass | P6: =IF(#REF!<>"",#REF!+#REF!/1000,"") ->  | S6: =IF(#REF!<>"",#REF!+#REF!/1000,"") -> 
L7: St. Augustine | P7: =IF(#REF!<>"",#REF!+#REF!/1000,"") ->  | S7: =IF(#REF!<>"",#REF!+#REF!/1000,"") -> 
L8: Tall Fescue | P8: =IF(#REF!<>"",#REF!+#REF!/1000,"") ->  | S8: =IF(#REF!<>"",#REF!+#REF!/1000,"") -> 
L9: Other- Please type below | P9: =IF(#REF!<>"",#REF!+#REF!/1000,"") ->  | S9: =IF(#REF!<>"",#REF!+#REF!/1000,"") -> 
P10: =IF(#REF!<>"",#REF!+#REF!/1000,"") ->  | S10: =IF(#REF!<>"",#REF!+#REF!/1000,"") -> 
P11: =IF(#REF!<>"",#REF!+#REF!/1000,"") ->  | S11: =IF(#REF!<>"",#REF!+#REF!/1000,"") -> 
P12: =IF(#REF!<>"",#REF!+#REF!/1000,"") ->  | S12: =IF(#REF!<>"",#REF!+#REF!/1000,"") -> 
P13: =IF(#REF!<>"",#REF!+#REF!/1000,"") ->  | S13: =IF(#REF!<>"",#REF!+#REF!/1000,"") -> 
P14: =IF(#REF!<>"",#REF!+#REF!/1000,"") ->  | S14: =IF(#REF!<>"",#REF!+#REF!/1000,"") -> 
P15: =IF(#REF!<>"",#REF!+#REF!/1000,"") ->  | S15: =IF(#REF!<>"",#REF!+#REF!/1000,"") -> 
P16: =IF(#REF!<>"",#REF!+#REF!/1000,"") ->  | S16: =IF(#REF!<>"",#REF!+#REF!/1000,"") -> 
P17: =IF(#REF!<>"",#REF!+#REF!/1000,"") ->  | S17: =IF(#REF!<>"",#REF!+#REF!/1000,"") -> 
P18: =IF(#REF!<>"",#REF!+#REF!/1000,"") ->  | S18: =IF(#REF!<>"",#REF!+#REF!/1000,"") -> 
P19: =IF(#REF!<>"",#REF!+#REF!/1000,"") ->  | S19: =IF(#REF!<>"",#REF!+#REF!/1000,"") -> 
P20: =IF(#REF!<>"",#REF!+#REF!/1000,"") ->  | S20: =IF(#REF!<>"",#REF!+#REF!/1000,"") -> 
P21: =IF(#REF!<>"",#REF!+#REF!/1000,"") ->  | S21: =IF(#REF!<>"",#REF!+#REF!/1000,"") -> 
P22: =IF(#REF!<>"",#REF!+#REF!/1000,"") ->  | S22: =IF(#REF!<>"",#REF!+#REF!/1000,"") -> 
P23: =IF(#REF!<>"",#REF!+#REF!/1000,"") ->  | S23: =IF(#REF!<>"",#REF!+#REF!/1000,"") -> 
P24: =IF(#REF!<>"",#REF!+#REF!/1000,"") ->  | S24: =IF(#REF!<>"",#REF!+#REF!/1000,"") -> 
P25: =IF(#REF!<>"",#REF!+#REF!/1000,"") ->  | S25: =IF(#REF!<>"",#REF!+#REF!/1000,"") -> 
P26: =IF(#REF!<>"",#REF!+#REF!/1000,"") ->  | S26: =IF(#REF!<>"",#REF!+#REF!/1000,"") -> 
P27: =IF(#REF!<>"",#REF!+#REF!/1000,"") ->  | S27: =IF(#REF!<>"",#REF!+#REF!/1000,"") -> 
P28: =IF(#REF!<>"",#REF!+#REF!/1000,"") ->  | S28: =IF(#REF!<>"",#REF!+#REF!/1000,"") -> 
P29: =IF(#REF!<>"",#REF!+#REF!/1000,"") ->  | S29: =IF(#REF!<>"",#REF!+#REF!/1000,"") -> 
P30: =IF(#REF!<>"",#REF!+#REF!/1000,"") ->  | S30: =IF(#REF!<>"",#REF!+#REF!/1000,"") -> 
P31: =IF(#REF!<>"",#REF!+#REF!/1000,"") ->  | S31: =IF(#REF!<>"",#REF!+#REF!/1000,"") -> 
P32: =IF(#REF!<>"",#REF!+#REF!/1000,"") ->  | S32: =IF(#REF!<>"",#REF!+#REF!/1000,"") -> 
P33: =IF(#REF!<>"",#REF!+#REF!/1000,"") ->  | S33: =IF(#REF!<>"",#REF!+#REF!/1000,"") -> 
P34: =IF(#REF!<>"",#REF!+#REF!/1000,"") ->  | S34: =IF(#REF!<>"",#REF!+#REF!/1000,"") -> 
P35: =IF(#REF!<>"",#REF!+#REF!/1000,"") ->  | S35: =IF(#REF!<>"",#REF!+#REF!/1000,"") -> 
P36: =IF(#REF!<>"",#REF!+#REF!/1000,"") ->  | S36: =IF(#REF!<>"",#REF!+#REF!/1000,"") -> 
P37: =IF(#REF!<>"",#REF!+#REF!/1000,"") ->  | S37: =IF(#REF!<>"",#REF!+#REF!/1000,"") -> 
P38: =IF(#REF!<>"",#REF!+#REF!/1000,"") ->  | S38: =IF(#REF!<>"",#REF!+#REF!/1000,"") -> 
P39: =IF(#REF!<>"",#REF!+#REF!/1000,"") ->  | S39: =IF(#REF!<>"",#REF!+#REF!/1000,"") -> 
P40: =IF(#REF!<>"",#REF!+#REF!/1000,"") ->  | S40: =IF(#REF!<>"",#REF!+#REF!/1000,"") -> 
P41: =IF(#REF!<>"",#REF!+#REF!/1000,"") ->  | S41: =IF(#REF!<>"",#REF!+#REF!/1000,"") -> 
P42: =IF(#REF!<>"",#REF!+#REF!/1000,"") -> 
P44: =IF(#REF!<>"",#REF!+#REF!/1000,"") -> 
P45: =IF(#REF!<>"",#REF!+#REF!/1000,"") -> 

Sheet Sheet5 (hidden)

Sheet Irrig Summary
A6: Irrigation Summary
B10: Evaluator: | C10: =IF('Irrigation System Information '!F7="","",'Irrigation System Information '!F7) -> Auditor XYZ | G10: Location: | H10: =IF('ETo, Soil, C.C., Irr Info.'!C5="","",'ETo, Soil, C.C., Irr Info.'!C5) -> Davis
B11: Date: | C11: =IF('Irrigation System Information '!B8="","",'Irrigation System Information '!B8) -> 19/25/2014 | G11: ETo Zone: | H11: =ETo_Zone -> 14
B12: Controller: | C12: =IF('Irrigation System Information '!B11="","",'Irrigation System Information '!B11) -> WaterManager X2 | G12: Soil type: | H12: =Soil_Texture -> sandy loam
B13: Zone name: | C13: =IF('Irrigation System Information '!B7="","",'Irrigation System Information '!B7) -> Test zone 12 | G13: Depth to wet: | H13: =CONCATENATE(Depth_To_Wet," in.") -> 12 in.
B14: Station: | C14: =IF('Irrigation System Information '!F11="","",'Irrigation System Information '!F11) -> Turf west
C17: DULQ | D17: =AveLQ/AveT -> 0.6545454545 | E17: AvgLQ/AvgT
B18: PR (in/hr) | D18: ='DU CALCS "mL."'!C51 -> 1.010542169 | E18: Avg precip rate
C19: Scheduling multiplier | D19: =1/(0.4+(0.6*DU)) -> 1.26146789 | E19: =1/(0.4+(0.6*DU))
C20: =CONCATENATE("Inches to wet ",Depth_To_Wet," in depth (in) ") -> Inches to wet 12 in depth (in) | D20: =INDEX(Soil_Table,MATCH(Soil_Texture,'SOIL INFORMATION'!B6:B17, FALSE),3) -> 0.66
C21: =CONCATENATE("Time to wet ",Depth_To_Wet," in depth (min) ") -> Time to wet 12 in depth (min) | D21: =INT(INDEX(Soil_Table,MATCH(Soil_Texture,'SOIL INFORMATION'!B6:B17, FALSE),3)/D18*60) -> 39 | E21: "Lower boundary"
C22: Max duration (min) | D22: =INT(Time_to_wet_d*SM) -> 49 | E22: "Upper boundary"
C24: Run Time per Cycle (min) | D24: =IF(Time_to_Runoff<>"",IF(Time_to_Runoff>0,VLOOKUP(1,'DU CALCS "mL."'!J9:K23,2,FALSE),Max_Duration),Max_Duration) -> 12 | E24: =CONCATENATE("This is the duration and fewest cycles that provide at least ",'DU CALCS "mL."'!L6*100,"% of the Upper Boundary.") -> This is the duration and fewest cycles that provide at least 90% of the Upper Boundary.
B25: Number of cycles | D25: =INT(Max_Duration/D24) -> 4
C26: Relative amount applied (%) | D26: =(D24*D25)/Max_Duration -> 0.9795918367
C27: Amount applied (in) | D27: =in_to_wet_d*D26 -> 0.6465306122
C29: Infiltration Rate (in/hr) | D29: =INDEX(Soil_Table,MATCH(Soil_Texture,'SOIL INFORMATION'!B6:B17, FALSE),1) -> 0.8
D31: =IF(Infiltration_rate/PRnet*60<Runtime,"*Note that there is a potential for runoff","") -> 

Sheet Irrig Calendar
C1: =CONCATENATE("Irrigation schedule for zone: ",'Irrigation System Information '!B7,".") -> Irrigation schedule for zone: Test zone 12. | J1: =CONCATENATE("Irrigation schedule for zone: ",'Irrigation System Information '!B7,".") -> Irrigation schedule for zone: Test zone 12. | Q1: =CONCATENATE("Irrigation schedule for zone: ",'Irrigation System Information '!B7,".") -> Irrigation schedule for zone: Test zone 12. | X1: =CONCATENATE("Irrigation schedule for zone: ",'Irrigation System Information '!B7,".") -> Irrigation schedule for zone: Test zone 12.
A2: =CONCATENATE("January ",Irrig_Year) -> January 2017 | H2: =CONCATENATE("April ",Irrig_Year) -> April 2017 | O2: =CONCATENATE("July ",Irrig_Year) -> July 2017 | V2: =CONCATENATE("October ",Irrig_Year) -> October 2017
A3: SUNDAY | B3: MONDAY | C3: TUESDAY | D3: WEDNESDAY | E3: THURSDAY | F3: FRIDAY | G3: SATURDAY | H3: SUNDAY | I3: MONDAY | J3: TUESDAY | K3: WEDNESDAY | L3: THURSDAY | M3: FRIDAY | N3: SATURDAY | O3: SUNDAY | P3: MONDAY | Q3: TUESDAY | R3: WEDNESDAY | S3: THURSDAY | T3: FRIDAY | U3: SATURDAY | V3: SUNDAY | W3: MONDAY | X3: TUESDAY | Y3: WEDNESDAY | Z3: THURSDAY | AA3: FRIDAY | AB3: SATURDAY
A4: =IF(AND(YEAR(JanOffset+1)=CalendarYear,MONTH(JanOffset+1)=1),DAY(JanOffset+1),"") -> 1900-01-01 | B4: =IF(AND(YEAR(JanOffset+21)=CalendarYear,MONTH(JanOffset+2)=1),DAY(JanOffset+2),"") -> 1900-01-02 | C4: =IF(AND(YEAR(JanOffset+3)=CalendarYear,MONTH(JanOffset+3)=1),DAY(JanOffset+3),"") -> 1900-01-03 | D4: =IF(AND(YEAR(JanOffset+4)=CalendarYear,MONTH(JanOffset+4)=1),DAY(JanOffset+4),"") -> 1900-01-04 | E4: =IF(AND(YEAR(JanOffset+5)=CalendarYear,MONTH(JanOffset+5)=1),DAY(JanOffset+5),"") -> 1900-01-05 | F4: =IF(AND(YEAR(JanOffset+6)=CalendarYear,MONTH(JanOffset+6)=1),DAY(JanOffset+6),"") -> 1900-01-06 | G4: =IF(AND(YEAR(JanOffset+7)=CalendarYear,MONTH(JanOffset+7)=1),DAY(JanOffset+7),"") -> 1900-01-07 | H4: =IF(AND(YEAR(AprOffset+1)=CalendarYear,MONTH(AprOffset+1)=4),DAY(AprOffset+1),"") ->  | I4: =IF(AND(YEAR(AprOffset+2)=CalendarYear,MONTH(AprOffset+2)=4),DAY(AprOffset+2),"") ->  | J4: =IF(AND(YEAR(AprOffset+3)=CalendarYear,MONTH(AprOffset+3)=4),DAY(AprOffset+3),"") ->  | K4: =IF(AND(YEAR(AprOffset+4)=CalendarYear,MONTH(AprOffset+4)=4),DAY(AprOffset+4),"") ->  | L4: =IF(AND(YEAR(AprOffset+5)=CalendarYear,MONTH(AprOffset+5)=4),DAY(AprOffset+5),"") ->  | M4: =IF(AND(YEAR(AprOffset+6)=CalendarYear,MONTH(AprOffset+6)=4),DAY(AprOffset+6),"") ->  | N4: =IF(AND(YEAR(AprOffset+7)=CalendarYear,MONTH(AprOffset+7)=4),DAY(AprOffset+7),"") -> 1900-01-01 | O4: =IF(AND(YEAR(JulOffset+1)=CalendarYear,MONTH(JulOffset+1)=7),DAY(JulOffset+1),"") ->  | P4: =IF(AND(YEAR(JulOffset+2)=CalendarYear,MONTH(JulOffset+2)=7),DAY(JulOffset+2),"") ->  | Q4: =IF(AND(YEAR(JulOffset+3)=CalendarYear,MONTH(JulOffset+3)=7),DAY(JulOffset+3),"") ->  | R4: =IF(AND(YEAR(JulOffset+4)=CalendarYear,MONTH(JulOffset+4)=7),DAY(JulOffset+4),"") ->  | S4: =IF(AND(YEAR(JulOffset+5)=CalendarYear,MONTH(JulOffset+5)=7),DAY(JulOffset+5),"") ->  | T4: =IF(AND(YEAR(JulOffset+6)=CalendarYear,MONTH(JulOffset+6)=7),DAY(JulOffset+6),"") ->  | U4: =IF(AND(YEAR(JulOffset+7)=CalendarYear,MONTH(JulOffset+7)=7),DAY(JulOffset+7),"") -> 1900-01-01 | V4: =IF(AND(YEAR(OctOffset+1)=CalendarYear,MONTH(OctOffset+1)=10),DAY(OctOffset+1),"") -> 1900-01-01 | W4: =IF(AND(YEAR(OctOffset+2)=CalendarYear,MONTH(OctOffset+2)=10),DAY(OctOffset+2),"") -> 1900-01-02 | X4: =IF(AND(YEAR(OctOffset+3)=CalendarYear,MONTH(OctOffset+3)=10),DAY(OctOffset+3),"") -> 1900-01-03 | Y4: =IF(AND(YEAR(OctOffset+4)=CalendarYear,MONTH(OctOffset+4)=10),DAY(OctOffset+4),"") -> 1900-01-04 | Z4: =IF(AND(YEAR(OctOffset+5)=CalendarYear,MONTH(OctOffset+5)=10),DAY(OctOffset+5),"") -> 1900-01-05 | AA4: =IF(AND(YEAR(OctOffset+6)=CalendarYear,MONTH(OctOffset+6)=10),DAY(OctOffset+6),"") -> 1900-01-06 | AB4: =IF(AND(YEAR(OctOffset+7)=CalendarYear,MONTH(OctOffset+7)=10),DAY(OctOffset+7),"") -> 1900-01-07
A5: =IF(A4="","",INDEX('Irrig Sched'!$E$9:$E$39,MATCH(A4,'Irrig Sched'!$B$9:$B$39,0))) ->  | B5: =IF(B4="","",INDEX('Irrig Sched'!$E$9:$E$39,MATCH(B4,'Irrig Sched'!$B$9:$B$39,0))) ->  | C5: =IF(C4="","",INDEX('Irrig Sched'!$E$9:$E$39,MATCH(C4,'Irrig Sched'!$B$9:$B$39,0))) ->  | D5: =IF(D4="","",INDEX('Irrig Sched'!$E$9:$E$39,MATCH(D4,'Irrig Sched'!$B$9:$B$39,0))) ->  | E5: =IF(E4="","",INDEX('Irrig Sched'!$E$9:$E$39,MATCH(E4,'Irrig Sched'!$B$9:$B$39,0))) ->  | F5: =IF(F4="","",INDEX('Irrig Sched'!$E$9:$E$39,MATCH(F4,'Irrig Sched'!$B$9:$B$39,0))) ->  | G5: =IF(G4="","",INDEX('Irrig Sched'!$E$9:$E$39,MATCH(G4,'Irrig Sched'!$B$9:$B$39,0))) ->  | H5: =IF(H4="","",INDEX('Irrig Sched'!$T$9:$T$39,MATCH(H4,'Irrig Sched'!$Q$9:$Q$39,0))) ->  | I5: =IF(I4="","",INDEX('Irrig Sched'!$T$9:$T$39,MATCH(I4,'Irrig Sched'!$Q$9:$Q$39,0))) ->  | J5: =IF(J4="","",INDEX('Irrig Sched'!$T$9:$T$39,MATCH(J4,'Irrig Sched'!$Q$9:$Q$39,0))) ->  | K5: =IF(K4="","",INDEX('Irrig Sched'!$T$9:$T$39,MATCH(K4,'Irrig Sched'!$Q$9:$Q$39,0))) ->  | L5: =IF(L4="","",INDEX('Irrig Sched'!$T$9:$T$39,MATCH(L4,'Irrig Sched'!$Q$9:$Q$39,0))) ->  | M5: =IF(M4="","",INDEX('Irrig Sched'!$T$9:$T$39,MATCH(M4,'Irrig Sched'!$Q$9:$Q$39,0))) ->  | N5: =IF(N4="","",INDEX('Irrig Sched'!$T$9:$T$39,MATCH(N4,'Irrig Sched'!$Q$9:$Q$39,0))) -> Run | O5: =IF(O4="","",INDEX('Irrig Sched'!$AI$9:$AI$39,MATCH(O4,'Irrig Sched'!$AF$9:$AF$39,0))) ->  | P5: =IF(P4="","",INDEX('Irrig Sched'!$AI$9:$AI$39,MATCH(P4,'Irrig Sched'!$AF$9:$AF$39,0))) ->  | Q5: =IF(Q4="","",INDEX('Irrig Sched'!$AI$9:$AI$39,MATCH(Q4,'Irrig Sched'!$AF$9:$AF$39,0))) ->  | R5: =IF(R4="","",INDEX('Irrig Sched'!$AI$9:$AI$39,MATCH(R4,'Irrig Sched'!$AF$9:$AF$39,0))) ->  | S5: =IF(S4="","",INDEX('Irrig Sched'!$AI$9:$AI$39,MATCH(S4,'Irrig Sched'!$AF$9:$AF$39,0))) ->  | T5: =IF(T4="","",INDEX('Irrig Sched'!$AI$9:$AI$39,MATCH(T4,'Irrig Sched'!$AF$9:$AF$39,0))) ->  | U5: =IF(U4="","",INDEX('Irrig Sched'!$AI$9:$AI$39,MATCH(U4,'Irrig Sched'!$AF$9:$AF$39,0))) ->  | V5: =IF(V4="","",INDEX('Irrig Sched'!$AX$9:$AX$39,MATCH(V4,'Irrig Sched'!$AU$9:$AU$39,0))) ->  | W5: =IF(W4="","",INDEX('Irrig Sched'!$AX$9:$AX$39,MATCH(W4,'Irrig Sched'!$AU$9:$AU$39,0))) ->  | X5: =IF(X4="","",INDEX('Irrig Sched'!$AX$9:$AX$39,MATCH(X4,'Irrig Sched'!$AU$9:$AU$39,0))) -> Run | Y5: =IF(Y4="","",INDEX('Irrig Sched'!$AX$9:$AX$39,MATCH(Y4,'Irrig Sched'!$AU$9:$AU$39,0))) ->  | Z5: =IF(Z4="","",INDEX('Irrig Sched'!$AX$9:$AX$39,MATCH(Z4,'Irrig Sched'!$AU$9:$AU$39,0))) ->  | AA5: =IF(AA4="","",INDEX('Irrig Sched'!$AX$9:$AX$39,MATCH(AA4,'Irrig Sched'!$AU$9:$AU$39,0))) ->  | AB5: =IF(AB4="","",INDEX('Irrig Sched'!$AX$9:$AX$39,MATCH(AB4,'Irrig Sched'!$AU$9:$AU$39,0))) -> 
A6: =IF(AND(YEAR(JanOffset+8)=CalendarYear,MONTH(JanOffset+8)=1),DAY(JanOffset+8),"") -> 1900-01-08 | B6: =IF(AND(YEAR(JanOffset+9)=CalendarYear,MONTH(JanOffset+9)=1),DAY(JanOffset+9),"") -> 1900-01-09 | C6: =IF(AND(YEAR(JanOffset+10)=CalendarYear,MONTH(JanOffset+10)=1),DAY(JanOffset+10),"") -> 1900-01-10 | D6: =IF(AND(YEAR(JanOffset+11)=CalendarYear,MONTH(JanOffset+11)=1),DAY(JanOffset+11),"") -> 1900-01-11 | E6: =IF(AND(YEAR(JanOffset+12)=CalendarYear,MONTH(JanOffset+12)=1),DAY(JanOffset+12),"") -> 1900-01-12 | F6: =IF(AND(YEAR(JanOffset+13)=CalendarYear,MONTH(JanOffset+13)=1),DAY(JanOffset+13),"") -> 1900-01-13 | G6: =IF(AND(YEAR(JanOffset+14)=CalendarYear,MONTH(JanOffset+14)=1),DAY(JanOffset+14),"") -> 1900-01-14 | H6: =IF(AND(YEAR(AprOffset+8)=CalendarYear,MONTH(AprOffset+8)=4),DAY(AprOffset+8),"") -> 1900-01-02 | I6: =IF(AND(YEAR(AprOffset+9)=CalendarYear,MONTH(AprOffset+9)=4),DAY(AprOffset+9),"") -> 1900-01-03 | J6: =IF(AND(YEAR(AprOffset+10)=CalendarYear,MONTH(AprOffset+10)=4),DAY(AprOffset+10),"") -> 1900-01-04 | K6: =IF(AND(YEAR(AprOffset+11)=CalendarYear,MONTH(AprOffset+11)=4),DAY(AprOffset+11),"") -> 1900-01-05 | L6: =IF(AND(YEAR(AprOffset+12)=CalendarYear,MONTH(AprOffset+12)=4),DAY(AprOffset+12),"") -> 1900-01-06 | M6: =IF(AND(YEAR(AprOffset+13)=CalendarYear,MONTH(AprOffset+13)=4),DAY(AprOffset+13),"") -> 1900-01-07 | N6: =IF(AND(YEAR(AprOffset+14)=CalendarYear,MONTH(AprOffset+14)=4),DAY(AprOffset+14),"") -> 1900-01-08 | O6: =IF(AND(YEAR(JulOffset+8)=CalendarYear,MONTH(JulOffset+8)=7),DAY(JulOffset+8),"") -> 1900-01-02 | P6: =IF(AND(YEAR(JulOffset+9)=CalendarYear,MONTH(JulOffset+9)=7),DAY(JulOffset+9),"") -> 1900-01-03 | Q6: =IF(AND(YEAR(JulOffset+10)=CalendarYear,MONTH(JulOffset+10)=7),DAY(JulOffset+10),"") -> 1900-01-04 | R6: =IF(AND(YEAR(JulOffset+11)=CalendarYear,MONTH(JulOffset+11)=7),DAY(JulOffset+11),"") -> 1900-01-05 | S6: =IF(AND(YEAR(JulOffset+12)=CalendarYear,MONTH(JulOffset+12)=7),DAY(JulOffset+12),"") -> 1900-01-06 | T6: =IF(AND(YEAR(JulOffset+13)=CalendarYear,MONTH(JulOffset+13)=7),DAY(JulOffset+13),"") -> 1900-01-07 | U6: =IF(AND(YEAR(JulOffset+14)=CalendarYear,MONTH(JulOffset+14)=7),DAY(JulOffset+14),"") -> 1900-01-08 | V6: =IF(AND(YEAR(OctOffset+8)=CalendarYear,MONTH(OctOffset+8)=10),DAY(OctOffset+8),"") -> 1900-01-08 | W6: =IF(AND(YEAR(OctOffset+9)=CalendarYear,MONTH(OctOffset+9)=10),DAY(OctOffset+9),"") -> 1900-01-09 | X6: =IF(AND(YEAR(OctOffset+10)=CalendarYear,MONTH(OctOffset+10)=10),DAY(OctOffset+10),"") -> 1900-01-10 | Y6: =IF(AND(YEAR(OctOffset+11)=CalendarYear,MONTH(OctOffset+11)=10),DAY(OctOffset+11),"") -> 1900-01-11 | Z6: =IF(AND(YEAR(OctOffset+12)=CalendarYear,MONTH(OctOffset+12)=10),DAY(OctOffset+12),"") -> 1900-01-12 | AA6: =IF(AND(YEAR(OctOffset+13)=CalendarYear,MONTH(OctOffset+13)=10),DAY(OctOffset+13),"") -> 1900-01-13 | AB6: =IF(AND(YEAR(OctOffset+14)=CalendarYear,MONTH(OctOffset+14)=10),DAY(OctOffset+14),"") -> 1900-01-14
A7: =INDEX('Irrig Sched'!$E$9:$E$39,MATCH(A6,'Irrig Sched'!$B$9:$B$39,0)) ->  | B7: =INDEX('Irrig Sched'!$E$9:$E$39,MATCH(B6,'Irrig Sched'!$B$9:$B$39,0)) ->  | C7: =INDEX('Irrig Sched'!$E$9:$E$39,MATCH(C6,'Irrig Sched'!$B$9:$B$39,0)) ->  | D7: =INDEX('Irrig Sched'!$E$9:$E$39,MATCH(D6,'Irrig Sched'!$B$9:$B$39,0)) ->  | E7: =INDEX('Irrig Sched'!$E$9:$E$39,MATCH(E6,'Irrig Sched'!$B$9:$B$39,0)) ->  | F7: =INDEX('Irrig Sched'!$E$9:$E$39,MATCH(F6,'Irrig Sched'!$B$9:$B$39,0)) ->  | G7: =INDEX('Irrig Sched'!$E$9:$E$39,MATCH(G6,'Irrig Sched'!$B$9:$B$39,0)) ->  | H7: =INDEX('Irrig Sched'!$T$9:$T$39,MATCH(H6,'Irrig Sched'!$Q$9:$Q$39,0)) ->  | I7: =INDEX('Irrig Sched'!$T$9:$T$39,MATCH(I6,'Irrig Sched'!$Q$9:$Q$39,0)) ->  | J7: =INDEX('Irrig Sched'!$T$9:$T$39,MATCH(J6,'Irrig Sched'!$Q$9:$Q$39,0)) ->  | K7: =INDEX('Irrig Sched'!$T$9:$T$39,MATCH(K6,'Irrig Sched'!$Q$9:$Q$39,0)) ->  | L7: =INDEX('Irrig Sched'!$T$9:$T$39,MATCH(L6,'Irrig Sched'!$Q$9:$Q$39,0)) ->  | M7: =INDEX('Irrig Sched'!$T$9:$T$39,MATCH(M6,'Irrig Sched'!$Q$9:$Q$39,0)) ->  | N7: =INDEX('Irrig Sched'!$T$9:$T$39,MATCH(N6,'Irrig Sched'!$Q$9:$Q$39,0)) -> Run | O7: =INDEX('Irrig Sched'!$AI$9:$AI$39,MATCH(O6,'Irrig Sched'!$AF$9:$AF$39,0)) ->  | P7: =INDEX('Irrig Sched'!$AI$9:$AI$39,MATCH(P6,'Irrig Sched'!$AF$9:$AF$39,0)) ->  | Q7: =INDEX('Irrig Sched'!$AI$9:$AI$39,MATCH(Q6,'Irrig Sched'!$AF$9:$AF$39,0)) -> Run | R7: =INDEX('Irrig Sched'!$AI$9:$AI$39,MATCH(R6,'Irrig Sched'!$AF$9:$AF$39,0)) ->  | S7: =INDEX('Irrig Sched'!$AI$9:$AI$39,MATCH(S6,'Irrig Sched'!$AF$9:$AF$39,0)) ->  | T7: =INDEX('Irrig Sched'!$AI$9:$AI$39,MATCH(T6,'Irrig Sched'!$AF$9:$AF$39,0)) ->  | U7: =INDEX('Irrig Sched'!$AI$9:$AI$39,MATCH(U6,'Irrig Sched'!$AF$9:$AF$39,0)) -> Run | V7: =INDEX('Irrig Sched'!$AX$9:$AX$39,MATCH(V6,'Irrig Sched'!$AU$9:$AU$39,0)) ->  | W7: =INDEX('Irrig Sched'!$AX$9:$AX$39,MATCH(W6,'Irrig Sched'!$AU$9:$AU$39,0)) ->  | X7: =INDEX('Irrig Sched'!$AX$9:$AX$39,MATCH(X6,'Irrig Sched'!$AU$9:$AU$39,0)) -> Run | Y7: =INDEX('Irrig Sched'!$AX$9:$AX$39,MATCH(Y6,'Irrig Sched'!$AU$9:$AU$39,0)) ->  | Z7: =INDEX('Irrig Sched'!$AX$9:$AX$39,MATCH(Z6,'Irrig Sched'!$AU$9:$AU$39,0)) ->  | AA7: =INDEX('Irrig Sched'!$AX$9:$AX$39,MATCH(AA6,'Irrig Sched'!$AU$9:$AU$39,0)) ->  | AB7: =INDEX('Irrig Sched'!$AX$9:$AX$39,MATCH(AB6,'Irrig Sched'!$AU$9:$AU$39,0)) -> 
A8: =IF(AND(YEAR(JanOffset+15)=CalendarYear,MONTH(JanOffset+15)=1),DAY(JanOffset+15),"") -> 1900-01-15 | B8: =IF(AND(YEAR(JanOffset+16)=CalendarYear,MONTH(JanOffset+16)=1),DAY(JanOffset+16),"") -> 1900-01-16 | C8: =IF(AND(YEAR(JanOffset+17)=CalendarYear,MONTH(JanOffset+17)=1),DAY(JanOffset+17),"") -> 1900-01-17 | D8: =IF(AND(YEAR(JanOffset+18)=CalendarYear,MONTH(JanOffset+18)=1),DAY(JanOffset+18),"") -> 1900-01-18 | E8: =IF(AND(YEAR(JanOffset+19)=CalendarYear,MONTH(JanOffset+19)=1),DAY(JanOffset+19),"") -> 1900-01-19 | F8: =IF(AND(YEAR(JanOffset+20)=CalendarYear,MONTH(JanOffset+20)=1),DAY(JanOffset+20),"") -> 1900-01-20 | G8: =IF(AND(YEAR(JanOffset+21)=CalendarYear,MONTH(JanOffset+21)=1),DAY(JanOffset+21),"") -> 1900-01-21 | H8: =IF(AND(YEAR(AprOffset+15)=CalendarYear,MONTH(AprOffset+15)=4),DAY(AprOffset+15),"") -> 1900-01-09 | I8: =IF(AND(YEAR(AprOffset+16)=CalendarYear,MONTH(AprOffset+16)=4),DAY(AprOffset+16),"") -> 1900-01-10 | J8: =IF(AND(YEAR(AprOffset+17)=CalendarYear,MONTH(AprOffset+17)=4),DAY(AprOffset+17),"") -> 1900-01-11 | K8: =IF(AND(YEAR(AprOffset+18)=CalendarYear,MONTH(AprOffset+18)=4),DAY(AprOffset+18),"") -> 1900-01-12 | L8: =IF(AND(YEAR(AprOffset+19)=CalendarYear,MONTH(AprOffset+19)=4),DAY(AprOffset+19),"") -> 1900-01-13 | M8: =IF(AND(YEAR(AprOffset+20)=CalendarYear,MONTH(AprOffset+20)=4),DAY(AprOffset+20),"") -> 1900-01-14 | N8: =IF(AND(YEAR(AprOffset+21)=CalendarYear,MONTH(AprOffset+21)=4),DAY(AprOffset+21),"") -> 1900-01-15 | O8: =IF(AND(YEAR(JulOffset+15)=CalendarYear,MONTH(JulOffset+15)=7),DAY(JulOffset+15),"") -> 1900-01-09 | P8: =IF(AND(YEAR(JulOffset+16)=CalendarYear,MONTH(JulOffset+16)=7),DAY(JulOffset+16),"") -> 1900-01-10 | Q8: =IF(AND(YEAR(JulOffset+17)=CalendarYear,MONTH(JulOffset+17)=7),DAY(JulOffset+17),"") -> 1900-01-11 | R8: =IF(AND(YEAR(JulOffset+18)=CalendarYear,MONTH(JulOffset+18)=7),DAY(JulOffset+18),"") -> 1900-01-12 | S8: =IF(AND(YEAR(JulOffset+19)=CalendarYear,MONTH(JulOffset+19)=7),DAY(JulOffset+19),"") -> 1900-01-13 | T8: =IF(AND(YEAR(JulOffset+20)=CalendarYear,MONTH(JulOffset+20)=7),DAY(JulOffset+20),"") -> 1900-01-14 | U8: =IF(AND(YEAR(JulOffset+21)=CalendarYear,MONTH(JulOffset+21)=7),DAY(JulOffset+21),"") -> 1900-01-15 | V8: =IF(AND(YEAR(OctOffset+15)=CalendarYear,MONTH(OctOffset+15)=10),DAY(OctOffset+15),"") -> 1900-01-15 | W8: =IF(AND(YEAR(OctOffset+16)=CalendarYear,MONTH(OctOffset+16)=10),DAY(OctOffset+16),"") -> 1900-01-16 | X8: =IF(AND(YEAR(OctOffset+17)=CalendarYear,MONTH(OctOffset+17)=10),DAY(OctOffset+17),"") -> 1900-01-17 | Y8: =IF(AND(YEAR(OctOffset+18)=CalendarYear,MONTH(OctOffset+18)=10),DAY(OctOffset+18),"") -> 1900-01-18 | Z8: =IF(AND(YEAR(OctOffset+19)=CalendarYear,MONTH(OctOffset+19)=10),DAY(OctOffset+19),"") -> 1900-01-19 | AA8: =IF(AND(YEAR(OctOffset+20)=CalendarYear,MONTH(OctOffset+20)=10),DAY(OctOffset+20),"") -> 1900-01-20 | AB8: =IF(AND(YEAR(OctOffset+21)=CalendarYear,MONTH(OctOffset+21)=10),DAY(OctOffset+21),"") -> 1900-01-21
A9: =INDEX('Irrig Sched'!$E$9:$E$39,MATCH(A8,'Irrig Sched'!$B$9:$B$39,0)) ->  | B9: =INDEX('Irrig Sched'!$E$9:$E$39,MATCH(B8,'Irrig Sched'!$B$9:$B$39,0)) ->  | C9: =INDEX('Irrig Sched'!$E$9:$E$39,MATCH(C8,'Irrig Sched'!$B$9:$B$39,0)) ->  | D9: =INDEX('Irrig Sched'!$E$9:$E$39,MATCH(D8,'Irrig Sched'!$B$9:$B$39,0)) ->  | E9: =INDEX('Irrig Sched'!$E$9:$E$39,MATCH(E8,'Irrig Sched'!$B$9:$B$39,0)) ->  | F9: =INDEX('Irrig Sched'!$E$9:$E$39,MATCH(F8,'Irrig Sched'!$B$9:$B$39,0)) ->  | G9: =INDEX('Irrig Sched'!$E$9:$E$39,MATCH(G8,'Irrig Sched'!$B$9:$B$39,0)) ->  | H9: =INDEX('Irrig Sched'!$T$9:$T$39,MATCH(H8,'Irrig Sched'!$Q$9:$Q$39,0)) ->  | I9: =INDEX('Irrig Sched'!$T$9:$T$39,MATCH(I8,'Irrig Sched'!$Q$9:$Q$39,0)) ->  | J9: =INDEX('Irrig Sched'!$T$9:$T$39,MATCH(J8,'Irrig Sched'!$Q$9:$Q$39,0)) ->  | K9: =INDEX('Irrig Sched'!$T$9:$T$39,MATCH(K8,'Irrig Sched'!$Q$9:$Q$39,0)) ->  | L9: =INDEX('Irrig Sched'!$T$9:$T$39,MATCH(L8,'Irrig Sched'!$Q$9:$Q$39,0)) -> Run | M9: =INDEX('Irrig Sched'!$T$9:$T$39,MATCH(M8,'Irrig Sched'!$Q$9:$Q$39,0)) ->  | N9: =INDEX('Irrig Sched'!$T$9:$T$39,MATCH(N8,'Irrig Sched'!$Q$9:$Q$39,0)) ->  | O9: =INDEX('Irrig Sched'!$AI$9:$AI$39,MATCH(O8,'Irrig Sched'!$AF$9:$AF$39,0)) ->  | P9: =INDEX('Irrig Sched'!$AI$9:$AI$39,MATCH(P8,'Irrig Sched'!$AF$9:$AF$39,0)) ->  | Q9: =INDEX('Irrig Sched'!$AI$9:$AI$39,MATCH(Q8,'Irrig Sched'!$AF$9:$AF$39,0)) -> Run | R9: =INDEX('Irrig Sched'!$AI$9:$AI$39,MATCH(R8,'Irrig Sched'!$AF$9:$AF$39,0)) ->  | S9: =INDEX('Irrig Sched'!$AI$9:$AI$39,MATCH(S8,'Irrig Sched'!$AF$9:$AF$39,0)) ->  | T9: =INDEX('Irrig Sched'!$AI$9:$AI$39,MATCH(T8,'Irrig Sched'!$AF$9:$AF$39,0)) ->  | U9: =INDEX('Irrig Sched'!$AI$9:$AI$39,MATCH(U8,'Irrig Sched'!$AF$9:$AF$39,0)) -> Run | V9: =INDEX('Irrig Sched'!$AX$9:$AX$39,MATCH(V8,'Irrig Sched'!$AU$9:$AU$39,0)) ->  | W9: =INDEX('Irrig Sched'!$AX$9:$AX$39,MATCH(W8,'Irrig Sched'!$AU$9:$AU$39,0)) ->  | X9: =INDEX('Irrig Sched'!$AX$9:$AX$39,MATCH(X8,'Irrig Sched'!$AU$9:$AU$39,0)) ->  | Y9: =INDEX('Irrig Sched'!$AX$9:$AX$39,MATCH(Y8,'Irrig Sched'!$AU$9:$AU$39,0)) ->  | Z9: =INDEX('Irrig Sched'!$AX$9:$AX$39,MATCH(Z8,'Irrig Sched'!$AU$9:$AU$39,0)) -> Run | AA9: =INDEX('Irrig Sched'!$AX$9:$AX$39,MATCH(AA8,'Irrig Sched'!$AU$9:$AU$39,0)) ->  | AB9: =INDEX('Irrig Sched'!$AX$9:$AX$39,MATCH(AB8,'Irrig Sched'!$AU$9:$AU$39,0)) -> 
A10: =IF(AND(YEAR(JanOffset+22)=CalendarYear,MONTH(JanOffset+22)=1),DAY(JanOffset+22),"") -> 1900-01-22 | B10: =IF(AND(YEAR(JanOffset+23)=CalendarYear,MONTH(JanOffset+23)=1),DAY(JanOffset+23),"") -> 1900-01-23 | C10: =IF(AND(YEAR(JanOffset+24)=CalendarYear,MONTH(JanOffset+24)=1),DAY(JanOffset+24),"") -> 1900-01-24 | D10: =IF(AND(YEAR(JanOffset+25)=CalendarYear,MONTH(JanOffset+25)=1),DAY(JanOffset+25),"") -> 1900-01-25 | E10: =IF(AND(YEAR(JanOffset+26)=CalendarYear,MONTH(JanOffset+26)=1),DAY(JanOffset+26),"") -> 1900-01-26 | F10: =IF(AND(YEAR(JanOffset+27)=CalendarYear,MONTH(JanOffset+27)=1),DAY(JanOffset+27),"") -> 1900-01-27 | G10: =IF(AND(YEAR(JanOffset+28)=CalendarYear,MONTH(JanOffset+28)=1),DAY(JanOffset+28),"") -> 1900-01-28 | H10: =IF(AND(YEAR(AprOffset+22)=CalendarYear,MONTH(AprOffset+22)=4),DAY(AprOffset+22),"") -> 1900-01-16 | I10: =IF(AND(YEAR(AprOffset+23)=CalendarYear,MONTH(AprOffset+23)=4),DAY(AprOffset+23),"") -> 1900-01-17 | J10: =IF(AND(YEAR(AprOffset+24)=CalendarYear,MONTH(AprOffset+24)=4),DAY(AprOffset+24),"") -> 1900-01-18 | K10: =IF(AND(YEAR(AprOffset+25)=CalendarYear,MONTH(AprOffset+25)=4),DAY(AprOffset+25),"") -> 1900-01-19 | L10: =IF(AND(YEAR(AprOffset+26)=CalendarYear,MONTH(AprOffset+26)=4),DAY(AprOffset+26),"") -> 1900-01-20 | M10: =IF(AND(YEAR(AprOffset+27)=CalendarYear,MONTH(AprOffset+27)=4),DAY(AprOffset+27),"") -> 1900-01-21 | N10: =IF(AND(YEAR(AprOffset+28)=CalendarYear,MONTH(AprOffset+28)=4),DAY(AprOffset+28),"") -> 1900-01-22 | O10: =IF(AND(YEAR(JulOffset+22)=CalendarYear,MONTH(JulOffset+22)=7),DAY(JulOffset+22),"") -> 1900-01-16 | P10: =IF(AND(YEAR(JulOffset+23)=CalendarYear,MONTH(JulOffset+23)=7),DAY(JulOffset+23),"") -> 1900-01-17 | Q10: =IF(AND(YEAR(JulOffset+24)=CalendarYear,MONTH(JulOffset+24)=7),DAY(JulOffset+24),"") -> 1900-01-18 | R10: =IF(AND(YEAR(JulOffset+25)=CalendarYear,MONTH(JulOffset+25)=7),DAY(JulOffset+25),"") -> 1900-01-19 | S10: =IF(AND(YEAR(JulOffset+26)=CalendarYear,MONTH(JulOffset+26)=7),DAY(JulOffset+26),"") -> 1900-01-20 | T10: =IF(AND(YEAR(JulOffset+27)=CalendarYear,MONTH(JulOffset+27)=7),DAY(JulOffset+27),"") -> 1900-01-21 | U10: =IF(AND(YEAR(JulOffset+28)=CalendarYear,MONTH(JulOffset+28)=7),DAY(JulOffset+28),"") -> 1900-01-22 | V10: =IF(AND(YEAR(OctOffset+22)=CalendarYear,MONTH(OctOffset+22)=10),DAY(OctOffset+22),"") -> 1900-01-22 | W10: =IF(AND(YEAR(OctOffset+23)=CalendarYear,MONTH(OctOffset+23)=10),DAY(OctOffset+23),"") -> 1900-01-23 | X10: =IF(AND(YEAR(OctOffset+24)=CalendarYear,MONTH(OctOffset+24)=10),DAY(OctOffset+24),"") -> 1900-01-24 | Y10: =IF(AND(YEAR(OctOffset+25)=CalendarYear,MONTH(OctOffset+25)=10),DAY(OctOffset+25),"") -> 1900-01-25 | Z10: =IF(AND(YEAR(OctOffset+26)=CalendarYear,MONTH(OctOffset+26)=10),DAY(OctOffset+26),"") -> 1900-01-26 | AA10: =IF(AND(YEAR(OctOffset+27)=CalendarYear,MONTH(OctOffset+27)=10),DAY(OctOffset+27),"") -> 1900-01-27 | AB10: =IF(AND(YEAR(OctOffset+28)=CalendarYear,MONTH(OctOffset+28)=10),DAY(OctOffset+28),"") -> 1900-01-28
A11: =INDEX('Irrig Sched'!$E$9:$E$39,MATCH(A10,'Irrig Sched'!$B$9:$B$39,0)) ->  | B11: =INDEX('Irrig Sched'!$E$9:$E$39,MATCH(B10,'Irrig Sched'!$B$9:$B$39,0)) ->  | C11: =INDEX('Irrig Sched'!$E$9:$E$39,MATCH(C10,'Irrig Sched'!$B$9:$B$39,0)) -> Run | D11: =INDEX('Irrig Sched'!$E$9:$E$39,MATCH(D10,'Irrig Sched'!$B$9:$B$39,0)) ->  | E11: =INDEX('Irrig Sched'!$E$9:$E$39,MATCH(E10,'Irrig Sched'!$B$9:$B$39,0)) ->  | F11: =INDEX('Irrig Sched'!$E$9:$E$39,MATCH(F10,'Irrig Sched'!$B$9:$B$39,0)) ->  | G11: =INDEX('Irrig Sched'!$E$9:$E$39,MATCH(G10,'Irrig Sched'!$B$9:$B$39,0)) ->  | H11: =INDEX('Irrig Sched'!$T$9:$T$39,MATCH(H10,'Irrig Sched'!$Q$9:$Q$39,0)) ->  | I11: =INDEX('Irrig Sched'!$T$9:$T$39,MATCH(I10,'Irrig Sched'!$Q$9:$Q$39,0)) ->  | J11: =INDEX('Irrig Sched'!$T$9:$T$39,MATCH(J10,'Irrig Sched'!$Q$9:$Q$39,0)) ->  | K11: =INDEX('Irrig Sched'!$T$9:$T$39,MATCH(K10,'Irrig Sched'!$Q$9:$Q$39,0)) ->  | L11: =INDEX('Irrig Sched'!$T$9:$T$39,MATCH(L10,'Irrig Sched'!$Q$9:$Q$39,0)) -> Run | M11: =INDEX('Irrig Sched'!$T$9:$T$39,MATCH(M10,'Irrig Sched'!$Q$9:$Q$39,0)) ->  | N11: =INDEX('Irrig Sched'!$T$9:$T$39,MATCH(N10,'Irrig Sched'!$Q$9:$Q$39,0)) ->  | O11: =INDEX('Irrig Sched'!$AI$9:$AI$39,MATCH(O10,'Irrig Sched'!$AF$9:$AF$39,0)) ->  | P11: =INDEX('Irrig Sched'!$AI$9:$AI$39,MATCH(P10,'Irrig Sched'!$AF$9:$AF$39,0)) ->  | Q11: =INDEX('Irrig Sched'!$AI$9:$AI$39,MATCH(Q10,'Irrig Sched'!$AF$9:$AF$39,0)) -> Run | R11: =INDEX('Irrig Sched'!$AI$9:$AI$39,MATCH(R10,'Irrig Sched'!$AF$9:$AF$39,0)) ->  | S11: =INDEX('Irrig Sched'!$AI$9:$AI$39,MATCH(S10,'Irrig Sched'!$AF$9:$AF$39,0)) ->  | T11: =INDEX('Irrig Sched'!$AI$9:$AI$39,MATCH(T10,'Irrig Sched'!$AF$9:$AF$39,0)) ->  | U11: =INDEX('Irrig Sched'!$AI$9:$AI$39,MATCH(U10,'Irrig Sched'!$AF$9:$AF$39,0)) -> Run | V11: =INDEX('Irrig Sched'!$AX$9:$AX$39,MATCH(V10,'Irrig Sched'!$AU$9:$AU$39,0)) ->  | W11: =INDEX('Irrig Sched'!$AX$9:$AX$39,MATCH(W10,'Irrig Sched'!$AU$9:$AU$39,0)) ->  | X11: =INDEX('Irrig Sched'!$AX$9:$AX$39,MATCH(X10,'Irrig Sched'!$AU$9:$AU$39,0)) ->  | Y11: =INDEX('Irrig Sched'!$AX$9:$AX$39,MATCH(Y10,'Irrig Sched'!$AU$9:$AU$39,0)) ->  | Z11: =INDEX('Irrig Sched'!$AX$9:$AX$39,MATCH(Z10,'Irrig Sched'!$AU$9:$AU$39,0)) ->  | AA11: =INDEX('Irrig Sched'!$AX$9:$AX$39,MATCH(AA10,'Irrig Sched'!$AU$9:$AU$39,0)) ->  | AB11: =INDEX('Irrig Sched'!$AX$9:$AX$39,MATCH(AB10,'Irrig Sched'!$AU$9:$AU$39,0)) -> Run
A12: =IF(AND(YEAR(JanOffset+29)=CalendarYear,MONTH(JanOffset+29)=1),DAY(JanOffset+29),"") -> 1900-01-29 | B12: =IF(AND(YEAR(JanOffset+30)=CalendarYear,MONTH(JanOffset+30)=1),DAY(JanOffset+30),"") -> 1900-01-30 | C12: =IF(AND(YEAR(JanOffset+31)=CalendarYear,MONTH(JanOffset+31)=1),DAY(JanOffset+31),"") -> 1900-01-31 | D12: =IF(AND(YEAR(JanOffset+32)=CalendarYear,MONTH(JanOffset+32)=1),DAY(JanOffset+32),"") ->  | E12: =IF(AND(YEAR(JanOffset+33)=CalendarYear,MONTH(JanOffset+33)=1),DAY(JanOffset+33),"") ->  | F12: =IF(AND(YEAR(JanOffset+34)=CalendarYear,MONTH(JanOffset+34)=1),DAY(JanOffset+34),"") ->  | G12: =IF(AND(YEAR(JanOffset+35)=CalendarYear,MONTH(JanOffset+35)=1),DAY(JanOffset+35),"") ->  | H12: =IF(AND(YEAR(AprOffset+29)=CalendarYear,MONTH(AprOffset+29)=4),DAY(AprOffset+29),"") -> 1900-01-23 | I12: =IF(AND(YEAR(AprOffset+30)=CalendarYear,MONTH(AprOffset+30)=4),DAY(AprOffset+30),"") -> 1900-01-24 | J12: =IF(AND(YEAR(AprOffset+31)=CalendarYear,MONTH(AprOffset+31)=4),DAY(AprOffset+31),"") -> 1900-01-25 | K12: =IF(AND(YEAR(AprOffset+32)=CalendarYear,MONTH(AprOffset+32)=4),DAY(AprOffset+32),"") -> 1900-01-26 | L12: =IF(AND(YEAR(AprOffset+33)=CalendarYear,MONTH(AprOffset+33)=4),DAY(AprOffset+33),"") -> 1900-01-27 | M12: =IF(AND(YEAR(AprOffset+34)=CalendarYear,MONTH(AprOffset+34)=4),DAY(AprOffset+34),"") -> 1900-01-28 | N12: =IF(AND(YEAR(AprOffset+35)=CalendarYear,MONTH(AprOffset+35)=4),DAY(AprOffset+35),"") -> 1900-01-29 | O12: =IF(AND(YEAR(JulOffset+29)=CalendarYear,MONTH(JulOffset+29)=7),DAY(JulOffset+29),"") -> 1900-01-23 | P12: =IF(AND(YEAR(JulOffset+30)=CalendarYear,MONTH(JulOffset+30)=7),DAY(JulOffset+30),"") -> 1900-01-24 | Q12: =IF(AND(YEAR(JulOffset+31)=CalendarYear,MONTH(JulOffset+31)=7),DAY(JulOffset+31),"") -> 1900-01-25 | R12: =IF(AND(YEAR(JulOffset+32)=CalendarYear,MONTH(JulOffset+32)=7),DAY(JulOffset+32),"") -> 1900-01-26 | S12: =IF(AND(YEAR(JulOffset+33)=CalendarYear,MONTH(JulOffset+33)=7),DAY(JulOffset+33),"") -> 1900-01-27 | T12: =IF(AND(YEAR(JulOffset+34)=CalendarYear,MONTH(JulOffset+34)=7),DAY(JulOffset+34),"") -> 1900-01-28 | U12: =IF(AND(YEAR(JulOffset+35)=CalendarYear,MONTH(JulOffset+35)=7),DAY(JulOffset+35),"") -> 1900-01-29 | V12: =IF(AND(YEAR(OctOffset+29)=CalendarYear,MONTH(OctOffset+29)=10),DAY(OctOffset+29),"") -> 1900-01-29 | W12: =IF(AND(YEAR(OctOffset+30)=CalendarYear,MONTH(OctOffset+30)=10),DAY(OctOffset+30),"") -> 1900-01-30 | X12: =IF(AND(YEAR(OctOffset+31)=CalendarYear,MONTH(OctOffset+31)=10),DAY(OctOffset+31),"") -> 1900-01-31 | Y12: =IF(AND(YEAR(OctOffset+32)=CalendarYear,MONTH(OctOffset+32)=10),DAY(OctOffset+32),"") ->  | Z12: =IF(AND(YEAR(OctOffset+33)=CalendarYear,MONTH(OctOffset+33)=10),DAY(OctOffset+33),"") ->  | AA12: =IF(AND(YEAR(OctOffset+34)=CalendarYear,MONTH(OctOffset+34)=10),DAY(OctOffset+34),"") ->  | AB12: =IF(AND(YEAR(OctOffset+35)=CalendarYear,MONTH(OctOffset+35)=10),DAY(OctOffset+35),"") -> 
A13: =INDEX('Irrig Sched'!$E$9:$E$39,MATCH(A12,'Irrig Sched'!$B$9:$B$39,0)) ->  | B13: =INDEX('Irrig Sched'!$E$9:$E$39,MATCH(B12,'Irrig Sched'!$B$9:$B$39,0)) ->  | C13: =INDEX('Irrig Sched'!$E$9:$E$39,MATCH(C12,'Irrig Sched'!$B$9:$B$39,0)) ->  | D13: =IF(D12="","",INDEX('Irrig Sched'!$E$9:$E$39,MATCH(D12,'Irrig Sched'!$B$9:$B$39,0))) ->  | E13: =IF(E12="","",INDEX('Irrig Sched'!$E$9:$E$39,MATCH(E12,'Irrig Sched'!$B$9:$B$39,0))) ->  | F13: =IF(F12="","",INDEX('Irrig Sched'!$E$9:$E$39,MATCH(F12,'Irrig Sched'!$B$9:$B$39,0))) ->  | G13: =IF(G12="","",INDEX('Irrig Sched'!$E$9:$E$39,MATCH(G12,'Irrig Sched'!$B$9:$B$39,0))) ->  | H13: =IF(H12="","",INDEX('Irrig Sched'!$T$9:$T$39,MATCH(H12,'Irrig Sched'!$Q$9:$Q$39,0))) ->  | I13: =IF(I12="","",INDEX('Irrig Sched'!$T$9:$T$39,MATCH(I12,'Irrig Sched'!$Q$9:$Q$39,0))) ->  | J13: =IF(J12="","",INDEX('Irrig Sched'!$T$9:$T$39,MATCH(J12,'Irrig Sched'!$Q$9:$Q$39,0))) ->  | K13: =IF(K12="","",INDEX('Irrig Sched'!$T$9:$T$39,MATCH(K12,'Irrig Sched'!$Q$9:$Q$39,0))) ->  | L13: =IF(L12="","",INDEX('Irrig Sched'!$T$9:$T$39,MATCH(L12,'Irrig Sched'!$Q$9:$Q$39,0))) -> Run | M13: =IF(M12="","",INDEX('Irrig Sched'!$T$9:$T$39,MATCH(M12,'Irrig Sched'!$Q$9:$Q$39,0))) ->  | N13: =IF(N12="","",INDEX('Irrig Sched'!$T$9:$T$39,MATCH(N12,'Irrig Sched'!$Q$9:$Q$39,0))) ->  | O13: =IF(O12="","",INDEX('Irrig Sched'!$AI$9:$AI$39,MATCH(O12,'Irrig Sched'!$AF$9:$AF$39,0))) ->  | P13: =IF(P12="","",INDEX('Irrig Sched'!$AI$9:$AI$39,MATCH(P12,'Irrig Sched'!$AF$9:$AF$39,0))) ->  | Q13: =IF(Q12="","",INDEX('Irrig Sched'!$AI$9:$AI$39,MATCH(Q12,'Irrig Sched'!$AF$9:$AF$39,0))) ->  | R13: =IF(R12="","",INDEX('Irrig Sched'!$AI$9:$AI$39,MATCH(R12,'Irrig Sched'!$AF$9:$AF$39,0))) ->  | S13: =IF(S12="","",INDEX('Irrig Sched'!$AI$9:$AI$39,MATCH(S12,'Irrig Sched'!$AF$9:$AF$39,0))) -> Run | T13: =IF(T12="","",INDEX('Irrig Sched'!$AI$9:$AI$39,MATCH(T12,'Irrig Sched'!$AF$9:$AF$39,0))) ->  | U13: =IF(U12="","",INDEX('Irrig Sched'!$AI$9:$AI$39,MATCH(U12,'Irrig Sched'!$AF$9:$AF$39,0))) ->  | V13: =IF(V12="","",INDEX('Irrig Sched'!$AX$9:$AX$39,MATCH(V12,'Irrig Sched'!$AU$9:$AU$39,0))) ->  | W13: =IF(W12="","",INDEX('Irrig Sched'!$AX$9:$AX$39,MATCH(W12,'Irrig Sched'!$AU$9:$AU$39,0))) ->  | X13: =IF(X12="","",INDEX('Irrig Sched'!$AX$9:$AX$39,MATCH(X12,'Irrig Sched'!$AU$9:$AU$39,0))) ->  | Y13: =IF(Y12="","",INDEX('Irrig Sched'!$AX$9:$AX$39,MATCH(Y12,'Irrig Sched'!$AU$9:$AU$39,0))) ->  | Z13: =IF(Z12="","",INDEX('Irrig Sched'!$AX$9:$AX$39,MATCH(Z12,'Irrig Sched'!$AU$9:$AU$39,0))) ->  | AA13: =IF(AA12="","",INDEX('Irrig Sched'!$AX$9:$AX$39,MATCH(AA12,'Irrig Sched'!$AU$9:$AU$39,0))) ->  | AB13: =IF(AB12="","",INDEX('Irrig Sched'!$AX$9:$AX$39,MATCH(AB12,'Irrig Sched'!$AU$9:$AU$39,0))) -> 
A14: =IF(AND(YEAR(JanOffset+36)=CalendarYear,MONTH(JanOffset+36)=1),DAY(JanOffset+36),"") ->  | B14: =IF(AND(YEAR(JanOffset+37)=CalendarYear,MONTH(JanOffset+37)=1),DAY(JanOffset+37),"") ->  | H14: =IF(AND(YEAR(AprOffset+36)=CalendarYear,MONTH(AprOffset+36)=4),DAY(AprOffset+36),"") -> 1900-01-30 | I14: =IF(AND(YEAR(AprOffset+37)=CalendarYear,MONTH(AprOffset+37)=4),DAY(AprOffset+37),"") ->  | O14: =IF(AND(YEAR(JulOffset+36)=CalendarYear,MONTH(JulOffset+36)=7),DAY(JulOffset+36),"") -> 1900-01-30 | P14: =IF(AND(YEAR(JulOffset+37)=CalendarYear,MONTH(JulOffset+37)=7),DAY(JulOffset+37),"") -> 1900-01-31 | V14: =IF(AND(YEAR(OctOffset+36)=CalendarYear,MONTH(OctOffset+36)=10),DAY(OctOffset+36),"") ->  | W14: =IF(AND(YEAR(OctOffset+37)=CalendarYear,MONTH(OctOffset+37)=10),DAY(OctOffset+37),"") -> 
A15: =IF(A14="","",INDEX('Irrig Sched'!$E$9:$E$39,MATCH(A14,'Irrig Sched'!$B$9:$B$39,0))) ->  | B15: =IF(B14="","",INDEX('Irrig Sched'!$E$9:$E$39,MATCH(B14,'Irrig Sched'!$B$9:$B$39,0))) ->  | H15: =IF(H14="","",INDEX('Irrig Sched'!$T$9:$T$39,MATCH(H14,'Irrig Sched'!$Q$9:$Q$39,0))) ->  | I15: =IF(I14="","",INDEX('Irrig Sched'!$T$9:$T$39,MATCH(I14,'Irrig Sched'!$Q$9:$Q$39,0))) ->  | O15: =IF(O14="","",INDEX('Irrig Sched'!$AI$9:$AI$39,MATCH(O14,'Irrig Sched'!$AF$9:$AF$39,0))) ->  | P15: =IF(P14="","",INDEX('Irrig Sched'!$AI$9:$AI$39,MATCH(P14,'Irrig Sched'!$AF$9:$AF$39,0))) ->  | V15: =IF(V14="","",INDEX('Irrig Sched'!$AX$9:$AX$39,MATCH(V14,'Irrig Sched'!$AU$9:$AU$39,0))) ->  | W15: =IF(W14="","",INDEX('Irrig Sched'!$AX$9:$AX$39,MATCH(W14,'Irrig Sched'!$AU$9:$AU$39,0))) -> 
A17: =CONCATENATE("February ",Irrig_Year) -> February 2017 | H17: =CONCATENATE("May ",Irrig_Year) -> May 2017 | O17: =CONCATENATE("August ",Irrig_Year) -> August 2017 | V17: =CONCATENATE("November ",Irrig_Year) -> November 2017
A18: SUNDAY | B18: MONDAY | C18: TUESDAY | D18: WEDNESDAY | E18: THURSDAY | F18: FRIDAY | G18: SATURDAY | H18: SUNDAY | I18: MONDAY | J18: TUESDAY | K18: WEDNESDAY | L18: THURSDAY | M18: FRIDAY | N18: SATURDAY | O18: SUNDAY | P18: MONDAY | Q18: TUESDAY | R18: WEDNESDAY | S18: THURSDAY | T18: FRIDAY | U18: SATURDAY | V18: SUNDAY | W18: MONDAY | X18: TUESDAY | Y18: WEDNESDAY | Z18: THURSDAY | AA18: FRIDAY | AB18: SATURDAY
A19: =IF(AND(YEAR(FebOffset+1)=CalendarYear,MONTH(FebOffset+1)=2),DAY(FebOffset+1),"") ->  | B19: =IF(AND(YEAR(FebOffset+2)=CalendarYear,MONTH(FebOffset+2)=2),DAY(FebOffset+2),"") ->  | C19: =IF(AND(YEAR(FebOffset+3)=CalendarYear,MONTH(FebOffset+3)=2),DAY(FebOffset+3),"") ->  | D19: =IF(AND(YEAR(FebOffset+4)=CalendarYear,MONTH(FebOffset+4)=2),DAY(FebOffset+4),"") -> 1900-01-01 | E19: =IF(AND(YEAR(FebOffset+5)=CalendarYear,MONTH(FebOffset+5)=2),DAY(FebOffset+5),"") -> 1900-01-02 | F19: =IF(AND(YEAR(FebOffset+6)=CalendarYear,MONTH(FebOffset+6)=2),DAY(FebOffset+6),"") -> 1900-01-03 | G19: =IF(AND(YEAR(FebOffset+7)=CalendarYear,MONTH(FebOffset+7)=2),DAY(FebOffset+7),"") -> 1900-01-04 | H19: =IF(AND(YEAR(MayOffset+1)=CalendarYear,MONTH(MayOffset+1)=5),DAY(MayOffset+1),"") ->  | I19: =IF(AND(YEAR(MayOffset+2)=CalendarYear,MONTH(MayOffset+2)=5),DAY(MayOffset+2),"") -> 1900-01-01 | J19: =IF(AND(YEAR(MayOffset+3)=CalendarYear,MONTH(MayOffset+3)=5),DAY(MayOffset+3),"") -> 1900-01-02 | K19: =IF(AND(YEAR(MayOffset+4)=CalendarYear,MONTH(MayOffset+4)=5),DAY(MayOffset+4),"") -> 1900-01-03 | L19: =IF(AND(YEAR(MayOffset+5)=CalendarYear,MONTH(MayOffset+5)=5),DAY(MayOffset+5),"") -> 1900-01-04 | M19: =IF(AND(YEAR(MayOffset+6)=CalendarYear,MONTH(MayOffset+6)=5),DAY(MayOffset+6),"") -> 1900-01-05 | N19: =IF(AND(YEAR(MayOffset+7)=CalendarYear,MONTH(MayOffset+7)=5),DAY(MayOffset+7),"") -> 1900-01-06 | O19: =IF(AND(YEAR(AugOffset+1)=CalendarYear,MONTH(AugOffset+1)=8),DAY(AugOffset+1),"") ->  | P19: =IF(AND(YEAR(AugOffset+2)=CalendarYear,MONTH(AugOffset+2)=8),DAY(AugOffset+2),"") ->  | Q19: =IF(AND(YEAR(AugOffset+3)=CalendarYear,MONTH(AugOffset+3)=8),DAY(AugOffset+3),"") -> 1900-01-01 | R19: =IF(AND(YEAR(AugOffset+4)=CalendarYear,MONTH(AugOffset+4)=8),DAY(AugOffset+4),"") -> 1900-01-02 | S19: =IF(AND(YEAR(AugOffset+5)=CalendarYear,MONTH(AugOffset+5)=8),DAY(AugOffset+5),"") -> 1900-01-03 | T19: =IF(AND(YEAR(AugOffset+6)=CalendarYear,MONTH(AugOffset+6)=8),DAY(AugOffset+6),"") -> 1900-01-04 | U19: =IF(AND(YEAR(AugOffset+7)=CalendarYear,MONTH(AugOffset+7)=8),DAY(AugOffset+7),"") -> 1900-01-05 | V19: =IF(AND(YEAR(NovOffset+1)=CalendarYear,MONTH(NovOffset+1)=11),DAY(NovOffset+1),"") ->  | W19: =IF(AND(YEAR(NovOffset+2)=CalendarYear,MONTH(NovOffset+2)=11),DAY(NovOffset+2),"") ->  | X19: =IF(AND(YEAR(NovOffset+3)=CalendarYear,MONTH(NovOffset+3)=11),DAY(NovOffset+3),"") ->  | Y19: =IF(AND(YEAR(NovOffset+4)=CalendarYear,MONTH(NovOffset+4)=11),DAY(NovOffset+4),"") -> 1900-01-01 | Z19: =IF(AND(YEAR(NovOffset+5)=CalendarYear,MONTH(NovOffset+5)=11),DAY(NovOffset+5),"") -> 1900-01-02 | AA19: =IF(AND(YEAR(NovOffset+6)=CalendarYear,MONTH(NovOffset+6)=11),DAY(NovOffset+6),"") -> 1900-01-03 | AB19: =IF(AND(YEAR(NovOffset+7)=CalendarYear,MONTH(NovOffset+7)=11),DAY(NovOffset+7),"") -> 1900-01-04
A20: =IF(A19="","",INDEX('Irrig Sched'!$J$9:$J$37,MATCH(A19,'Irrig Sched'!$G$9:$G$37,0))) ->  | B20: =IF(B19="","",INDEX('Irrig Sched'!$J$9:$J$37,MATCH(B19,'Irrig Sched'!$G$9:$G$37,0))) ->  | C20: =IF(C19="","",INDEX('Irrig Sched'!$J$9:$J$37,MATCH(C19,'Irrig Sched'!$G$9:$G$37,0))) ->  | D20: =IF(D19="","",INDEX('Irrig Sched'!$J$9:$J$37,MATCH(D19,'Irrig Sched'!$G$9:$G$37,0))) ->  | E20: =IF(E19="","",INDEX('Irrig Sched'!$J$9:$J$37,MATCH(E19,'Irrig Sched'!$G$9:$G$37,0))) ->  | F20: =IF(F19="","",INDEX('Irrig Sched'!$J$9:$J$37,MATCH(F19,'Irrig Sched'!$G$9:$G$37,0))) ->  | G20: =IF(G19="","",INDEX('Irrig Sched'!$J$9:$J$37,MATCH(G19,'Irrig Sched'!$G$9:$G$37,0))) ->  | H20: =IF(H19="","",INDEX('Irrig Sched'!$Y$9:$Y$39,MATCH(H19,'Irrig Sched'!$V$9:$V$39,0))) ->  | I20: =IF(I19="","",INDEX('Irrig Sched'!$Y$9:$Y$39,MATCH(I19,'Irrig Sched'!$V$9:$V$39,0))) ->  | J20: =IF(J19="","",INDEX('Irrig Sched'!$Y$9:$Y$39,MATCH(J19,'Irrig Sched'!$V$9:$V$39,0))) -> Run | K20: =IF(K19="","",INDEX('Irrig Sched'!$Y$9:$Y$39,MATCH(K19,'Irrig Sched'!$V$9:$V$39,0))) ->  | L20: =IF(L19="","",INDEX('Irrig Sched'!$Y$9:$Y$39,MATCH(L19,'Irrig Sched'!$V$9:$V$39,0))) ->  | M20: =IF(M19="","",INDEX('Irrig Sched'!$Y$9:$Y$39,MATCH(M19,'Irrig Sched'!$V$9:$V$39,0))) ->  | N20: =IF(N19="","",INDEX('Irrig Sched'!$Y$9:$Y$39,MATCH(N19,'Irrig Sched'!$V$9:$V$39,0))) ->  | O20: =IF(O19="","",INDEX('Irrig Sched'!$AN$9:$AN$39,MATCH(O19,'Irrig Sched'!$AK$9:$AK$39,0))) ->  | P20: =IF(P19="","",INDEX('Irrig Sched'!$AN$9:$AN$39,MATCH(P19,'Irrig Sched'!$AK$9:$AK$39,0))) ->  | Q20: =IF(Q19="","",INDEX('Irrig Sched'!$AN$9:$AN$39,MATCH(Q19,'Irrig Sched'!$AK$9:$AK$39,0))) -> Run | R20: =IF(R19="","",INDEX('Irrig Sched'!$AN$9:$AN$39,MATCH(R19,'Irrig Sched'!$AK$9:$AK$39,0))) ->  | S20: =IF(S19="","",INDEX('Irrig Sched'!$AN$9:$AN$39,MATCH(S19,'Irrig Sched'!$AK$9:$AK$39,0))) -> Run | T20: =IF(T19="","",INDEX('Irrig Sched'!$AN$9:$AN$39,MATCH(T19,'Irrig Sched'!$AK$9:$AK$39,0))) ->  | U20: =IF(U19="","",INDEX('Irrig Sched'!$AN$9:$AN$39,MATCH(U19,'Irrig Sched'!$AK$9:$AK$39,0))) ->  | V20: =IF(V19="","",INDEX('Irrig Sched'!$BC$9:$BC$39,MATCH(V19,'Irrig Sched'!$AZ$9:$AZ$39,0))) ->  | W20: =IF(W19="","",INDEX('Irrig Sched'!$BC$9:$BC$39,MATCH(W19,'Irrig Sched'!$AZ$9:$AZ$39,0))) ->  | X20: =IF(X19="","",INDEX('Irrig Sched'!$BC$9:$BC$39,MATCH(X19,'Irrig Sched'!$AZ$9:$AZ$39,0))) ->  | Y20: =IF(Y19="","",INDEX('Irrig Sched'!$BC$9:$BC$39,MATCH(Y19,'Irrig Sched'!$AZ$9:$AZ$39,0))) ->  | Z20: =IF(Z19="","",INDEX('Irrig Sched'!$BC$9:$BC$39,MATCH(Z19,'Irrig Sched'!$AZ$9:$AZ$39,0))) ->  | AA20: =IF(AA19="","",INDEX('Irrig Sched'!$BC$9:$BC$39,MATCH(AA19,'Irrig Sched'!$AZ$9:$AZ$39,0))) ->  | AB20: =IF(AB19="","",INDEX('Irrig Sched'!$BC$9:$BC$39,MATCH(AB19,'Irrig Sched'!$AZ$9:$AZ$39,0))) -> 
A21: =IF(AND(YEAR(FebOffset+8)=CalendarYear,MONTH(FebOffset+8)=2),DAY(FebOffset+8),"") -> 1900-01-05 | B21: =IF(AND(YEAR(FebOffset+9)=CalendarYear,MONTH(FebOffset+9)=2),DAY(FebOffset+9),"") -> 1900-01-06 | C21: =IF(AND(YEAR(FebOffset+10)=CalendarYear,MONTH(FebOffset+10)=2),DAY(FebOffset+10),"") -> 1900-01-07 | D21: =IF(AND(YEAR(FebOffset+11)=CalendarYear,MONTH(FebOffset+11)=2),DAY(FebOffset+11),"") -> 1900-01-08 | E21: =IF(AND(YEAR(FebOffset+12)=CalendarYear,MONTH(FebOffset+12)=2),DAY(FebOffset+12),"") -> 1900-01-09 | F21: =IF(AND(YEAR(FebOffset+13)=CalendarYear,MONTH(FebOffset+13)=2),DAY(FebOffset+13),"") -> 1900-01-10 | G21: =IF(AND(YEAR(FebOffset+14)=CalendarYear,MONTH(FebOffset+14)=2),DAY(FebOffset+14),"") -> 1900-01-11 | H21: =IF(AND(YEAR(MayOffset+8)=CalendarYear,MONTH(MayOffset+8)=5),DAY(MayOffset+8),"") -> 1900-01-07 | I21: =IF(AND(YEAR(MayOffset+9)=CalendarYear,MONTH(MayOffset+9)=5),DAY(MayOffset+9),"") -> 1900-01-08 | J21: =IF(AND(YEAR(MayOffset+10)=CalendarYear,MONTH(MayOffset+10)=5),DAY(MayOffset+10),"") -> 1900-01-09 | K21: =IF(AND(YEAR(MayOffset+11)=CalendarYear,MONTH(MayOffset+11)=5),DAY(MayOffset+11),"") -> 1900-01-10 | L21: =IF(AND(YEAR(MayOffset+12)=CalendarYear,MONTH(MayOffset+12)=5),DAY(MayOffset+12),"") -> 1900-01-11 | M21: =IF(AND(YEAR(MayOffset+13)=CalendarYear,MONTH(MayOffset+13)=5),DAY(MayOffset+13),"") -> 1900-01-12 | N21: =IF(AND(YEAR(MayOffset+14)=CalendarYear,MONTH(MayOffset+14)=5),DAY(MayOffset+14),"") -> 1900-01-13 | O21: =IF(AND(YEAR(AugOffset+8)=CalendarYear,MONTH(AugOffset+8)=8),DAY(AugOffset+8),"") -> 1900-01-06 | P21: =IF(AND(YEAR(AugOffset+9)=CalendarYear,MONTH(AugOffset+9)=8),DAY(AugOffset+9),"") -> 1900-01-07 | Q21: =IF(AND(YEAR(AugOffset+10)=CalendarYear,MONTH(AugOffset+10)=8),DAY(AugOffset+10),"") -> 1900-01-08 | R21: =IF(AND(YEAR(AugOffset+11)=CalendarYear,MONTH(AugOffset+11)=8),DAY(AugOffset+11),"") -> 1900-01-09 | S21: =IF(AND(YEAR(AugOffset+12)=CalendarYear,MONTH(AugOffset+12)=8),DAY(AugOffset+12),"") -> 1900-01-10 | T21: =IF(AND(YEAR(AugOffset+13)=CalendarYear,MONTH(AugOffset+13)=8),DAY(AugOffset+13),"") -> 1900-01-11 | U21: =IF(AND(YEAR(AugOffset+14)=CalendarYear,MONTH(AugOffset+14)=8),DAY(AugOffset+14),"") -> 1900-01-12 | V21: =IF(AND(YEAR(NovOffset+8)=CalendarYear,MONTH(NovOffset+8)=11),DAY(NovOffset+8),"") -> 1900-01-05 | W21: =IF(AND(YEAR(NovOffset+9)=CalendarYear,MONTH(NovOffset+9)=11),DAY(NovOffset+9),"") -> 1900-01-06 | X21: =IF(AND(YEAR(NovOffset+10)=CalendarYear,MONTH(NovOffset+10)=11),DAY(NovOffset+10),"") -> 1900-01-07 | Y21: =IF(AND(YEAR(NovOffset+11)=CalendarYear,MONTH(NovOffset+11)=11),DAY(NovOffset+11),"") -> 1900-01-08 | Z21: =IF(AND(YEAR(NovOffset+12)=CalendarYear,MONTH(NovOffset+12)=11),DAY(NovOffset+12),"") -> 1900-01-09 | AA21: =IF(AND(YEAR(NovOffset+13)=CalendarYear,MONTH(NovOffset+13)=11),DAY(NovOffset+13),"") -> 1900-01-10 | AB21: =IF(AND(YEAR(NovOffset+14)=CalendarYear,MONTH(NovOffset+14)=11),DAY(NovOffset+14),"") -> 1900-01-11
A22: =INDEX('Irrig Sched'!$J$9:$J$37,MATCH(A21,'Irrig Sched'!$G$9:$G$37,0)) ->  | B22: =INDEX('Irrig Sched'!$J$9:$J$37,MATCH(B21,'Irrig Sched'!$G$9:$G$37,0)) ->  | C22: =INDEX('Irrig Sched'!$J$9:$J$37,MATCH(C21,'Irrig Sched'!$G$9:$G$37,0)) ->  | D22: =INDEX('Irrig Sched'!$J$9:$J$37,MATCH(D21,'Irrig Sched'!$G$9:$G$37,0)) ->  | E22: =INDEX('Irrig Sched'!$J$9:$J$37,MATCH(E21,'Irrig Sched'!$G$9:$G$37,0)) -> Run | F22: =INDEX('Irrig Sched'!$J$9:$J$37,MATCH(F21,'Irrig Sched'!$G$9:$G$37,0)) ->  | G22: =INDEX('Irrig Sched'!$J$9:$J$37,MATCH(G21,'Irrig Sched'!$G$9:$G$37,0)) ->  | H22: =INDEX('Irrig Sched'!$Y$9:$Y$39,MATCH(H21,'Irrig Sched'!$V$9:$V$39,0)) ->  | I22: =INDEX('Irrig Sched'!$Y$9:$Y$39,MATCH(I21,'Irrig Sched'!$V$9:$V$39,0)) ->  | J22: =INDEX('Irrig Sched'!$Y$9:$Y$39,MATCH(J21,'Irrig Sched'!$V$9:$V$39,0)) -> Run | K22: =INDEX('Irrig Sched'!$Y$9:$Y$39,MATCH(K21,'Irrig Sched'!$V$9:$V$39,0)) ->  | L22: =INDEX('Irrig Sched'!$Y$9:$Y$39,MATCH(L21,'Irrig Sched'!$V$9:$V$39,0)) -> Run | M22: =INDEX('Irrig Sched'!$Y$9:$Y$39,MATCH(M21,'Irrig Sched'!$V$9:$V$39,0)) ->  | N22: =INDEX('Irrig Sched'!$Y$9:$Y$39,MATCH(N21,'Irrig Sched'!$V$9:$V$39,0)) ->  | O22: =INDEX('Irrig Sched'!$AN$9:$AN$39,MATCH(O21,'Irrig Sched'!$AK$9:$AK$39,0)) ->  | P22: =INDEX('Irrig Sched'!$AN$9:$AN$39,MATCH(P21,'Irrig Sched'!$AK$9:$AK$39,0)) ->  | Q22: =INDEX('Irrig Sched'!$AN$9:$AN$39,MATCH(Q21,'Irrig Sched'!$AK$9:$AK$39,0)) -> Run | R22: =INDEX('Irrig Sched'!$AN$9:$AN$39,MATCH(R21,'Irrig Sched'!$AK$9:$AK$39,0)) ->  | S22: =INDEX('Irrig Sched'!$AN$9:$AN$39,MATCH(S21,'Irrig Sched'!$AK$9:$AK$39,0)) ->  | T22: =INDEX('Irrig Sched'!$AN$9:$AN$39,MATCH(T21,'Irrig Sched'!$AK$9:$AK$39,0)) ->  | U22: =INDEX('Irrig Sched'!$AN$9:$AN$39,MATCH(U21,'Irrig Sched'!$AK$9:$AK$39,0)) -> Run | V22: =INDEX('Irrig Sched'!$BC$9:$BC$39,MATCH(V21,'Irrig Sched'!$AZ$9:$AZ$39,0)) ->  | W22: =INDEX('Irrig Sched'!$BC$9:$BC$39,MATCH(W21,'Irrig Sched'!$AZ$9:$AZ$39,0)) ->  | X22: =INDEX('Irrig Sched'!$BC$9:$BC$39,MATCH(X21,'Irrig Sched'!$AZ$9:$AZ$39,0)) -> Run | Y22: =INDEX('Irrig Sched'!$BC$9:$BC$39,MATCH(Y21,'Irrig Sched'!$AZ$9:$AZ$39,0)) ->  | Z22: =INDEX('Irrig Sched'!$BC$9:$BC$39,MATCH(Z21,'Irrig Sched'!$AZ$9:$AZ$39,0)) ->  | AA22: =INDEX('Irrig Sched'!$BC$9:$BC$39,MATCH(AA21,'Irrig Sched'!$AZ$9:$AZ$39,0)) ->  | AB22: =INDEX('Irrig Sched'!$BC$9:$BC$39,MATCH(AB21,'Irrig Sched'!$AZ$9:$AZ$39,0)) -> 
A23: =IF(AND(YEAR(FebOffset+15)=CalendarYear,MONTH(FebOffset+15)=2),DAY(FebOffset+15),"") -> 1900-01-12 | B23: =IF(AND(YEAR(FebOffset+16)=CalendarYear,MONTH(FebOffset+16)=2),DAY(FebOffset+16),"") -> 1900-01-13 | C23: =IF(AND(YEAR(FebOffset+17)=CalendarYear,MONTH(FebOffset+17)=2),DAY(FebOffset+17),"") -> 1900-01-14 | D23: =IF(AND(YEAR(FebOffset+18)=CalendarYear,MONTH(FebOffset+18)=2),DAY(FebOffset+18),"") -> 1900-01-15 | E23: =IF(AND(YEAR(FebOffset+19)=CalendarYear,MONTH(FebOffset+19)=2),DAY(FebOffset+19),"") -> 1900-01-16 | F23: =IF(AND(YEAR(FebOffset+20)=CalendarYear,MONTH(FebOffset+20)=2),DAY(FebOffset+20),"") -> 1900-01-17 | G23: =IF(AND(YEAR(FebOffset+21)=CalendarYear,MONTH(FebOffset+21)=2),DAY(FebOffset+21),"") -> 1900-01-18 | H23: =IF(AND(YEAR(MayOffset+15)=CalendarYear,MONTH(MayOffset+15)=5),DAY(MayOffset+15),"") -> 1900-01-14 | I23: =IF(AND(YEAR(MayOffset+16)=CalendarYear,MONTH(MayOffset+16)=5),DAY(MayOffset+16),"") -> 1900-01-15 | J23: =IF(AND(YEAR(MayOffset+17)=CalendarYear,MONTH(MayOffset+17)=5),DAY(MayOffset+17),"") -> 1900-01-16 | K23: =IF(AND(YEAR(MayOffset+18)=CalendarYear,MONTH(MayOffset+18)=5),DAY(MayOffset+18),"") -> 1900-01-17 | L23: =IF(AND(YEAR(MayOffset+19)=CalendarYear,MONTH(MayOffset+19)=5),DAY(MayOffset+19),"") -> 1900-01-18 | M23: =IF(AND(YEAR(MayOffset+20)=CalendarYear,MONTH(MayOffset+20)=5),DAY(MayOffset+20),"") -> 1900-01-19 | N23: =IF(AND(YEAR(MayOffset+21)=CalendarYear,MONTH(MayOffset+21)=5),DAY(MayOffset+21),"") -> 1900-01-20 | O23: =IF(AND(YEAR(AugOffset+15)=CalendarYear,MONTH(AugOffset+15)=8),DAY(AugOffset+15),"") -> 1900-01-13 | P23: =IF(AND(YEAR(AugOffset+16)=CalendarYear,MONTH(AugOffset+16)=8),DAY(AugOffset+16),"") -> 1900-01-14 | Q23: =IF(AND(YEAR(AugOffset+17)=CalendarYear,MONTH(AugOffset+17)=8),DAY(AugOffset+17),"") -> 1900-01-15 | R23: =IF(AND(YEAR(AugOffset+18)=CalendarYear,MONTH(AugOffset+18)=8),DAY(AugOffset+18),"") -> 1900-01-16 | S23: =IF(AND(YEAR(AugOffset+19)=CalendarYear,MONTH(AugOffset+19)=8),DAY(AugOffset+19),"") -> 1900-01-17 | T23: =IF(AND(YEAR(AugOffset+20)=CalendarYear,MONTH(AugOffset+20)=8),DAY(AugOffset+20),"") -> 1900-01-18 | U23: =IF(AND(YEAR(AugOffset+21)=CalendarYear,MONTH(AugOffset+21)=8),DAY(AugOffset+21),"") -> 1900-01-19 | V23: =IF(AND(YEAR(NovOffset+15)=CalendarYear,MONTH(NovOffset+15)=11),DAY(NovOffset+15),"") -> 1900-01-12 | W23: =IF(AND(YEAR(NovOffset+16)=CalendarYear,MONTH(NovOffset+16)=11),DAY(NovOffset+16),"") -> 1900-01-13 | X23: =IF(AND(YEAR(NovOffset+17)=CalendarYear,MONTH(NovOffset+17)=11),DAY(NovOffset+17),"") -> 1900-01-14 | Y23: =IF(AND(YEAR(NovOffset+18)=CalendarYear,MONTH(NovOffset+18)=11),DAY(NovOffset+18),"") -> 1900-01-15 | Z23: =IF(AND(YEAR(NovOffset+19)=CalendarYear,MONTH(NovOffset+19)=11),DAY(NovOffset+19),"") -> 1900-01-16 | AA23: =IF(AND(YEAR(NovOffset+20)=CalendarYear,MONTH(NovOffset+20)=11),DAY(NovOffset+20),"") -> 1900-01-17 | AB23: =IF(AND(YEAR(NovOffset+21)=CalendarYear,MONTH(NovOffset+21)=11),DAY(NovOffset+21),"") -> 1900-01-18
A24: =INDEX('Irrig Sched'!$J$9:$J$37,MATCH(A23,'Irrig Sched'!$G$9:$G$37,0)) ->  | B24: =INDEX('Irrig Sched'!$J$9:$J$37,MATCH(B23,'Irrig Sched'!$G$9:$G$37,0)) ->  | C24: =INDEX('Irrig Sched'!$J$9:$J$37,MATCH(C23,'Irrig Sched'!$G$9:$G$37,0)) ->  | D24: =INDEX('Irrig Sched'!$J$9:$J$37,MATCH(D23,'Irrig Sched'!$G$9:$G$37,0)) ->  | E24: =INDEX('Irrig Sched'!$J$9:$J$37,MATCH(E23,'Irrig Sched'!$G$9:$G$37,0)) ->  | F24: =INDEX('Irrig Sched'!$J$9:$J$37,MATCH(F23,'Irrig Sched'!$G$9:$G$37,0)) ->  | G24: =INDEX('Irrig Sched'!$J$9:$J$37,MATCH(G23,'Irrig Sched'!$G$9:$G$37,0)) ->  | H24: =INDEX('Irrig Sched'!$Y$9:$Y$39,MATCH(H23,'Irrig Sched'!$V$9:$V$39,0)) ->  | I24: =INDEX('Irrig Sched'!$Y$9:$Y$39,MATCH(I23,'Irrig Sched'!$V$9:$V$39,0)) ->  | J24: =INDEX('Irrig Sched'!$Y$9:$Y$39,MATCH(J23,'Irrig Sched'!$V$9:$V$39,0)) -> Run | K24: =INDEX('Irrig Sched'!$Y$9:$Y$39,MATCH(K23,'Irrig Sched'!$V$9:$V$39,0)) ->  | L24: =INDEX('Irrig Sched'!$Y$9:$Y$39,MATCH(L23,'Irrig Sched'!$V$9:$V$39,0)) ->  | M24: =INDEX('Irrig Sched'!$Y$9:$Y$39,MATCH(M23,'Irrig Sched'!$V$9:$V$39,0)) ->  | N24: =INDEX('Irrig Sched'!$Y$9:$Y$39,MATCH(N23,'Irrig Sched'!$V$9:$V$39,0)) ->  | O24: =INDEX('Irrig Sched'!$AN$9:$AN$39,MATCH(O23,'Irrig Sched'!$AK$9:$AK$39,0)) ->  | P24: =INDEX('Irrig Sched'!$AN$9:$AN$39,MATCH(P23,'Irrig Sched'!$AK$9:$AK$39,0)) ->  | Q24: =INDEX('Irrig Sched'!$AN$9:$AN$39,MATCH(Q23,'Irrig Sched'!$AK$9:$AK$39,0)) ->  | R24: =INDEX('Irrig Sched'!$AN$9:$AN$39,MATCH(R23,'Irrig Sched'!$AK$9:$AK$39,0)) ->  | S24: =INDEX('Irrig Sched'!$AN$9:$AN$39,MATCH(S23,'Irrig Sched'!$AK$9:$AK$39,0)) -> Run | T24: =INDEX('Irrig Sched'!$AN$9:$AN$39,MATCH(T23,'Irrig Sched'!$AK$9:$AK$39,0)) ->  | U24: =INDEX('Irrig Sched'!$AN$9:$AN$39,MATCH(U23,'Irrig Sched'!$AK$9:$AK$39,0)) ->  | V24: =INDEX('Irrig Sched'!$BC$9:$BC$39,MATCH(V23,'Irrig Sched'!$AZ$9:$AZ$39,0)) ->  | W24: =INDEX('Irrig Sched'!$BC$9:$BC$39,MATCH(W23,'Irrig Sched'!$AZ$9:$AZ$39,0)) ->  | X24: =INDEX('Irrig Sched'!$BC$9:$BC$39,MATCH(X23,'Irrig Sched'!$AZ$9:$AZ$39,0)) ->  | Y24: =INDEX('Irrig Sched'!$BC$9:$BC$39,MATCH(Y23,'Irrig Sched'!$AZ$9:$AZ$39,0)) ->  | Z24: =INDEX('Irrig Sched'!$BC$9:$BC$39,MATCH(Z23,'Irrig Sched'!$AZ$9:$AZ$39,0)) ->  | AA24: =INDEX('Irrig Sched'!$BC$9:$BC$39,MATCH(AA23,'Irrig Sched'!$AZ$9:$AZ$39,0)) ->  | AB24: =INDEX('Irrig Sched'!$BC$9:$BC$39,MATCH(AB23,'Irrig Sched'!$AZ$9:$AZ$39,0)) -> 
A25: =IF(AND(YEAR(FebOffset+22)=CalendarYear,MONTH(FebOffset+22)=2),DAY(FebOffset+22),"") -> 1900-01-19 | B25: =IF(AND(YEAR(FebOffset+23)=CalendarYear,MONTH(FebOffset+23)=2),DAY(FebOffset+23),"") -> 1900-01-20 | C25: =IF(AND(YEAR(FebOffset+24)=CalendarYear,MONTH(FebOffset+24)=2),DAY(FebOffset+24),"") -> 1900-01-21 | D25: =IF(AND(YEAR(FebOffset+25)=CalendarYear,MONTH(FebOffset+25)=2),DAY(FebOffset+25),"") -> 1900-01-22 | E25: =IF(AND(YEAR(FebOffset+26)=CalendarYear,MONTH(FebOffset+26)=2),DAY(FebOffset+26),"") -> 1900-01-23 | F25: =IF(AND(YEAR(FebOffset+27)=CalendarYear,MONTH(FebOffset+27)=2),DAY(FebOffset+27),"") -> 1900-01-24 | G25: =IF(AND(YEAR(FebOffset+28)=CalendarYear,MONTH(FebOffset+28)=2),DAY(FebOffset+28),"") -> 1900-01-25 | H25: =IF(AND(YEAR(MayOffset+22)=CalendarYear,MONTH(MayOffset+22)=5),DAY(MayOffset+22),"") -> 1900-01-21 | I25: =IF(AND(YEAR(MayOffset+23)=CalendarYear,MONTH(MayOffset+23)=5),DAY(MayOffset+23),"") -> 1900-01-22 | J25: =IF(AND(YEAR(MayOffset+24)=CalendarYear,MONTH(MayOffset+24)=5),DAY(MayOffset+24),"") -> 1900-01-23 | K25: =IF(AND(YEAR(MayOffset+25)=CalendarYear,MONTH(MayOffset+25)=5),DAY(MayOffset+25),"") -> 1900-01-24 | L25: =IF(AND(YEAR(MayOffset+26)=CalendarYear,MONTH(MayOffset+26)=5),DAY(MayOffset+26),"") -> 1900-01-25 | M25: =IF(AND(YEAR(MayOffset+27)=CalendarYear,MONTH(MayOffset+27)=5),DAY(MayOffset+27),"") -> 1900-01-26 | N25: =IF(AND(YEAR(MayOffset+28)=CalendarYear,MONTH(MayOffset+28)=5),DAY(MayOffset+28),"") -> 1900-01-27 | O25: =IF(AND(YEAR(AugOffset+22)=CalendarYear,MONTH(AugOffset+22)=8),DAY(AugOffset+22),"") -> 1900-01-20 | P25: =IF(AND(YEAR(AugOffset+23)=CalendarYear,MONTH(AugOffset+23)=8),DAY(AugOffset+23),"") -> 1900-01-21 | Q25: =IF(AND(YEAR(AugOffset+24)=CalendarYear,MONTH(AugOffset+24)=8),DAY(AugOffset+24),"") -> 1900-01-22 | R25: =IF(AND(YEAR(AugOffset+25)=CalendarYear,MONTH(AugOffset+25)=8),DAY(AugOffset+25),"") -> 1900-01-23 | S25: =IF(AND(YEAR(AugOffset+26)=CalendarYear,MONTH(AugOffset+26)=8),DAY(AugOffset+26),"") -> 1900-01-24 | T25: =IF(AND(YEAR(AugOffset+27)=CalendarYear,MONTH(AugOffset+27)=8),DAY(AugOffset+27),"") -> 1900-01-25 | U25: =IF(AND(YEAR(AugOffset+28)=CalendarYear,MONTH(AugOffset+28)=8),DAY(AugOffset+28),"") -> 1900-01-26 | V25: =IF(AND(YEAR(NovOffset+22)=CalendarYear,MONTH(NovOffset+22)=11),DAY(NovOffset+22),"") -> 1900-01-19 | W25: =IF(AND(YEAR(NovOffset+23)=CalendarYear,MONTH(NovOffset+23)=11),DAY(NovOffset+23),"") -> 1900-01-20 | X25: =IF(AND(YEAR(NovOffset+24)=CalendarYear,MONTH(NovOffset+24)=11),DAY(NovOffset+24),"") -> 1900-01-21 | Y25: =IF(AND(YEAR(NovOffset+25)=CalendarYear,MONTH(NovOffset+25)=11),DAY(NovOffset+25),"") -> 1900-01-22 | Z25: =IF(AND(YEAR(NovOffset+26)=CalendarYear,MONTH(NovOffset+26)=11),DAY(NovOffset+26),"") -> 1900-01-23 | AA25: =IF(AND(YEAR(NovOffset+27)=CalendarYear,MONTH(NovOffset+27)=11),DAY(NovOffset+27),"") -> 1900-01-24 | AB25: =IF(AND(YEAR(NovOffset+28)=CalendarYear,MONTH(NovOffset+28)=11),DAY(NovOffset+28),"") -> 1900-01-25
A26: =INDEX('Irrig Sched'!$J$9:$J$37,MATCH(A25,'Irrig Sched'!$G$9:$G$37,0)) ->  | B26: =INDEX('Irrig Sched'!$J$9:$J$37,MATCH(B25,'Irrig Sched'!$G$9:$G$37,0)) ->  | C26: =INDEX('Irrig Sched'!$J$9:$J$37,MATCH(C25,'Irrig Sched'!$G$9:$G$37,0)) -> Run | D26: =INDEX('Irrig Sched'!$J$9:$J$37,MATCH(D25,'Irrig Sched'!$G$9:$G$37,0)) ->  | E26: =INDEX('Irrig Sched'!$J$9:$J$37,MATCH(E25,'Irrig Sched'!$G$9:$G$37,0)) ->  | F26: =INDEX('Irrig Sched'!$J$9:$J$37,MATCH(F25,'Irrig Sched'!$G$9:$G$37,0)) ->  | G26: =INDEX('Irrig Sched'!$J$9:$J$37,MATCH(G25,'Irrig Sched'!$G$9:$G$37,0)) ->  | H26: =INDEX('Irrig Sched'!$Y$9:$Y$39,MATCH(H25,'Irrig Sched'!$V$9:$V$39,0)) ->  | I26: =INDEX('Irrig Sched'!$Y$9:$Y$39,MATCH(I25,'Irrig Sched'!$V$9:$V$39,0)) ->  | J26: =INDEX('Irrig Sched'!$Y$9:$Y$39,MATCH(J25,'Irrig Sched'!$V$9:$V$39,0)) -> Run | K26: =INDEX('Irrig Sched'!$Y$9:$Y$39,MATCH(K25,'Irrig Sched'!$V$9:$V$39,0)) ->  | L26: =INDEX('Irrig Sched'!$Y$9:$Y$39,MATCH(L25,'Irrig Sched'!$V$9:$V$39,0)) ->  | M26: =INDEX('Irrig Sched'!$Y$9:$Y$39,MATCH(M25,'Irrig Sched'!$V$9:$V$39,0)) ->  | N26: =INDEX('Irrig Sched'!$Y$9:$Y$39,MATCH(N25,'Irrig Sched'!$V$9:$V$39,0)) -> Run | O26: =INDEX('Irrig Sched'!$AN$9:$AN$39,MATCH(O25,'Irrig Sched'!$AK$9:$AK$39,0)) ->  | P26: =INDEX('Irrig Sched'!$AN$9:$AN$39,MATCH(P25,'Irrig Sched'!$AK$9:$AK$39,0)) ->  | Q26: =INDEX('Irrig Sched'!$AN$9:$AN$39,MATCH(Q25,'Irrig Sched'!$AK$9:$AK$39,0)) -> Run | R26: =INDEX('Irrig Sched'!$AN$9:$AN$39,MATCH(R25,'Irrig Sched'!$AK$9:$AK$39,0)) ->  | S26: =INDEX('Irrig Sched'!$AN$9:$AN$39,MATCH(S25,'Irrig Sched'!$AK$9:$AK$39,0)) ->  | T26: =INDEX('Irrig Sched'!$AN$9:$AN$39,MATCH(T25,'Irrig Sched'!$AK$9:$AK$39,0)) ->  | U26: =INDEX('Irrig Sched'!$AN$9:$AN$39,MATCH(U25,'Irrig Sched'!$AK$9:$AK$39,0)) -> Run | V26: =INDEX('Irrig Sched'!$BC$9:$BC$39,MATCH(V25,'Irrig Sched'!$AZ$9:$AZ$39,0)) ->  | W26: =INDEX('Irrig Sched'!$BC$9:$BC$39,MATCH(W25,'Irrig Sched'!$AZ$9:$AZ$39,0)) ->  | X26: =INDEX('Irrig Sched'!$BC$9:$BC$39,MATCH(X25,'Irrig Sched'!$AZ$9:$AZ$39,0)) ->  | Y26: =INDEX('Irrig Sched'!$BC$9:$BC$39,MATCH(Y25,'Irrig Sched'!$AZ$9:$AZ$39,0)) ->  | Z26: =INDEX('Irrig Sched'!$BC$9:$BC$39,MATCH(Z25,'Irrig Sched'!$AZ$9:$AZ$39,0)) -> Run | AA26: =INDEX('Irrig Sched'!$BC$9:$BC$39,MATCH(AA25,'Irrig Sched'!$AZ$9:$AZ$39,0)) ->  | AB26: =INDEX('Irrig Sched'!$BC$9:$BC$39,MATCH(AB25,'Irrig Sched'!$AZ$9:$AZ$39,0)) -> 
A27: =IF(AND(YEAR(FebOffset+29)=CalendarYear,MONTH(FebOffset+29)=2),DAY(FebOffset+29),"") -> 1900-01-26 | B27: =IF(AND(YEAR(FebOffset+30)=CalendarYear,MONTH(FebOffset+30)=2),DAY(FebOffset+30),"") -> 1900-01-27 | H27: =IF(AND(YEAR(MayOffset+29)=CalendarYear,MONTH(MayOffset+29)=5),DAY(MayOffset+29),"") -> 1900-01-28 | I27: =IF(AND(YEAR(MayOffset+30)=CalendarYear,MONTH(MayOffset+30)=5),DAY(MayOffset+30),"") -> 1900-01-29 | J27: =IF(AND(YEAR(MayOffset+31)=CalendarYear,MONTH(MayOffset+31)=5),DAY(MayOffset+31),"") -> 1900-01-30 | K27: =IF(AND(YEAR(MayOffset+32)=CalendarYear,MONTH(MayOffset+32)=5),DAY(MayOffset+32),"") -> 1900-01-31 | L27: =IF(AND(YEAR(MayOffset+33)=CalendarYear,MONTH(MayOffset+33)=5),DAY(MayOffset+33),"") ->  | M27: =IF(AND(YEAR(MayOffset+34)=CalendarYear,MONTH(MayOffset+34)=5),DAY(MayOffset+34),"") ->  | N27: =IF(AND(YEAR(MayOffset+35)=CalendarYear,MONTH(MayOffset+35)=5),DAY(MayOffset+35),"") ->  | O27: =IF(AND(YEAR(AugOffset+29)=CalendarYear,MONTH(AugOffset+29)=8),DAY(AugOffset+29),"") -> 1900-01-27 | P27: =IF(AND(YEAR(AugOffset+30)=CalendarYear,MONTH(AugOffset+30)=8),DAY(AugOffset+30),"") -> 1900-01-28 | Q27: =IF(AND(YEAR(AugOffset+31)=CalendarYear,MONTH(AugOffset+31)=8),DAY(AugOffset+31),"") -> 1900-01-29 | R27: =IF(AND(YEAR(AugOffset+32)=CalendarYear,MONTH(AugOffset+32)=8),DAY(AugOffset+32),"") -> 1900-01-30 | S27: =IF(AND(YEAR(AugOffset+33)=CalendarYear,MONTH(AugOffset+33)=8),DAY(AugOffset+33),"") -> 1900-01-31 | T27: =IF(AND(YEAR(AugOffset+34)=CalendarYear,MONTH(AugOffset+34)=8),DAY(AugOffset+34),"") ->  | U27: =IF(AND(YEAR(AugOffset+35)=CalendarYear,MONTH(AugOffset+35)=8),DAY(AugOffset+35),"") ->  | V27: =IF(AND(YEAR(NovOffset+29)=CalendarYear,MONTH(NovOffset+29)=11),DAY(NovOffset+29),"") -> 1900-01-26 | W27: =IF(AND(YEAR(NovOffset+30)=CalendarYear,MONTH(NovOffset+30)=11),DAY(NovOffset+30),"") -> 1900-01-27 | X27: =IF(AND(YEAR(NovOffset+31)=CalendarYear,MONTH(NovOffset+31)=11),DAY(NovOffset+31),"") -> 1900-01-28 | Y27: =IF(AND(YEAR(NovOffset+32)=CalendarYear,MONTH(NovOffset+32)=11),DAY(NovOffset+32),"") -> 1900-01-29 | Z27: =IF(AND(YEAR(NovOffset+33)=CalendarYear,MONTH(NovOffset+33)=11),DAY(NovOffset+33),"") -> 1900-01-30 | AA27: =IF(AND(YEAR(NovOffset+34)=CalendarYear,MONTH(NovOffset+34)=11),DAY(NovOffset+34),"") ->  | AB27: =IF(AND(YEAR(NovOffset+35)=CalendarYear,MONTH(NovOffset+35)=11),DAY(NovOffset+35),"") -> 
A28: =IF(A27="","",INDEX('Irrig Sched'!$J$9:$J$37,MATCH(A27,'Irrig Sched'!$G$9:$G$37,0))) ->  | B28: =IF(B27="","",INDEX('Irrig Sched'!$J$9:$J$37,MATCH(B27,'Irrig Sched'!$G$9:$G$37,0))) ->  | H28: =IF(H27="","",INDEX('Irrig Sched'!$Y$9:$Y$39,MATCH(H27,'Irrig Sched'!$V$9:$V$39,0))) ->  | I28: =IF(I27="","",INDEX('Irrig Sched'!$Y$9:$Y$39,MATCH(I27,'Irrig Sched'!$V$9:$V$39,0))) ->  | J28: =IF(J27="","",INDEX('Irrig Sched'!$Y$9:$Y$39,MATCH(J27,'Irrig Sched'!$V$9:$V$39,0))) ->  | K28: =IF(K27="","",INDEX('Irrig Sched'!$Y$9:$Y$39,MATCH(K27,'Irrig Sched'!$V$9:$V$39,0))) ->  | L28: =IF(L27="","",INDEX('Irrig Sched'!$Y$9:$Y$39,MATCH(L27,'Irrig Sched'!$V$9:$V$39,0))) ->  | M28: =IF(M27="","",INDEX('Irrig Sched'!$Y$9:$Y$39,MATCH(M27,'Irrig Sched'!$V$9:$V$39,0))) ->  | N28: =IF(N27="","",INDEX('Irrig Sched'!$Y$9:$Y$39,MATCH(N27,'Irrig Sched'!$V$9:$V$39,0))) ->  | O28: =IF(O27="","",INDEX('Irrig Sched'!$AN$9:$AN$39,MATCH(O27,'Irrig Sched'!$AK$9:$AK$39,0))) ->  | P28: =IF(P27="","",INDEX('Irrig Sched'!$AN$9:$AN$39,MATCH(P27,'Irrig Sched'!$AK$9:$AK$39,0))) ->  | Q28: =IF(Q27="","",INDEX('Irrig Sched'!$AN$9:$AN$39,MATCH(Q27,'Irrig Sched'!$AK$9:$AK$39,0))) -> Run | R28: =IF(R27="","",INDEX('Irrig Sched'!$AN$9:$AN$39,MATCH(R27,'Irrig Sched'!$AK$9:$AK$39,0))) ->  | S28: =IF(S27="","",INDEX('Irrig Sched'!$AN$9:$AN$39,MATCH(S27,'Irrig Sched'!$AK$9:$AK$39,0))) ->  | T28: =IF(T27="","",INDEX('Irrig Sched'!$AN$9:$AN$39,MATCH(T27,'Irrig Sched'!$AK$9:$AK$39,0))) ->  | U28: =IF(U27="","",INDEX('Irrig Sched'!$AN$9:$AN$39,MATCH(U27,'Irrig Sched'!$AK$9:$AK$39,0))) ->  | V28: =IF(V27="","",INDEX('Irrig Sched'!$BC$9:$BC$39,MATCH(V27,'Irrig Sched'!$AZ$9:$AZ$39,0))) ->  | W28: =IF(W27="","",INDEX('Irrig Sched'!$BC$9:$BC$39,MATCH(W27,'Irrig Sched'!$AZ$9:$AZ$39,0))) ->  | X28: =IF(X27="","",INDEX('Irrig Sched'!$BC$9:$BC$39,MATCH(X27,'Irrig Sched'!$AZ$9:$AZ$39,0))) ->  | Y28: =IF(Y27="","",INDEX('Irrig Sched'!$BC$9:$BC$39,MATCH(Y27,'Irrig Sched'!$AZ$9:$AZ$39,0))) ->  | Z28: =IF(Z27="","",INDEX('Irrig Sched'!$BC$9:$BC$39,MATCH(Z27,'Irrig Sched'!$AZ$9:$AZ$39,0))) ->  | AA28: =IF(AA27="","",INDEX('Irrig Sched'!$BC$9:$BC$39,MATCH(AA27,'Irrig Sched'!$AZ$9:$AZ$39,0))) ->  | AB28: =IF(AB27="","",INDEX('Irrig Sched'!$BC$9:$BC$39,MATCH(AB27,'Irrig Sched'!$AZ$9:$AZ$39,0))) -> 
H29: =IF(AND(YEAR(MayOffset+36)=CalendarYear,MONTH(MayOffset+36)=5),DAY(MayOffset+36),"") ->  | I29: =IF(AND(YEAR(MayOffset+37)=CalendarYear,MONTH(MayOffset+37)=5),DAY(MayOffset+37),"") ->  | O29: =IF(AND(YEAR(AugOffset+36)=CalendarYear,MONTH(AugOffset+36)=8),DAY(AugOffset+36),"") ->  | P29: =IF(AND(YEAR(AugOffset+37)=CalendarYear,MONTH(AugOffset+37)=8),DAY(AugOffset+37),"") ->  | V29: =IF(AND(YEAR(NovOffset+36)=CalendarYear,MONTH(NovOffset+36)=11),DAY(NovOffset+36),"") ->  | W29: =IF(AND(YEAR(NovOffset+37)=CalendarYear,MONTH(NovOffset+37)=11),DAY(NovOffset+37),"") -> 
H30: =IF(H29="","",INDEX('Irrig Sched'!$Y$9:$Y$39,MATCH(H29,'Irrig Sched'!$V$9:$V$39,0))) ->  | I30: =IF(I29="","",INDEX('Irrig Sched'!$Y$9:$Y$39,MATCH(I29,'Irrig Sched'!$V$9:$V$39,0))) ->  | O30: =IF(O29="","",INDEX('Irrig Sched'!$AN$9:$AN$39,MATCH(O29,'Irrig Sched'!$AK$9:$AK$39,0))) ->  | P30: =IF(P29="","",INDEX('Irrig Sched'!$AN$9:$AN$39,MATCH(P29,'Irrig Sched'!$AK$9:$AK$39,0))) ->  | V30: =IF(V29="","",INDEX('Irrig Sched'!$BC$9:$BC$39,MATCH(V29,'Irrig Sched'!$AZ$9:$AZ$39,0))) ->  | W30: =IF(W29="","",INDEX('Irrig Sched'!$BC$9:$BC$39,MATCH(W29,'Irrig Sched'!$AZ$9:$AZ$39,0))) -> 
A32: =CONCATENATE("March ",Irrig_Year) -> March 2017 | H32: =CONCATENATE("June ",Irrig_Year) -> June 2017 | O32: =CONCATENATE("September ",Irrig_Year) -> September 2017 | V32: =CONCATENATE("December ",Irrig_Year) -> December 2017
A33: SUNDAY | B33: MONDAY | C33: TUESDAY | D33: WEDNESDAY | E33: THURSDAY | F33: FRIDAY | G33: SATURDAY | H33: SUNDAY | I33: MONDAY | J33: TUESDAY | K33: WEDNESDAY | L33: THURSDAY | M33: FRIDAY | N33: SATURDAY | O33: SUNDAY | P33: MONDAY | Q33: TUESDAY | R33: WEDNESDAY | S33: THURSDAY | T33: FRIDAY | U33: SATURDAY | V33: SUNDAY | W33: MONDAY | X33: TUESDAY | Y33: WEDNESDAY | Z33: THURSDAY | AA33: FRIDAY | AB33: SATURDAY
A34: =IF(AND(YEAR(MarOffset+1)=CalendarYear,MONTH(MarOffset+1)=3),DAY(MarOffset+1),"") ->  | B34: =IF(AND(YEAR(MarOffset+2)=CalendarYear,MONTH(MarOffset+2)=3),DAY(MarOffset+2),"") ->  | C34: =IF(AND(YEAR(MarOffset+3)=CalendarYear,MONTH(MarOffset+3)=3),DAY(MarOffset+3),"") ->  | D34: =IF(AND(YEAR(MarOffset+4)=CalendarYear,MONTH(MarOffset+4)=3),DAY(MarOffset+4),"") -> 1900-01-01 | E34: =IF(AND(YEAR(MarOffset+5)=CalendarYear,MONTH(MarOffset+5)=3),DAY(MarOffset+5),"") -> 1900-01-02 | F34: =IF(AND(YEAR(MarOffset+6)=CalendarYear,MONTH(MarOffset+6)=3),DAY(MarOffset+6),"") -> 1900-01-03 | G34: =IF(AND(YEAR(MarOffset+7)=CalendarYear,MONTH(MarOffset+7)=3),DAY(MarOffset+7),"") -> 1900-01-04 | H34: =IF(AND(YEAR(JunOffset+1)=CalendarYear,MONTH(JunOffset+1)=6),DAY(JunOffset+1),"") ->  | I34: =IF(AND(YEAR(JunOffset+2)=CalendarYear,MONTH(JunOffset+2)=6),DAY(JunOffset+2),"") ->  | J34: =IF(AND(YEAR(JunOffset+3)=CalendarYear,MONTH(JunOffset+3)=6),DAY(JunOffset+3),"") ->  | K34: =IF(AND(YEAR(JunOffset+4)=CalendarYear,MONTH(JunOffset+4)=6),DAY(JunOffset+4),"") ->  | L34: =IF(AND(YEAR(JunOffset+5)=CalendarYear,MONTH(JunOffset+5)=6),DAY(JunOffset+5),"") -> 1900-01-01 | M34: =IF(AND(YEAR(JunOffset+6)=CalendarYear,MONTH(JunOffset+6)=6),DAY(JunOffset+6),"") -> 1900-01-02 | N34: =IF(AND(YEAR(JunOffset+7)=CalendarYear,MONTH(JunOffset+7)=6),DAY(JunOffset+7),"") -> 1900-01-03 | O34: =IF(AND(YEAR(SepOffset+1)=CalendarYear,MONTH(SepOffset+1)=9),DAY(SepOffset+1),"") ->  | P34: =IF(AND(YEAR(SepOffset+2)=CalendarYear,MONTH(SepOffset+2)=9),DAY(SepOffset+2),"") ->  | Q34: =IF(AND(YEAR(SepOffset+3)=CalendarYear,MONTH(SepOffset+3)=9),DAY(SepOffset+3),"") ->  | R34: =IF(AND(YEAR(SepOffset+1)=CalendarYear,MONTH(SepOffset+4)=9),DAY(SepOffset+4),"") ->  | S34: =IF(AND(YEAR(SepOffset+5)=CalendarYear,MONTH(SepOffset+5)=9),DAY(SepOffset+5),"") ->  | T34: =IF(AND(YEAR(SepOffset+1)=CalendarYear,MONTH(SepOffset+6)=9),DAY(SepOffset+6),"") -> 1900-01-01 | U34: =IF(AND(YEAR(SepOffset+7)=CalendarYear,MONTH(SepOffset+7)=9),DAY(SepOffset+7),"") -> 1900-01-02 | V34: =IF(AND(YEAR(DecOffset+1)=CalendarYear,MONTH(DecOffset+1)=12),DAY(DecOffset+1),"") ->  | W34: =IF(AND(YEAR(DecOffset+2)=CalendarYear,MONTH(DecOffset+2)=12),DAY(DecOffset+2),"") ->  | X34: =IF(AND(YEAR(DecOffset+3)=CalendarYear,MONTH(DecOffset+3)=12),DAY(DecOffset+3),"") ->  | Y34: =IF(AND(YEAR(DecOffset+4)=CalendarYear,MONTH(DecOffset+4)=12),DAY(DecOffset+4),"") ->  | Z34: =IF(AND(YEAR(DecOffset+5)=CalendarYear,MONTH(DecOffset+5)=12),DAY(DecOffset+5),"") ->  | AA34: =IF(AND(YEAR(DecOffset+6)=CalendarYear,MONTH(DecOffset+6)=12),DAY(DecOffset+6),"") -> 1900-01-01 | AB34: =IF(AND(YEAR(DecOffset+7)=CalendarYear,MONTH(DecOffset+7)=12),DAY(DecOffset+7),"") -> 1900-01-02
A35: =IF(A34="","",INDEX('Irrig Sched'!$O$9:$O$39,MATCH(A34,'Irrig Sched'!$L$9:$L$39,0))) ->  | B35: =IF(B34="","",INDEX('Irrig Sched'!$O$9:$O$39,MATCH(B34,'Irrig Sched'!$L$9:$L$39,0))) ->  | C35: =IF(C34="","",INDEX('Irrig Sched'!$O$9:$O$39,MATCH(C34,'Irrig Sched'!$L$9:$L$39,0))) ->  | D35: =IF(D34="","",INDEX('Irrig Sched'!$O$9:$O$39,MATCH(D34,'Irrig Sched'!$L$9:$L$39,0))) ->  | E35: =IF(E34="","",INDEX('Irrig Sched'!$O$9:$O$39,MATCH(E34,'Irrig Sched'!$L$9:$L$39,0))) ->  | F35: =IF(F34="","",INDEX('Irrig Sched'!$O$9:$O$39,MATCH(F34,'Irrig Sched'!$L$9:$L$39,0))) ->  | G35: =IF(G34="","",INDEX('Irrig Sched'!$O$9:$O$39,MATCH(G34,'Irrig Sched'!$L$9:$L$39,0))) ->  | H35: =IF(H34="","",INDEX('Irrig Sched'!$AD$9:$AD$39,MATCH(H34,'Irrig Sched'!$AA$9:$AA$39,0))) ->  | I35: =IF(I34="","",INDEX('Irrig Sched'!$AD$9:$AD$39,MATCH(I34,'Irrig Sched'!$AA$9:$AA$39,0))) ->  | J35: =IF(J34="","",INDEX('Irrig Sched'!$AD$9:$AD$39,MATCH(J34,'Irrig Sched'!$AA$9:$AA$39,0))) ->  | K35: =IF(K34="","",INDEX('Irrig Sched'!$AD$9:$AD$39,MATCH(K34,'Irrig Sched'!$AA$9:$AA$39,0))) ->  | L35: =IF(L34="","",INDEX('Irrig Sched'!$AD$9:$AD$39,MATCH(L34,'Irrig Sched'!$AA$9:$AA$39,0))) -> Run | M35: =IF(M34="","",INDEX('Irrig Sched'!$AD$9:$AD$39,MATCH(M34,'Irrig Sched'!$AA$9:$AA$39,0))) ->  | N35: =IF(N34="","",INDEX('Irrig Sched'!$AD$9:$AD$39,MATCH(N34,'Irrig Sched'!$AA$9:$AA$39,0))) ->  | O35: =IF(O34="","",INDEX('Irrig Sched'!$AS$9:$AS$39,MATCH(O34,'Irrig Sched'!$AP$9:$AP$39,0))) ->  | P35: =IF(P34="","",INDEX('Irrig Sched'!$AS$9:$AS$39,MATCH(P34,'Irrig Sched'!$AP$9:$AP$39,0))) ->  | Q35: =IF(Q34="","",INDEX('Irrig Sched'!$AS$9:$AS$39,MATCH(Q34,'Irrig Sched'!$AP$9:$AP$39,0))) ->  | R35: =IF(R34="","",INDEX('Irrig Sched'!$AS$9:$AS$39,MATCH(R34,'Irrig Sched'!$AP$9:$AP$39,0))) ->  | S35: =IF(S34="","",INDEX('Irrig Sched'!$AS$9:$AS$39,MATCH(S34,'Irrig Sched'!$AP$9:$AP$39,0))) ->  | T35: =IF(T34="","",INDEX('Irrig Sched'!$AS$9:$AS$39,MATCH(T34,'Irrig Sched'!$AP$9:$AP$39,0))) ->  | U35: =IF(U34="","",INDEX('Irrig Sched'!$AS$9:$AS$39,MATCH(U34,'Irrig Sched'!$AP$9:$AP$39,0))) ->  | V35: =IF(V34="","",INDEX('Irrig Sched'!$BH$9:$BH$39,MATCH(V34,'Irrig Sched'!$BE$9:$BE$39,0))) ->  | W35: =IF(W34="","",INDEX('Irrig Sched'!$BH$9:$BH$39,MATCH(W34,'Irrig Sched'!$BE$9:$BE$39,0))) ->  | X35: =IF(X34="","",INDEX('Irrig Sched'!$BH$9:$BH$39,MATCH(X34,'Irrig Sched'!$BE$9:$BE$39,0))) ->  | Y35: =IF(Y34="","",INDEX('Irrig Sched'!$BH$9:$BH$39,MATCH(Y34,'Irrig Sched'!$BE$9:$BE$39,0))) ->  | Z35: =IF(Z34="","",INDEX('Irrig Sched'!$BH$9:$BH$39,MATCH(Z34,'Irrig Sched'!$BE$9:$BE$39,0))) ->  | AA35: =IF(AA34="","",INDEX('Irrig Sched'!$BH$9:$BH$39,MATCH(AA34,'Irrig Sched'!$BE$9:$BE$39,0))) ->  | AB35: =IF(AB34="","",INDEX('Irrig Sched'!$BH$9:$BH$39,MATCH(AB34,'Irrig Sched'!$BE$9:$BE$39,0))) -> 
A36: =IF(AND(YEAR(MarOffset+8)=CalendarYear,MONTH(MarOffset+8)=3),DAY(MarOffset+8),"") -> 1900-01-05 | B36: =IF(AND(YEAR(MarOffset+9)=CalendarYear,MONTH(MarOffset+9)=3),DAY(MarOffset+9),"") -> 1900-01-06 | C36: =IF(AND(YEAR(MarOffset+10)=CalendarYear,MONTH(MarOffset+10)=3),DAY(MarOffset+10),"") -> 1900-01-07 | D36: =IF(AND(YEAR(MarOffset+11)=CalendarYear,MONTH(MarOffset+11)=3),DAY(MarOffset+11),"") -> 1900-01-08 | E36: =IF(AND(YEAR(MarOffset+12)=CalendarYear,MONTH(MarOffset+12)=3),DAY(MarOffset+12),"") -> 1900-01-09 | F36: =IF(AND(YEAR(MarOffset+13)=CalendarYear,MONTH(MarOffset+13)=3),DAY(MarOffset+13),"") -> 1900-01-10 | G36: =IF(AND(YEAR(MarOffset+14)=CalendarYear,MONTH(MarOffset+14)=3),DAY(MarOffset+14),"") -> 1900-01-11 | H36: =IF(AND(YEAR(JunOffset+8)=CalendarYear,MONTH(JunOffset+8)=6),DAY(JunOffset+8),"") -> 1900-01-04 | I36: =IF(AND(YEAR(JunOffset+9)=CalendarYear,MONTH(JunOffset+9)=6),DAY(JunOffset+9),"") -> 1900-01-05 | J36: =IF(AND(YEAR(JunOffset+10)=CalendarYear,MONTH(JunOffset+10)=6),DAY(JunOffset+10),"") -> 1900-01-06 | K36: =IF(AND(YEAR(JunOffset+11)=CalendarYear,MONTH(JunOffset+11)=6),DAY(JunOffset+11),"") -> 1900-01-07 | L36: =IF(AND(YEAR(JunOffset+12)=CalendarYear,MONTH(JunOffset+12)=6),DAY(JunOffset+12),"") -> 1900-01-08 | M36: =IF(AND(YEAR(JunOffset+13)=CalendarYear,MONTH(JunOffset+13)=6),DAY(JunOffset+13),"") -> 1900-01-09 | N36: =IF(AND(YEAR(JunOffset+14)=CalendarYear,MONTH(JunOffset+14)=6),DAY(JunOffset+14),"") -> 1900-01-10 | O36: =IF(AND(YEAR(SepOffset+8)=CalendarYear,MONTH(SepOffset+8)=9),DAY(SepOffset+8),"") -> 1900-01-03 | P36: =IF(AND(YEAR(SepOffset+9)=CalendarYear,MONTH(SepOffset+9)=9),DAY(SepOffset+9),"") -> 1900-01-04 | Q36: =IF(AND(YEAR(SepOffset+10)=CalendarYear,MONTH(SepOffset+10)=9),DAY(SepOffset+10),"") -> 1900-01-05 | R36: =IF(AND(YEAR(SepOffset+11)=CalendarYear,MONTH(SepOffset+11)=9),DAY(SepOffset+11),"") -> 1900-01-06 | S36: =IF(AND(YEAR(SepOffset+12)=CalendarYear,MONTH(SepOffset+12)=9),DAY(SepOffset+12),"") -> 1900-01-07 | T36: =IF(AND(YEAR(SepOffset+13)=CalendarYear,MONTH(SepOffset+13)=9),DAY(SepOffset+13),"") -> 1900-01-08 | U36: =IF(AND(YEAR(SepOffset+14)=CalendarYear,MONTH(SepOffset+14)=9),DAY(SepOffset+14),"") -> 1900-01-09 | V36: =IF(AND(YEAR(DecOffset+8)=CalendarYear,MONTH(DecOffset+8)=12),DAY(DecOffset+8),"") -> 1900-01-03 | W36: =IF(AND(YEAR(DecOffset+9)=CalendarYear,MONTH(DecOffset+9)=12),DAY(DecOffset+9),"") -> 1900-01-04 | X36: =IF(AND(YEAR(DecOffset+10)=CalendarYear,MONTH(DecOffset+10)=12),DAY(DecOffset+10),"") -> 1900-01-05 | Y36: =IF(AND(YEAR(DecOffset+11)=CalendarYear,MONTH(DecOffset+11)=12),DAY(DecOffset+11),"") -> 1900-01-06 | Z36: =IF(AND(YEAR(DecOffset+12)=CalendarYear,MONTH(DecOffset+12)=12),DAY(DecOffset+12),"") -> 1900-01-07 | AA36: =IF(AND(YEAR(DecOffset+13)=CalendarYear,MONTH(DecOffset+13)=12),DAY(DecOffset+13),"") -> 1900-01-08 | AB36: =IF(AND(YEAR(DecOffset+14)=CalendarYear,MONTH(DecOffset+14)=12),DAY(DecOffset+14),"") -> 1900-01-09
A37: =INDEX('Irrig Sched'!$O$9:$O$39,MATCH(A36,'Irrig Sched'!$L$9:$L$39,0)) ->  | B37: =INDEX('Irrig Sched'!$O$9:$O$39,MATCH(B36,'Irrig Sched'!$L$9:$L$39,0)) ->  | C37: =INDEX('Irrig Sched'!$O$9:$O$39,MATCH(C36,'Irrig Sched'!$L$9:$L$39,0)) -> Run | D37: =INDEX('Irrig Sched'!$O$9:$O$39,MATCH(D36,'Irrig Sched'!$L$9:$L$39,0)) ->  | E37: =INDEX('Irrig Sched'!$O$9:$O$39,MATCH(E36,'Irrig Sched'!$L$9:$L$39,0)) ->  | F37: =INDEX('Irrig Sched'!$O$9:$O$39,MATCH(F36,'Irrig Sched'!$L$9:$L$39,0)) ->  | G37: =INDEX('Irrig Sched'!$O$9:$O$39,MATCH(G36,'Irrig Sched'!$L$9:$L$39,0)) ->  | H37: =INDEX('Irrig Sched'!$AD$9:$AD$39,MATCH(H36,'Irrig Sched'!$AA$9:$AA$39,0)) ->  | I37: =INDEX('Irrig Sched'!$AD$9:$AD$39,MATCH(I36,'Irrig Sched'!$AA$9:$AA$39,0)) ->  | J37: =INDEX('Irrig Sched'!$AD$9:$AD$39,MATCH(J36,'Irrig Sched'!$AA$9:$AA$39,0)) -> Run | K37: =INDEX('Irrig Sched'!$AD$9:$AD$39,MATCH(K36,'Irrig Sched'!$AA$9:$AA$39,0)) ->  | L37: =INDEX('Irrig Sched'!$AD$9:$AD$39,MATCH(L36,'Irrig Sched'!$AA$9:$AA$39,0)) -> Run | M37: =INDEX('Irrig Sched'!$AD$9:$AD$39,MATCH(M36,'Irrig Sched'!$AA$9:$AA$39,0)) ->  | N37: =INDEX('Irrig Sched'!$AD$9:$AD$39,MATCH(N36,'Irrig Sched'!$AA$9:$AA$39,0)) ->  | O37: =INDEX('Irrig Sched'!$AS$9:$AS$39,MATCH(O36,'Irrig Sched'!$AP$9:$AP$39,0)) ->  | P37: =INDEX('Irrig Sched'!$AS$9:$AS$39,MATCH(P36,'Irrig Sched'!$AP$9:$AP$39,0)) ->  | Q37: =INDEX('Irrig Sched'!$AS$9:$AS$39,MATCH(Q36,'Irrig Sched'!$AP$9:$AP$39,0)) -> Run | R37: =INDEX('Irrig Sched'!$AS$9:$AS$39,MATCH(R36,'Irrig Sched'!$AP$9:$AP$39,0)) ->  | S37: =INDEX('Irrig Sched'!$AS$9:$AS$39,MATCH(S36,'Irrig Sched'!$AP$9:$AP$39,0)) ->  | T37: =INDEX('Irrig Sched'!$AS$9:$AS$39,MATCH(T36,'Irrig Sched'!$AP$9:$AP$39,0)) ->  | U37: =INDEX('Irrig Sched'!$AS$9:$AS$39,MATCH(U36,'Irrig Sched'!$AP$9:$AP$39,0)) -> Run | V37: =INDEX('Irrig Sched'!$BH$9:$BH$39,MATCH(V36,'Irrig Sched'!$BE$9:$BE$39,0)) ->  | W37: =INDEX('Irrig Sched'!$BH$9:$BH$39,MATCH(W36,'Irrig Sched'!$BE$9:$BE$39,0)) ->  | X37: =INDEX('Irrig Sched'!$BH$9:$BH$39,MATCH(X36,'Irrig Sched'!$BE$9:$BE$39,0)) ->  | Y37: =INDEX('Irrig Sched'!$BH$9:$BH$39,MATCH(Y36,'Irrig Sched'!$BE$9:$BE$39,0)) ->  | Z37: =INDEX('Irrig Sched'!$BH$9:$BH$39,MATCH(Z36,'Irrig Sched'!$BE$9:$BE$39,0)) ->  | AA37: =INDEX('Irrig Sched'!$BH$9:$BH$39,MATCH(AA36,'Irrig Sched'!$BE$9:$BE$39,0)) ->  | AB37: =INDEX('Irrig Sched'!$BH$9:$BH$39,MATCH(AB36,'Irrig Sched'!$BE$9:$BE$39,0)) -> 
A38: =IF(AND(YEAR(MarOffset+15)=CalendarYear,MONTH(MarOffset+15)=3),DAY(MarOffset+15),"") -> 1900-01-12 | B38: =IF(AND(YEAR(MarOffset+16)=CalendarYear,MONTH(MarOffset+16)=3),DAY(MarOffset+16),"") -> 1900-01-13 | C38: =IF(AND(YEAR(MarOffset+17)=CalendarYear,MONTH(MarOffset+17)=3),DAY(MarOffset+17),"") -> 1900-01-14 | D38: =IF(AND(YEAR(MarOffset+18)=CalendarYear,MONTH(MarOffset+18)=3),DAY(MarOffset+18),"") -> 1900-01-15 | E38: =IF(AND(YEAR(MarOffset+19)=CalendarYear,MONTH(MarOffset+19)=3),DAY(MarOffset+19),"") -> 1900-01-16 | F38: =IF(AND(YEAR(MarOffset+20)=CalendarYear,MONTH(MarOffset+20)=3),DAY(MarOffset+20),"") -> 1900-01-17 | G38: =IF(AND(YEAR(MarOffset+21)=CalendarYear,MONTH(MarOffset+21)=3),DAY(MarOffset+21),"") -> 1900-01-18 | H38: =IF(AND(YEAR(JunOffset+15)=CalendarYear,MONTH(JunOffset+15)=6),DAY(JunOffset+15),"") -> 1900-01-11 | I38: =IF(AND(YEAR(JunOffset+16)=CalendarYear,MONTH(JunOffset+16)=6),DAY(JunOffset+16),"") -> 1900-01-12 | J38: =IF(AND(YEAR(JunOffset+17)=CalendarYear,MONTH(JunOffset+17)=6),DAY(JunOffset+17),"") -> 1900-01-13 | K38: =IF(AND(YEAR(JunOffset+18)=CalendarYear,MONTH(JunOffset+18)=6),DAY(JunOffset+18),"") -> 1900-01-14 | L38: =IF(AND(YEAR(JunOffset+19)=CalendarYear,MONTH(JunOffset+19)=6),DAY(JunOffset+19),"") -> 1900-01-15 | M38: =IF(AND(YEAR(JunOffset+20)=CalendarYear,MONTH(JunOffset+20)=6),DAY(JunOffset+20),"") -> 1900-01-16 | N38: =IF(AND(YEAR(JunOffset+21)=CalendarYear,MONTH(JunOffset+21)=6),DAY(JunOffset+21),"") -> 1900-01-17 | O38: =IF(AND(YEAR(SepOffset+15)=CalendarYear,MONTH(SepOffset+15)=9),DAY(SepOffset+15),"") -> 1900-01-10 | P38: =IF(AND(YEAR(SepOffset+16)=CalendarYear,MONTH(SepOffset+16)=9),DAY(SepOffset+16),"") -> 1900-01-11 | Q38: =IF(AND(YEAR(SepOffset+17)=CalendarYear,MONTH(SepOffset+17)=9),DAY(SepOffset+17),"") -> 1900-01-12 | R38: =IF(AND(YEAR(SepOffset+18)=CalendarYear,MONTH(SepOffset+18)=9),DAY(SepOffset+18),"") -> 1900-01-13 | S38: =IF(AND(YEAR(SepOffset+19)=CalendarYear,MONTH(SepOffset+19)=9),DAY(SepOffset+19),"") -> 1900-01-14 | T38: =IF(AND(YEAR(SepOffset+20)=CalendarYear,MONTH(SepOffset+20)=9),DAY(SepOffset+20),"") -> 1900-01-15 | U38: =IF(AND(YEAR(SepOffset+21)=CalendarYear,MONTH(SepOffset+21)=9),DAY(SepOffset+21),"") -> 1900-01-16 | V38: =IF(AND(YEAR(DecOffset+15)=CalendarYear,MONTH(DecOffset+15)=12),DAY(DecOffset+15),"") -> 1900-01-10 | W38: =IF(AND(YEAR(DecOffset+16)=CalendarYear,MONTH(DecOffset+16)=12),DAY(DecOffset+16),"") -> 1900-01-11 | X38: =IF(AND(YEAR(DecOffset+17)=CalendarYear,MONTH(DecOffset+17)=12),DAY(DecOffset+17),"") -> 1900-01-12 | Y38: =IF(AND(YEAR(DecOffset+18)=CalendarYear,MONTH(DecOffset+18)=12),DAY(DecOffset+18),"") -> 1900-01-13 | Z38: =IF(AND(YEAR(DecOffset+19)=CalendarYear,MONTH(DecOffset+19)=12),DAY(DecOffset+19),"") -> 1900-01-14 | AA38: =IF(AND(YEAR(DecOffset+20)=CalendarYear,MONTH(DecOffset+20)=12),DAY(DecOffset+20),"") -> 1900-01-15 | AB38: =IF(AND(YEAR(DecOffset+21)=CalendarYear,MONTH(DecOffset+21)=12),DAY(DecOffset+21),"") -> 1900-01-16
A39: =INDEX('Irrig Sched'!$O$9:$O$39,MATCH(A38,'Irrig Sched'!$L$9:$L$39,0)) ->  | B39: =INDEX('Irrig Sched'!$O$9:$O$39,MATCH(B38,'Irrig Sched'!$L$9:$L$39,0)) ->  | C39: =INDEX('Irrig Sched'!$O$9:$O$39,MATCH(C38,'Irrig Sched'!$L$9:$L$39,0)) -> Run | D39: =INDEX('Irrig Sched'!$O$9:$O$39,MATCH(D38,'Irrig Sched'!$L$9:$L$39,0)) ->  | E39: =INDEX('Irrig Sched'!$O$9:$O$39,MATCH(E38,'Irrig Sched'!$L$9:$L$39,0)) ->  | F39: =INDEX('Irrig Sched'!$O$9:$O$39,MATCH(F38,'Irrig Sched'!$L$9:$L$39,0)) ->  | G39: =INDEX('Irrig Sched'!$O$9:$O$39,MATCH(G38,'Irrig Sched'!$L$9:$L$39,0)) ->  | H39: =INDEX('Irrig Sched'!$AD$9:$AD$39,MATCH(H38,'Irrig Sched'!$AA$9:$AA$39,0)) ->  | I39: =INDEX('Irrig Sched'!$AD$9:$AD$39,MATCH(I38,'Irrig Sched'!$AA$9:$AA$39,0)) ->  | J39: =INDEX('Irrig Sched'!$AD$9:$AD$39,MATCH(J38,'Irrig Sched'!$AA$9:$AA$39,0)) -> Run | K39: =INDEX('Irrig Sched'!$AD$9:$AD$39,MATCH(K38,'Irrig Sched'!$AA$9:$AA$39,0)) ->  | L39: =INDEX('Irrig Sched'!$AD$9:$AD$39,MATCH(L38,'Irrig Sched'!$AA$9:$AA$39,0)) ->  | M39: =INDEX('Irrig Sched'!$AD$9:$AD$39,MATCH(M38,'Irrig Sched'!$AA$9:$AA$39,0)) ->  | N39: =INDEX('Irrig Sched'!$AD$9:$AD$39,MATCH(N38,'Irrig Sched'!$AA$9:$AA$39,0)) -> Run | O39: =INDEX('Irrig Sched'!$AS$9:$AS$39,MATCH(O38,'Irrig Sched'!$AP$9:$AP$39,0)) ->  | P39: =INDEX('Irrig Sched'!$AS$9:$AS$39,MATCH(P38,'Irrig Sched'!$AP$9:$AP$39,0)) ->  | Q39: =INDEX('Irrig Sched'!$AS$9:$AS$39,MATCH(Q38,'Irrig Sched'!$AP$9:$AP$39,0)) ->  | R39: =INDEX('Irrig Sched'!$AS$9:$AS$39,MATCH(R38,'Irrig Sched'!$AP$9:$AP$39,0)) ->  | S39: =INDEX('Irrig Sched'!$AS$9:$AS$39,MATCH(S38,'Irrig Sched'!$AP$9:$AP$39,0)) -> Run | T39: =INDEX('Irrig Sched'!$AS$9:$AS$39,MATCH(T38,'Irrig Sched'!$AP$9:$AP$39,0)) ->  | U39: =INDEX('Irrig Sched'!$AS$9:$AS$39,MATCH(U38,'Irrig Sched'!$AP$9:$AP$39,0)) ->  | V39: =INDEX('Irrig Sched'!$BH$9:$BH$39,MATCH(V38,'Irrig Sched'!$BE$9:$BE$39,0)) ->  | W39: =INDEX('Irrig Sched'!$BH$9:$BH$39,MATCH(W38,'Irrig Sched'!$BE$9:$BE$39,0)) ->  | X39: =INDEX('Irrig Sched'!$BH$9:$BH$39,MATCH(X38,'Irrig Sched'!$BE$9:$BE$39,0)) ->  | Y39: =INDEX('Irrig Sched'!$BH$9:$BH$39,MATCH(Y38,'Irrig Sched'!$BE$9:$BE$39,0)) ->  | Z39: =INDEX('Irrig Sched'!$BH$9:$BH$39,MATCH(Z38,'Irrig Sched'!$BE$9:$BE$39,0)) ->  | AA39: =INDEX('Irrig Sched'!$BH$9:$BH$39,MATCH(AA38,'Irrig Sched'!$BE$9:$BE$39,0)) ->  | AB39: =INDEX('Irrig Sched'!$BH$9:$BH$39,MATCH(AB38,'Irrig Sched'!$BE$9:$BE$39,0)) -> 
A40: =IF(AND(YEAR(MarOffset+22)=CalendarYear,MONTH(MarOffset+22)=3),DAY(MarOffset+22),"") -> 1900-01-19 | B40: =IF(AND(YEAR(MarOffset+23)=CalendarYear,MONTH(MarOffset+23)=3),DAY(MarOffset+23),"") -> 1900-01-20 | C40: =IF(AND(YEAR(MarOffset+24)=CalendarYear,MONTH(MarOffset+24)=3),DAY(MarOffset+24),"") -> 1900-01-21 | D40: =IF(AND(YEAR(MarOffset+25)=CalendarYear,MONTH(MarOffset+25)=3),DAY(MarOffset+25),"") -> 1900-01-22 | E40: =IF(AND(YEAR(MarOffset+26)=CalendarYear,MONTH(MarOffset+26)=3),DAY(MarOffset+26),"") -> 1900-01-23 | F40: =IF(AND(YEAR(MarOffset+27)=CalendarYear,MONTH(MarOffset+27)=3),DAY(MarOffset+27),"") -> 1900-01-24 | G40: =IF(AND(YEAR(MarOffset+28)=CalendarYear,MONTH(MarOffset+28)=3),DAY(MarOffset+28),"") -> 1900-01-25 | H40: =IF(AND(YEAR(JunOffset+22)=CalendarYear,MONTH(JunOffset+22)=6),DAY(JunOffset+22),"") -> 1900-01-18 | I40: =IF(AND(YEAR(JunOffset+23)=CalendarYear,MONTH(JunOffset+23)=6),DAY(JunOffset+23),"") -> 1900-01-19 | J40: =IF(AND(YEAR(JunOffset+24)=CalendarYear,MONTH(JunOffset+24)=6),DAY(JunOffset+24),"") -> 1900-01-20 | K40: =IF(AND(YEAR(JunOffset+25)=CalendarYear,MONTH(JunOffset+25)=6),DAY(JunOffset+25),"") -> 1900-01-21 | L40: =IF(AND(YEAR(JunOffset+26)=CalendarYear,MONTH(JunOffset+26)=6),DAY(JunOffset+26),"") -> 1900-01-22 | M40: =IF(AND(YEAR(JunOffset+27)=CalendarYear,MONTH(JunOffset+27)=6),DAY(JunOffset+27),"") -> 1900-01-23 | N40: =IF(AND(YEAR(JunOffset+28)=CalendarYear,MONTH(JunOffset+28)=6),DAY(JunOffset+28),"") -> 1900-01-24 | O40: =IF(AND(YEAR(SepOffset+22)=CalendarYear,MONTH(SepOffset+22)=9),DAY(SepOffset+22),"") -> 1900-01-17 | P40: =IF(AND(YEAR(SepOffset+23)=CalendarYear,MONTH(SepOffset+23)=9),DAY(SepOffset+23),"") -> 1900-01-18 | Q40: =IF(AND(YEAR(SepOffset+24)=CalendarYear,MONTH(SepOffset+24)=9),DAY(SepOffset+24),"") -> 1900-01-19 | R40: =IF(AND(YEAR(SepOffset+25)=CalendarYear,MONTH(SepOffset+25)=9),DAY(SepOffset+25),"") -> 1900-01-20 | S40: =IF(AND(YEAR(SepOffset+26)=CalendarYear,MONTH(SepOffset+26)=9),DAY(SepOffset+26),"") -> 1900-01-21 | T40: =IF(AND(YEAR(SepOffset+27)=CalendarYear,MONTH(SepOffset+27)=9),DAY(SepOffset+27),"") -> 1900-01-22 | U40: =IF(AND(YEAR(SepOffset+28)=CalendarYear,MONTH(SepOffset+28)=9),DAY(SepOffset+28),"") -> 1900-01-23 | V40: =IF(AND(YEAR(DecOffset+22)=CalendarYear,MONTH(DecOffset+22)=12),DAY(DecOffset+22),"") -> 1900-01-17 | W40: =IF(AND(YEAR(DecOffset+23)=CalendarYear,MONTH(DecOffset+23)=12),DAY(DecOffset+23),"") -> 1900-01-18 | X40: =IF(AND(YEAR(DecOffset+24)=CalendarYear,MONTH(DecOffset+24)=12),DAY(DecOffset+24),"") -> 1900-01-19 | Y40: =IF(AND(YEAR(DecOffset+25)=CalendarYear,MONTH(DecOffset+25)=12),DAY(DecOffset+25),"") -> 1900-01-20 | Z40: =IF(AND(YEAR(DecOffset+26)=CalendarYear,MONTH(DecOffset+26)=12),DAY(DecOffset+26),"") -> 1900-01-21 | AA40: =IF(AND(YEAR(DecOffset+27)=CalendarYear,MONTH(DecOffset+27)=12),DAY(DecOffset+27),"") -> 1900-01-22 | AB40: =IF(AND(YEAR(DecOffset+28)=CalendarYear,MONTH(DecOffset+28)=12),DAY(DecOffset+28),"") -> 1900-01-23
A41: =INDEX('Irrig Sched'!$O$9:$O$39,MATCH(A40,'Irrig Sched'!$L$9:$L$39,0)) ->  | B41: =INDEX('Irrig Sched'!$O$9:$O$39,MATCH(B40,'Irrig Sched'!$L$9:$L$39,0)) ->  | C41: =INDEX('Irrig Sched'!$O$9:$O$39,MATCH(C40,'Irrig Sched'!$L$9:$L$39,0)) ->  | D41: =INDEX('Irrig Sched'!$O$9:$O$39,MATCH(D40,'Irrig Sched'!$L$9:$L$39,0)) ->  | E41: =INDEX('Irrig Sched'!$O$9:$O$39,MATCH(E40,'Irrig Sched'!$L$9:$L$39,0)) -> Run | F41: =INDEX('Irrig Sched'!$O$9:$O$39,MATCH(F40,'Irrig Sched'!$L$9:$L$39,0)) ->  | G41: =INDEX('Irrig Sched'!$O$9:$O$39,MATCH(G40,'Irrig Sched'!$L$9:$L$39,0)) ->  | H41: =INDEX('Irrig Sched'!$AD$9:$AD$39,MATCH(H40,'Irrig Sched'!$AA$9:$AA$39,0)) ->  | I41: =INDEX('Irrig Sched'!$AD$9:$AD$39,MATCH(I40,'Irrig Sched'!$AA$9:$AA$39,0)) ->  | J41: =INDEX('Irrig Sched'!$AD$9:$AD$39,MATCH(J40,'Irrig Sched'!$AA$9:$AA$39,0)) ->  | K41: =INDEX('Irrig Sched'!$AD$9:$AD$39,MATCH(K40,'Irrig Sched'!$AA$9:$AA$39,0)) ->  | L41: =INDEX('Irrig Sched'!$AD$9:$AD$39,MATCH(L40,'Irrig Sched'!$AA$9:$AA$39,0)) -> Run | M41: =INDEX('Irrig Sched'!$AD$9:$AD$39,MATCH(M40,'Irrig Sched'!$AA$9:$AA$39,0)) ->  | N41: =INDEX('Irrig Sched'!$AD$9:$AD$39,MATCH(N40,'Irrig Sched'!$AA$9:$AA$39,0)) ->  | O41: =INDEX('Irrig Sched'!$AS$9:$AS$39,MATCH(O40,'Irrig Sched'!$AP$9:$AP$39,0)) ->  | P41: =INDEX('Irrig Sched'!$AS$9:$AS$39,MATCH(P40,'Irrig Sched'!$AP$9:$AP$39,0)) ->  | Q41: =INDEX('Irrig Sched'!$AS$9:$AS$39,MATCH(Q40,'Irrig Sched'!$AP$9:$AP$39,0)) ->  | R41: =INDEX('Irrig Sched'!$AS$9:$AS$39,MATCH(R40,'Irrig Sched'!$AP$9:$AP$39,0)) ->  | S41: =INDEX('Irrig Sched'!$AS$9:$AS$39,MATCH(S40,'Irrig Sched'!$AP$9:$AP$39,0)) -> Run | T41: =INDEX('Irrig Sched'!$AS$9:$AS$39,MATCH(T40,'Irrig Sched'!$AP$9:$AP$39,0)) ->  | U41: =INDEX('Irrig Sched'!$AS$9:$AS$39,MATCH(U40,'Irrig Sched'!$AP$9:$AP$39,0)) ->  | V41: =INDEX('Irrig Sched'!$BH$9:$BH$39,MATCH(V40,'Irrig Sched'!$BE$9:$BE$39,0)) ->  | W41: =INDEX('Irrig Sched'!$BH$9:$BH$39,MATCH(W40,'Irrig Sched'!$BE$9:$BE$39,0)) ->  | X41: =INDEX('Irrig Sched'!$BH$9:$BH$39,MATCH(X40,'Irrig Sched'!$BE$9:$BE$39,0)) -> Run | Y41: =INDEX('Irrig Sched'!$BH$9:$BH$39,MATCH(Y40,'Irrig Sched'!$BE$9:$BE$39,0)) ->  | Z41: =INDEX('Irrig Sched'!$BH$9:$BH$39,MATCH(Z40,'Irrig Sched'!$BE$9:$BE$39,0)) ->  | AA41: =INDEX('Irrig Sched'!$BH$9:$BH$39,MATCH(AA40,'Irrig Sched'!$BE$9:$BE$39,0)) ->  | AB41: =INDEX('Irrig Sched'!$BH$9:$BH$39,MATCH(AB40,'Irrig Sched'!$BE$9:$BE$39,0)) -> 
A42: =IF(AND(YEAR(MarOffset+29)=CalendarYear,MONTH(MarOffset+29)=3),DAY(MarOffset+29),"") -> 1900-01-26 | B42: =IF(AND(YEAR(MarOffset+30)=CalendarYear,MONTH(MarOffset+30)=3),DAY(MarOffset+30),"") -> 1900-01-27 | C42: =IF(AND(YEAR(MarOffset+31)=CalendarYear,MONTH(MarOffset+31)=3),DAY(MarOffset+31),"") -> 1900-01-28 | D42: =IF(AND(YEAR(MarOffset+32)=CalendarYear,MONTH(MarOffset+32)=3),DAY(MarOffset+32),"") -> 1900-01-29 | E42: =IF(AND(YEAR(MarOffset+33)=CalendarYear,MONTH(MarOffset+33)=3),DAY(MarOffset+33),"") -> 1900-01-30 | F42: =IF(AND(YEAR(MarOffset+34)=CalendarYear,MONTH(MarOffset+34)=3),DAY(MarOffset+34),"") -> 1900-01-31 | G42: =IF(AND(YEAR(MarOffset+35)=CalendarYear,MONTH(MarOffset+35)=3),DAY(MarOffset+35),"") ->  | H42: =IF(AND(YEAR(JunOffset+29)=CalendarYear,MONTH(JunOffset+29)=6),DAY(JunOffset+29),"") -> 1900-01-25 | I42: =IF(AND(YEAR(JunOffset+30)=CalendarYear,MONTH(JunOffset+30)=6),DAY(JunOffset+30),"") -> 1900-01-26 | J42: =IF(AND(YEAR(JunOffset+31)=CalendarYear,MONTH(JunOffset+31)=6),DAY(JunOffset+31),"") -> 1900-01-27 | K42: =IF(AND(YEAR(JunOffset+32)=CalendarYear,MONTH(JunOffset+32)=6),DAY(JunOffset+32),"") -> 1900-01-28 | L42: =IF(AND(YEAR(JunOffset+33)=CalendarYear,MONTH(JunOffset+33)=6),DAY(JunOffset+33),"") -> 1900-01-29 | M42: =IF(AND(YEAR(JunOffset+34)=CalendarYear,MONTH(JunOffset+34)=6),DAY(JunOffset+34),"") -> 1900-01-30 | N42: =IF(AND(YEAR(JunOffset+35)=CalendarYear,MONTH(JunOffset+35)=6),DAY(JunOffset+35),"") ->  | O42: =IF(AND(YEAR(SepOffset+29)=CalendarYear,MONTH(SepOffset+29)=9),DAY(SepOffset+29),"") -> 1900-01-24 | P42: =IF(AND(YEAR(SepOffset+30)=CalendarYear,MONTH(SepOffset+30)=9),DAY(SepOffset+30),"") -> 1900-01-25 | Q42: =IF(AND(YEAR(SepOffset+31)=CalendarYear,MONTH(SepOffset+31)=9),DAY(SepOffset+31),"") -> 1900-01-26 | R42: =IF(AND(YEAR(SepOffset+32)=CalendarYear,MONTH(SepOffset+32)=9),DAY(SepOffset+32),"") -> 1900-01-27 | S42: =IF(AND(YEAR(SepOffset+33)=CalendarYear,MONTH(SepOffset+33)=9),DAY(SepOffset+33),"") -> 1900-01-28 | T42: =IF(AND(YEAR(SepOffset+34)=CalendarYear,MONTH(SepOffset+34)=9),DAY(SepOffset+34),"") -> 1900-01-29 | U42: =IF(AND(YEAR(SepOffset+35)=CalendarYear,MONTH(SepOffset+35)=9),DAY(SepOffset+35),"") -> 1900-01-30 | V42: =IF(AND(YEAR(DecOffset+29)=CalendarYear,MONTH(DecOffset+29)=12),DAY(DecOffset+29),"") -> 1900-01-24 | W42: =IF(AND(YEAR(DecOffset+30)=CalendarYear,MONTH(DecOffset+30)=12),DAY(DecOffset+30),"") -> 1900-01-25 | X42: =IF(AND(YEAR(DecOffset+31)=CalendarYear,MONTH(DecOffset+31)=12),DAY(DecOffset+31),"") -> 1900-01-26 | Y42: =IF(AND(YEAR(DecOffset+32)=CalendarYear,MONTH(DecOffset+32)=12),DAY(DecOffset+32),"") -> 1900-01-27 | Z42: =IF(AND(YEAR(DecOffset+33)=CalendarYear,MONTH(DecOffset+33)=12),DAY(DecOffset+33),"") -> 1900-01-28 | AA42: =IF(AND(YEAR(DecOffset+34)=CalendarYear,MONTH(DecOffset+34)=12),DAY(DecOffset+34),"") -> 1900-01-29 | AB42: =IF(AND(YEAR(DecOffset+35)=CalendarYear,MONTH(DecOffset+35)=12),DAY(DecOffset+35),"") -> 1900-01-30
A43: =IF(A42="","",INDEX('Irrig Sched'!$O$9:$O$39,MATCH(A42,'Irrig Sched'!$L$9:$L$39,0))) ->  | B43: =IF(B42="","",INDEX('Irrig Sched'!$O$9:$O$39,MATCH(B42,'Irrig Sched'!$L$9:$L$39,0))) ->  | C43: =IF(C42="","",INDEX('Irrig Sched'!$O$9:$O$39,MATCH(C42,'Irrig Sched'!$L$9:$L$39,0))) ->  | D43: =IF(D42="","",INDEX('Irrig Sched'!$O$9:$O$39,MATCH(D42,'Irrig Sched'!$L$9:$L$39,0))) ->  | E43: =IF(E42="","",INDEX('Irrig Sched'!$O$9:$O$39,MATCH(E42,'Irrig Sched'!$L$9:$L$39,0))) ->  | F43: =IF(F42="","",INDEX('Irrig Sched'!$O$9:$O$39,MATCH(F42,'Irrig Sched'!$L$9:$L$39,0))) ->  | G43: =IF(G42="","",INDEX('Irrig Sched'!$O$9:$O$39,MATCH(G42,'Irrig Sched'!$L$9:$L$39,0))) ->  | H43: =IF(H42="","",INDEX('Irrig Sched'!$AD$9:$AD$39,MATCH(H42,'Irrig Sched'!$AA$9:$AA$39,0))) ->  | I43: =IF(I42="","",INDEX('Irrig Sched'!$AD$9:$AD$39,MATCH(I42,'Irrig Sched'!$AA$9:$AA$39,0))) ->  | J43: =IF(J42="","",INDEX('Irrig Sched'!$AD$9:$AD$39,MATCH(J42,'Irrig Sched'!$AA$9:$AA$39,0))) -> Run | K43: =IF(K42="","",INDEX('Irrig Sched'!$AD$9:$AD$39,MATCH(K42,'Irrig Sched'!$AA$9:$AA$39,0))) ->  | L43: =IF(L42="","",INDEX('Irrig Sched'!$AD$9:$AD$39,MATCH(L42,'Irrig Sched'!$AA$9:$AA$39,0))) -> Run | M43: =IF(M42="","",INDEX('Irrig Sched'!$AD$9:$AD$39,MATCH(M42,'Irrig Sched'!$AA$9:$AA$39,0))) ->  | N43: =IF(N42="","",INDEX('Irrig Sched'!$AD$9:$AD$39,MATCH(N42,'Irrig Sched'!$AA$9:$AA$39,0))) ->  | O43: =IF(O42="","",INDEX('Irrig Sched'!$AS$9:$AS$39,MATCH(O42,'Irrig Sched'!$AP$9:$AP$39,0))) ->  | P43: =IF(P42="","",INDEX('Irrig Sched'!$AS$9:$AS$39,MATCH(P42,'Irrig Sched'!$AP$9:$AP$39,0))) ->  | Q43: =IF(Q42="","",INDEX('Irrig Sched'!$AS$9:$AS$39,MATCH(Q42,'Irrig Sched'!$AP$9:$AP$39,0))) -> Run | R43: =IF(R42="","",INDEX('Irrig Sched'!$AS$9:$AS$39,MATCH(R42,'Irrig Sched'!$AP$9:$AP$39,0))) ->  | S43: =IF(S42="","",INDEX('Irrig Sched'!$AS$9:$AS$39,MATCH(S42,'Irrig Sched'!$AP$9:$AP$39,0))) ->  | T43: =IF(T42="","",INDEX('Irrig Sched'!$AS$9:$AS$39,MATCH(T42,'Irrig Sched'!$AP$9:$AP$39,0))) ->  | U43: =IF(U42="","",INDEX('Irrig Sched'!$AS$9:$AS$39,MATCH(U42,'Irrig Sched'!$AP$9:$AP$39,0))) ->  | V43: =IF(V42="","",INDEX('Irrig Sched'!$BH$9:$BH$39,MATCH(V42,'Irrig Sched'!$BE$9:$BE$39,0))) ->  | W43: =IF(W42="","",INDEX('Irrig Sched'!$BH$9:$BH$39,MATCH(W42,'Irrig Sched'!$BE$9:$BE$39,0))) ->  | X43: =IF(X42="","",INDEX('Irrig Sched'!$BH$9:$BH$39,MATCH(X42,'Irrig Sched'!$BE$9:$BE$39,0))) ->  | Y43: =IF(Y42="","",INDEX('Irrig Sched'!$BH$9:$BH$39,MATCH(Y42,'Irrig Sched'!$BE$9:$BE$39,0))) ->  | Z43: =IF(Z42="","",INDEX('Irrig Sched'!$BH$9:$BH$39,MATCH(Z42,'Irrig Sched'!$BE$9:$BE$39,0))) ->  | AA43: =IF(AA42="","",INDEX('Irrig Sched'!$BH$9:$BH$39,MATCH(AA42,'Irrig Sched'!$BE$9:$BE$39,0))) ->  | AB43: =IF(AB42="","",INDEX('Irrig Sched'!$BH$9:$BH$39,MATCH(AB42,'Irrig Sched'!$BE$9:$BE$39,0))) -> 
A44: =IF(AND(YEAR(MarOffset+36)=CalendarYear,MONTH(MarOffset+36)=3),DAY(MarOffset+36),"") ->  | B44: =IF(AND(YEAR(MarOffset+37)=CalendarYear,MONTH(MarOffset+37)=3),DAY(MarOffset+37),"") ->  | H44: =IF(AND(YEAR(JunOffset+36)=CalendarYear,MONTH(JunOffset+36)=6),DAY(JunOffset+36),"") ->  | I44: =IF(AND(YEAR(JunOffset+37)=CalendarYear,MONTH(JunOffset+37)=6),DAY(JunOffset+37),"") ->  | O44: =IF(AND(YEAR(SepOffset+36)=CalendarYear,MONTH(SepOffset+36)=9),DAY(SepOffset+36),"") ->  | P44: =IF(AND(YEAR(SepOffset+37)=CalendarYear,MONTH(SepOffset+37)=9),DAY(SepOffset+37),"") ->  | V44: =IF(AND(YEAR(DecOffset+36)=CalendarYear,MONTH(DecOffset+36)=12),DAY(DecOffset+36),"") -> 1900-01-31 | W44: =IF(AND(YEAR(DecOffset+37)=CalendarYear,MONTH(DecOffset+37)=12),DAY(DecOffset+37),"") -> 
A45: =IF(A44="","",INDEX('Irrig Sched'!$O$9:$O$39,MATCH(A44,'Irrig Sched'!$L$9:$L$39,0))) ->  | B45: =IF(B44="","",INDEX('Irrig Sched'!$O$9:$O$39,MATCH(B44,'Irrig Sched'!$L$9:$L$39,0))) ->  | H45: =IF(H44="","",INDEX('Irrig Sched'!$AD$9:$AD$39,MATCH(H44,'Irrig Sched'!$AA$9:$AA$39,0))) ->  | I45: =IF(I44="","",INDEX('Irrig Sched'!$AD$9:$AD$39,MATCH(I44,'Irrig Sched'!$AA$9:$AA$39,0))) ->  | O45: =IF(O44="","",INDEX('Irrig Sched'!$AS$9:$AS$39,MATCH(O44,'Irrig Sched'!$AP$9:$AP$39,0))) ->  | P45: =IF(P44="","",INDEX('Irrig Sched'!$AS$9:$AS$39,MATCH(P44,'Irrig Sched'!$AP$9:$AP$39,0))) ->  | V45: =IF(V44="","",INDEX('Irrig Sched'!$BH$9:$BH$39,MATCH(V44,'Irrig Sched'!$BE$9:$BE$39,0))) ->  | W45: =IF(W44="","",INDEX('Irrig Sched'!$BH$9:$BH$39,MATCH(W44,'Irrig Sched'!$BE$9:$BE$39,0))) -> 

Sheet ETo Zones Map
J2: Find your location on the map and identify the ETo zone. Enter the ETo zone number in the ETo, Soil, C.C., Irr Info. page. Locate the ETo zone in the chart below. The numbers in the cells to the right of the zone number are the average monthly inches of irrgation needed to irrigate the reference crop. These numbers are used in calculating the irrigation calendar to guide you in adjusting your controller to match the water demand of the plants in your landscape.
J11: From the California Irrigation Management Information System (CIMIS)
J12: http://wwwcimis.water.ca.gov
J13: The map is located in the brochure at:
J14: http://wwwcimis.water.ca.gov/Content/pdf/CimisRefEvapZones.pdf
J17: Monthly Average Reference Evapotranspiration byETo Zone (inches/month)
J18: Zone | K18: Jan | L18: Feb | M18: Mar | N18: Apr | O18: May | P18: Jun | Q18: Jul | R18: Aug | S18: Sep | T18: Oct | U18: Nov | V18: Dec | W18: Total
J19: 1 | K19: 0.93 | L19: 1.4 | M19: 2.48 | N19: 3.3 | O19: 4.03 | P19: 4.5 | Q19: 4.65 | R19: 4.03 | S19: 3.3 | T19: 2.48 | U19: 1.2 | V19: 0.62 | W19: =SUM(K19:V19) -> 32.92
J20: 2 | K20: 1.24 | L20: 1.68 | M20: 3.1 | N20: 3.9 | O20: 4.65 | P20: 5.1 | Q20: 4.96 | R20: 4.65 | S20: 3.9 | T20: 2.79 | U20: 1.8 | V20: 1.24 | W20: =SUM(K20:V20) -> 39.01
J21: 3 | K21: 1.86 | L21: 2.24 | M21: 3.72 | N21: 4.8 | O21: 5.27 | P21: 5.7 | Q21: 5.58 | R21: 5.27 | S21: 4.2 | T21: 3.41 | U21: 2.4 | V21: 1.86 | W21: 46.31
J22: 4 | K22: 1.86 | L22: 2.24 | M22: 3.41 | N22: 4.5 | O22: 5.27 | P22: 5.7 | Q22: 5.89 | R22: 5.58 | S22: 4.5 | T22: 3.41 | U22: 2.4 | V22: 1.86 | W22: 46.62
J23: 5 | K23: 0.93 | L23: 1.68 | M23: 2.79 | N23: 4.2 | O23: 5.58 | P23: 6.3 | Q23: 6.51 | R23: 5.89 | S23: 4.5 | T23: 3.1 | U23: 1.5 | V23: 0.93 | W23: 43.91
J24: 6 | K24: 1.86 | L24: 2.24 | M24: 3.41 | N24: 4.8 | O24: 5.58 | P24: 6.3 | Q24: 6.51 | R24: 6.2 | S24: 4.8 | T24: 3.72 | U24: 2.4 | V24: 1.86 | W24: 49.68
J25: 7 | K25: 0.62 | L25: 1.4 | M25: 2.48 | N25: 3.9 | O25: 5.27 | P25: 6.3 | Q25: 7.44 | R25: 6.51 | S25: 4.8 | T25: 2.79 | U25: 1.2 | V25: 0.62 | W25: 43.33
J26: 8 | K26: 1.24 | L26: 1.68 | M26: 3.41 | N26: 4.8 | O26: 6.2 | P26: 6.9 | Q26: 7.44 | R26: 6.51 | S26: 5.1 | T26: 3.41 | U26: 1.8 | V26: 0.93 | W26: =SUM(K26:V26) -> 49.42
J27: 9 | K27: 2.17 | L27: 2.8 | M27: 4.03 | N27: 5.1 | O27: 5.89 | P27: 6.6 | Q27: 7.44 | R27: 6.82 | S27: 5.7 | T27: 4.06 | U27: 2.7 | V27: 1.86 | W27: 55.17
J28: 10 | K28: 0.93 | L28: 1.68 | M28: 3.1 | N28: 4.5 | O28: 5.89 | P28: 7.2 | Q28: 8.06 | R28: 7.13 | S28: 5.1 | T28: 3.1 | U28: 1.5 | V28: 0.93 | W28: 49.12
J29: 11 | K29: 1.55 | L29: 2.24 | M29: 3.1 | N29: 4.5 | O29: 5.89 | P29: 7.2 | Q29: 8.06 | R29: 7.44 | S29: 5.7 | T29: 3.72 | U29: 2.1 | V29: 1.55 | W29: 53.05
J30: 12 | K30: 1.24 | L30: 1.96 | M30: 3.41 | N30: 5.1 | O30: 6.82 | P30: 7.8 | Q30: 8.06 | R30: 7.13 | S30: 5.4 | T30: 3.72 | U30: 1.8 | V30: 0.93 | W30: 53.37
J31: 13 | K31: 1.24 | L31: 1.96 | M31: 3.1 | N31: 4.8 | O31: 6.51 | P31: 7.8 | Q31: 8.99 | R31: 7.75 | S31: 5.7 | T31: 3.72 | U31: 1.8 | V31: 0.93 | W31: 54.3
J32: 14 | K32: 1.55 | L32: 2.24 | M32: 3.72 | N32: 5.1 | O32: 6.82 | P32: 7.8 | Q32: 8.68 | R32: 7.75 | S32: 5.7 | T32: 4.03 | U32: 2.1 | V32: 1.55 | W32: 57.04
J33: 15 | K33: 1.24 | L33: 2.24 | M33: 3.72 | N33: 5.7 | O33: 7.44 | P33: 8.1 | Q33: 8.68 | R33: 7.75 | S33: 5.7 | T33: 4.03 | U33: 2.1 | V33: 1.24 | W33: 57.94
J34: 16 | K34: 1.55 | L34: 2.52 | M34: 4.03 | N34: 5.7 | O34: 7.75 | P34: 8.7 | Q34: 9.3 | R34: 8.37 | S34: 6.3 | T34: 4.34 | U34: 2.4 | V34: 1.55 | W34: 62.51
J35: 17 | K35: 1.86 | L35: 2.8 | M35: 4.65 | N35: 6 | O35: 8.06 | P35: 9 | Q35: 9.92 | R35: 8.68 | S35: 6.6 | T35: 4.34 | U35: 2.7 | V35: 1.86 | W35: 66.47
J36: 18 | K36: 2.48 | L36: 3.36 | M36: 5.27 | N36: 6.9 | O36: 8.68 | P36: 9.6 | Q36: 9.61 | R36: 8.68 | S36: 6.9 | T36: 4.96 | U36: 3 | V36: 2.17 | W36: 71.61
J38: Variability between stations within single zones is as high as 0.02 inches per day for zone 1 and during winter months in zone 13. The average standard deviation of the ETo between estimation sites within a zone is about 0.01 inches per day for the 200 sites used to develop the map.

Sheet SOIL INFORMATION (hidden)
A1: Soil Information
A3: Depth to wet (in.): | B3: =Depth_To_Wet -> 12 | C3: Infiltration* (in./hr) | D3: Plant Avail Water (cm/cm)** | E3: Irrig to wet to depth (in)†
A5: Soil Texture
A6: Coarse | B6: sand / fine sand | C6: 1.5 | D6: 0.05 | E6: =$B$3*D6*0.5 -> 0.3
B7: loamy sand | C7: 1 | D7: 0.07 | E7: =$B$3*D7*0.5 -> 0.42
A8: Moderately Coarse | B8: sandy loam | C8: 0.8 | D8: 0.11 | E8: 0.66
A9: Medium | B9: loam | C9: 0.4 | D9: 0.16 | E9: 0.96
B10: silty loam | C10: 0.25 | D10: 0.2 | E10: 1.2
B11: silt | C11: 0.3 | D11: 0.2 | E11: 1.2
A12: Moderately Fine | B12: sandy clay loam | C12: 0.1 | D12: 0.15 | E12: 0.9
B13: clay loam | C13: 0.07 | D13: 0.16 | E13: 0.96
B14: silty clay loam | C14: 0.05 | D14: 0.18 | E14: 1.08
A15: Fine | B15: sandy clay | C15: 0.08 | D15: 0.12 | E15: 0.72
B16: silty clay | C16: 0.05 | D16: 0.14 | E16: 0.84
B17: clay | C17: 0.05 | D17: 0.15 | E17: 0.9
B18: *Also known as intake rate
B19: **IA Landscape Irrigation Auditor Manual page 177
B20: †assume 50% dry down (managed allowable depletion)

Sheet DU CALCS "mL." (hidden)
A1: System Efficiency and Watering Schedule
A2: Determine values for each of the sections below and enter values into the fields provided. Note: fields highlighted in green must be filled out in order for other calculations in the spread sheet to work properly.
A4: Catch can throat area (sq. in) use: πr2 | D4: =Throat_area -> 16.6
A5: Elapsed Time (Minutes): | D5: =Runtime -> 6
K6: % applied target: | L6: 0.9
A7: Container # | B7: Volume (ml) | C7: Depth (in.) | D7: Precip. Rate (in./hr) | E7: Rank | F7: LowQ | H7: Used for Ranking | J7: Used to determine runtime and # of cycles
A8: 1 | B8: =IF('Catch Can Field Worksheet'!B13="", "",'Catch Can Field Worksheet'!B13) -> 35 | C8: =IF(B8<>"",B8*0.061/$D$4,"") -> 0.1286144578 | D8: =IF(C8<>"",C8/$D$5*60,"") -> 1.286144578 | E8: =IF(B8<>"",RANK(H8,$H$8:$H$47,1),"") -> 32 | F8: =IF(E8<=$C$49/4,B8,"") ->  | H8: =IF(D8<>"",B8+A8/1000,"") -> 35.001 | J8: check | K8: Runtime | L8: # cycles | M8: % applied
A9: 2 | B9: =IF('Catch Can Field Worksheet'!B14="", "",'Catch Can Field Worksheet'!B14) -> 30 | C9: =IF(B9<>"",B9*0.061/$D$4,"") -> 0.1102409639 | D9: =IF(C9<>"",C9/$D$5*60,"") -> 1.102409639 | E9: 20 | H9: 30.002 | J9: =IF(M9>=Applied_Target,1,0) -> 1 | K9: =Time_to_Runoff -> 12 | L9: =INT(Max_Duration/K9) -> 4 | M9: =(K9*L9)/Max_Duration -> 0.9795918367
A10: 3 | B10: =IF('Catch Can Field Worksheet'!B15="", "",'Catch Can Field Worksheet'!B15) -> 20 | C10: 0.0734939759 | D10: 0.734939759 | E10: 4 | F10: 20 | H10: 20.003 | J10: =IF(SUM(J$9:J9)=0,IF(M10>=Applied_Target,1,0),0) -> 0 | K10: =K9-1 -> 11 | L10: 4 | M10: 0.8979591837
A11: 4 | B11: =IF('Catch Can Field Worksheet'!B16="", "",'Catch Can Field Worksheet'!B16) -> 20 | C11: 0.0734939759 | D11: 0.734939759 | E11: 5 | F11: 20 | H11: 20.004 | J11: =IF(SUM(J$9:J10)=0,IF(M11>=Applied_Target,1,0),0) -> 0 | K11: 10 | L11: 4 | M11: 0.8163265306
A12: 5 | B12: =IF('Catch Can Field Worksheet'!B17="", "",'Catch Can Field Worksheet'!B17) -> 25 | C12: 0.09186746988 | D12: 0.9186746988 | E12: 13 | H12: 25.005 | J12: =IF(SUM(J$9:J11)=0,IF(M12>=Applied_Target,1,0),0) -> 0 | K12: 9 | L12: 5 | M12: 0.9183673469
A13: 6 | B13: =IF('Catch Can Field Worksheet'!B18="", "",'Catch Can Field Worksheet'!B18) -> 35 | C13: 0.1286144578 | D13: 1.286144578 | E13: 33 | H13: 35.006 | J13: =IF(SUM(J$9:J12)=0,IF(M13>=Applied_Target,1,0),0) -> 0 | K13: 8 | L13: 6 | M13: 0.9795918367
A14: 7 | B14: =IF('Catch Can Field Worksheet'!B19="", "",'Catch Can Field Worksheet'!B19) -> 15 | C14: 0.05512048193 | D14: 0.5512048193 | E14: 2 | F14: 15 | H14: 15.007 | J14: =IF(SUM(J$9:J13)=0,IF(M14>=Applied_Target,1,0),0) -> 0 | K14: 7 | L14: 7 | M14: 1
A15: 8 | B15: =IF('Catch Can Field Worksheet'!B20="", "",'Catch Can Field Worksheet'!B20) -> 20 | C15: =IF(B15<>"",B15*0.061/$D$4,"") -> 0.0734939759 | D15: 0.734939759 | E15: 6 | F15: 20 | H15: 20.008 | J15: =IF(SUM(J$9:J14)=0,IF(M15>=Applied_Target,1,0),0) -> 0 | K15: 6 | L15: 8 | M15: 0.9795918367
A16: 9 | B16: =IF('Catch Can Field Worksheet'!B21="", "",'Catch Can Field Worksheet'!B21) -> 40 | C16: 0.1469879518 | D16: 1.469879518 | E16: 35 | H16: 40.009 | J16: =IF(SUM(J$9:J15)=0,IF(M16>=Applied_Target,1,0),0) -> 0 | K16: 5 | L16: 9 | M16: 0.9183673469
A17: 10 | B17: =IF('Catch Can Field Worksheet'!B22="", "",'Catch Can Field Worksheet'!B22) -> 20 | C17: 0.0734939759 | D17: 0.734939759 | E17: 7 | F17: 20 | H17: 20.01 | J17: =IF(SUM(J$9:J16)=0,IF(M17>=Applied_Target,1,0),0) -> 0 | K17: 4 | L17: 12 | M17: 0.9795918367
A18: 11 | B18: =IF('Catch Can Field Worksheet'!D13="", "",'Catch Can Field Worksheet'!D13) -> 15 | C18: 0.05512048193 | D18: 0.5512048193 | E18: 3 | F18: 15 | H18: 15.011 | J18: =IF(SUM(J$9:J17)=0,IF(M18>=Applied_Target,1,0),0) -> 0 | K18: 3 | L18: 16 | M18: 0.9795918367
A19: 12 | B19: =IF('Catch Can Field Worksheet'!D14="", "",'Catch Can Field Worksheet'!D14) -> 20 | C19: 0.0734939759 | D19: 0.734939759 | E19: 8 | F19: 20 | H19: 20.012 | J19: =IF(SUM(J$9:J18)=0,IF(M19>=Applied_Target,1,0),0) -> 0 | K19: 2 | L19: 24 | M19: 0.9795918367
A20: 13 | B20: =IF('Catch Can Field Worksheet'!D15="", "",'Catch Can Field Worksheet'!D15) -> 40 | C20: 0.1469879518 | D20: 1.469879518 | E20: 36 | H20: 40.013 | J20: =IF(SUM(J$9:J19)=0,IF(M20>=Applied_Target,1,0),0) -> 0 | K20: 1 | L20: 49 | M20: 1
A21: 14 | B21: =IF('Catch Can Field Worksheet'!D16="", "",'Catch Can Field Worksheet'!D16) -> 25 | C21: 0.09186746988 | D21: 0.9186746988 | E21: 14 | H21: 25.014 | J21: =IF(SUM(J$9:J20)=0,IF(M21>=Applied_Target,1,0),0) -> 0 | K21: 0
A22: 15 | B22: =IF('Catch Can Field Worksheet'!D17="", "",'Catch Can Field Worksheet'!D17) -> 35 | C22: 0.1286144578 | D22: 1.286144578 | E22: 34 | H22: 35.015 | J22: =IF(SUM(J$9:J21)=0,IF(M22>=Applied_Target,1,0),0) -> 0 | K22: -1 | L22: -49 | M22: 1
A23: 16 | B23: =IF('Catch Can Field Worksheet'!D18="", "",'Catch Can Field Worksheet'!D18) -> 25 | C23: 0.09186746988 | D23: 0.9186746988 | E23: 15 | H23: 25.016 | J23: =IF(SUM(J$9:J22)=0,IF(M23>=Applied_Target,1,0),0) -> 0 | K23: -2 | L23: -25 | M23: 1.020408163
A24: 17 | B24: =IF('Catch Can Field Worksheet'!D19="", "",'Catch Can Field Worksheet'!D19) -> 30 | C24: 0.1102409639 | D24: 1.102409639 | E24: 21 | H24: 30.017
A25: 18 | B25: =IF('Catch Can Field Worksheet'!D20="", "",'Catch Can Field Worksheet'!D20) -> 30 | C25: 0.1102409639 | D25: 1.102409639 | E25: 22 | H25: 30.018
A26: 19 | B26: =IF('Catch Can Field Worksheet'!D21="", "",'Catch Can Field Worksheet'!D21) -> 40 | C26: 0.1469879518 | D26: 1.469879518 | E26: 37 | H26: 40.019
A27: 20 | B27: =IF('Catch Can Field Worksheet'!D22="", "",'Catch Can Field Worksheet'!D22) -> 40 | C27: 0.1469879518 | D27: 1.469879518 | E27: 38 | H27: 40.02
A28: 21 | B28: =IF('Catch Can Field Worksheet'!F13="", "",'Catch Can Field Worksheet'!F13) -> 25 | C28: 0.09186746988 | D28: 0.9186746988 | E28: 16 | H28: 25.021
A29: 22 | B29: =IF('Catch Can Field Worksheet'!F14="", "",'Catch Can Field Worksheet'!F14) -> 30 | C29: 0.1102409639 | D29: 1.102409639 | E29: 23 | H29: 30.022
A30: 23 | B30: =IF('Catch Can Field Worksheet'!F15="", "",'Catch Can Field Worksheet'!F15) -> 40 | C30: 0.1469879518 | D30: 1.469879518 | E30: 39 | H30: 40.023
A31: 24 | B31: =IF('Catch Can Field Worksheet'!F16="", "",'Catch Can Field Worksheet'!F16) -> 30 | C31: 0.1102409639 | D31: 1.102409639 | E31: 24 | H31: 30.024
A32: 25 | B32: =IF('Catch Can Field Worksheet'!F17="", "",'Catch Can Field Worksheet'!F17) -> 40 | C32: 0.1469879518 | D32: 1.469879518 | E32: 40 | H32: 40.025
A33: 26 | B33: =IF('Catch Can Field Worksheet'!F18="", "",'Catch Can Field Worksheet'!F18) -> 30 | C33: 0.1102409639 | D33: 1.102409639 | E33: 25 | H33: 30.026
A34: 27 | B34: =IF('Catch Can Field Worksheet'!F19="", "",'Catch Can Field Worksheet'!F19) -> 30 | C34: 0.1102409639 | D34: 1.102409639 | E34: 26 | H34: 30.027
A35: 28 | B35: =IF('Catch Can Field Worksheet'!F20="", "",'Catch Can Field Worksheet'!F20) -> 30 | C35: 0.1102409639 | D35: 1.102409639 | E35: 27 | H35: 30.028
A36: 29 | B36: =IF('Catch Can Field Worksheet'!F21="", "",'Catch Can Field Worksheet'!F21) -> 20 | C36: 0.0734939759 | D36: 0.734939759 | E36: 9 | F36: 20 | H36: 20.029
A37: 30 | B37: =IF('Catch Can Field Worksheet'!F22="", "",'Catch Can Field Worksheet'!F22) -> 20 | C37: 0.0734939759 | D37: 0.734939759 | E37: 10 | F37: 20 | H37: 20.03
A38: 31 | B38: =IF('Catch Can Field Worksheet'!H13="", "",'Catch Can Field Worksheet'!H13) -> 25 | C38: 0.09186746988 | D38: 0.9186746988 | E38: 17 | H38: 25.031
A39: 32 | B39: =IF('Catch Can Field Worksheet'!H14="", "",'Catch Can Field Worksheet'!H14) -> 25 | C39: 0.09186746988 | D39: 0.9186746988 | E39: 18 | H39: 25.032
A40: 33 | B40: =IF('Catch Can Field Worksheet'!H15="", "",'Catch Can Field Worksheet'!H15) -> 30 | C40: 0.1102409639 | D40: 1.102409639 | E40: 28 | H40: 30.033
A41: 34 | B41: =IF('Catch Can Field Worksheet'!H16="", "",'Catch Can Field Worksheet'!H16) -> 30 | C41: 0.1102409639 | D41: 1.102409639 | E41: 29 | H41: 30.034
A42: 35 | B42: =IF('Catch Can Field Worksheet'!H17="", "",'Catch Can Field Worksheet'!H17) -> 10 | C42: 0.03674698795 | D42: 0.3674698795 | E42: 1 | F42: 10 | H42: 10.035
A43: 36 | B43: =IF('Catch Can Field Worksheet'!H18="", "",'Catch Can Field Worksheet'!H18) -> 30 | C43: 0.1102409639 | D43: 1.102409639 | E43: 30 | H43: 30.036
A44: 37 | B44: =IF('Catch Can Field Worksheet'!H19="", "",'Catch Can Field Worksheet'!H19) -> 20 | C44: 0.0734939759 | D44: 0.734939759 | E44: 11 | H44: 20.037
A45: 38 | B45: =IF('Catch Can Field Worksheet'!H20="", "",'Catch Can Field Worksheet'!H20) -> 25 | C45: 0.09186746988 | D45: 0.9186746988 | E45: 19 | H45: 25.038
A46: 39 | B46: =IF('Catch Can Field Worksheet'!H21="", "",'Catch Can Field Worksheet'!H21) -> 20 | C46: 0.0734939759 | D46: 0.734939759 | E46: 12 | H46: 20.039
A47: 40 | B47: =IF('Catch Can Field Worksheet'!H22="", "",'Catch Can Field Worksheet'!H22) -> 30 | C47: =IF(B47<>"",B47*0.061/$D$4,"") -> 0.1102409639 | D47: =IF(C47<>"",C47/$D$5*60,"") -> 1.102409639 | E47: 31 | H47: 30.04
A48: Average | B48: =AVERAGE(B8:B47) -> 27.5 | C48: =B48*0.061/$D$4 -> 0.1010542169 | D48: =C48/$D$5*60 -> 1.010542169 | F48: =AVERAGE(F8:F47) -> 18
A49: Count | C49: =COUNT(B8:B47) -> 40
A50: DU | C50: =F48/B48 -> 0.6545454545 | D50: AvgLQ/AvgT
A51: PR (in/hr) | C51: =D48 -> 1.010542169 | D51: Avg precip rate

Sheet DAILY ETo (hidden)
D4: Run time | I4: ModifiedDaily ETo (in.) | J4: no. days between irr
A5: Month | B5: Monthly ETo | C5: ETo x KL | D5: Monthly (min/mo) | E5: Weekly (min/wk) | F5: Daily (min/da) | G5: no. irrig /mo | H5: no.days /mo | L5: Year | M5: ='ETo, Soil, C.C., Irr Info.'!D31 -> 2017 | O5: DayOfWeek and Designated days
A6: Jan | B6: =VLOOKUP(ETo_Zone,ETo_Zone_Chart,2) -> 1.55 | C6: =B6*KL -> 0.93 | D6: =(B6*KL*60)/PR*SM -> 69.65558731 | E6: =ROUND(D6/H6*7,0) -> 16 | F6: =ROUND(D6/H6,0) -> 2 | G6: =ROUND(D6/Time_to_wet_d,0) -> 2 | H6: 31 | I6: =C6/H6 -> 0.03 | J6: =in_to_wet_d/I6 -> 22 | L6: JanOffset | M6: =DATE(CalendarYear,1,1)-WEEKDAY(DATE(CalendarYear,1,1)) -> 2016-12-31 | O6: 1 | P6: Sun | Q6: =IF(R6=FALSE,0,1) -> 0 | R6: FALSE
A7: Feb | B7: =VLOOKUP(ETo_Zone,ETo_Zone_Chart,3) -> 2.24 | C7: 1.344 | D7: 100.6635584 | E7: 25 | F7: 4 | G7: 3 | H7: =IF('Irrig Sched'!G4=" is a Leap Year",29,28) -> 28 | I7: =C7/H7 -> 0.048 | J7: 13.75 | L7: FebOffSet | M7: =DATE(CalendarYear,2,1)-WEEKDAY(DATE(CalendarYear,2,1)) -> 2017-01-28 | O7: 2 | P7: Mon | Q7: =IF(R7=FALSE,0,1) -> 0 | R7: FALSE
A8: Mar | B8: =VLOOKUP(ETo_Zone,ETo_Zone_Chart,4) -> 3.72 | C8: 2.232 | D8: 167.1734095 | E8: 38 | F8: 5 | G8: 4 | H8: 31 | I8: 0.072 | J8: 9.166666667 | L8: MarOffset | M8: =DATE(CalendarYear,3,1)-WEEKDAY(DATE(CalendarYear,3,1)) -> 2017-02-25 | O8: 3 | P8: Tue | Q8: 1 | R8: TRUE
A9: Apr | B9: =VLOOKUP(ETo_Zone,ETo_Zone_Chart,5) -> 5.1 | C9: 3.06 | D9: 229.1893518 | E9: 53 | F9: 8 | G9: 6 | H9: 30 | I9: 0.102 | J9: 6.470588235 | L9: AprOffset | M9: =DATE(CalendarYear,4,1)-WEEKDAY(DATE(CalendarYear,4,1)) -> 2017-03-25 | O9: 4 | P9: Wed | Q9: 0 | R9: FALSE
A10: May | B10: =VLOOKUP(ETo_Zone,ETo_Zone_Chart,6) -> 6.82 | C10: 4.092 | D10: 306.4845841 | E10: 69 | F10: 10 | G10: 8 | H10: 31 | I10: 0.132 | J10: 5 | L10: MayOffset | M10: =DATE(CalendarYear,5,1)-WEEKDAY(DATE(CalendarYear,5,1)) -> 2017-04-29 | O10: 5 | P10: Thu | Q10: 1 | R10: TRUE
A11: Jun | B11: =VLOOKUP(ETo_Zone,ETo_Zone_Chart,7) -> 7.8 | C11: 4.68 | D11: 350.524891 | E11: 82 | F11: 12 | G11: 9 | H11: 30 | I11: 0.156 | J11: 4.230769231 | L11: JunOffset | M11: =DATE(CalendarYear,6,1)-WEEKDAY(DATE(CalendarYear,6,1)) -> 2017-05-27 | O11: 6 | P11: Fri | Q11: 0 | R11: FALSE
A12: Jul | B12: =VLOOKUP(ETo_Zone,ETo_Zone_Chart,8) -> 8.68 | C12: 5.208 | D12: 390.0712889 | E12: 88 | F12: 13 | G12: 10 | H12: 31 | I12: 0.168 | J12: 3.928571429 | L12: JulOffset | M12: =DATE(CalendarYear,7,1)-WEEKDAY(DATE(CalendarYear,7,1)) -> 2017-06-24 | O12: 7 | P12: Sat | Q12: 1 | R12: TRUE
A13: Aug | B13: =VLOOKUP(ETo_Zone,ETo_Zone_Chart,9) -> 7.75 | C13: 4.65 | D13: 348.2779365 | E13: 79 | F13: 11 | G13: 9 | H13: 31 | I13: 0.15 | J13: 4.4 | L13: AugOffset | M13: =DATE(CalendarYear,8,1)-WEEKDAY(DATE(CalendarYear,8,1)) -> 2017-07-29
A14: Sep | B14: =VLOOKUP(ETo_Zone,ETo_Zone_Chart,10) -> 5.7 | C14: 3.42 | D14: 256.1528049 | E14: 60 | F14: 9 | G14: 7 | H14: 30 | I14: 0.114 | J14: 5.789473684 | L14: SepOffset | M14: =DATE(CalendarYear,9,1)-WEEKDAY(DATE(CalendarYear,9,1)) -> 2017-08-26 | P14: Count | Q14: =SUM(Q6:Q12) -> 3
A15: Oct | B15: =VLOOKUP(ETo_Zone,ETo_Zone_Chart,11) -> 4.03 | C15: 2.418 | D15: 181.104527 | E15: 41 | F15: 6 | G15: 5 | H15: 31 | I15: 0.078 | J15: 8.461538462 | L15: OctOffset | M15: =DATE(CalendarYear,10,1)-WEEKDAY(DATE(CalendarYear,10,1)) -> 2017-09-30 | P15: Approx days to next water | Q15: =7/Q14-1 -> 1.333333333
A16: Nov | B16: =VLOOKUP(ETo_Zone,ETo_Zone_Chart,12) -> 2.1 | C16: 1.26 | D16: 94.37208603 | E16: 22 | F16: 3 | G16: 2 | H16: 30 | I16: 0.042 | J16: 15.71428571 | L16: NovOffset | M16: =DATE(CalendarYear,11,1)-WEEKDAY(DATE(CalendarYear,11,1)) -> 2017-10-28
A17: Dec | B17: =VLOOKUP(ETo_Zone,ETo_Zone_Chart,13)*KL -> 0.93 | C17: 0.558 | D17: 41.79335238 | E17: 9 | F17: 1 | G17: 1 | H17: 31 | I17: 0.018 | J17: 36.66666667 | L17: DecOffset | M17: =DATE(CalendarYear,12,1)-WEEKDAY(DATE(CalendarYear,12,1)) -> 2017-11-25
A18: Total | B18: =SUM(B6:B17) -> 56.42 | C18: =SUM(C6:C17) -> 33.852 | H18: =SUM(H6:H17) -> 365
A19: Max | B19: =MAX(B6:B17) -> 8.68 | C19: =MAX(C6:C17) -> 5.208
A22: This irrigation advice:
C23: Assumes replacing water at 50% depletion
C24: Does not consider Kmc (microclimate factor), Kd (landsacpe density), or
C25: other factors.

Sheet Irrig Sched (hidden)
A1: Irrigation schedule
A2: Days of each month to run irrigation cycle
E4: Irrig year: | F4: =Irrig_Year -> 2017 | G4: =IF(OR(MOD(Irrig_Year,400)=0,AND(MOD(Irrig_Year,4)=0,MOD(Irrig_Year,100)<>0))," is a Leap Year", " is NOT a Leap Year") -> is NOT a Leap Year
E5: Amount applied: | F5: =Amt_Applied -> 0.6465306122 | G5: In.
C7: IrrDay | D7: ='DAILY ETo'!I6 -> 0.03 | H7: IrrDay | I7: ='DAILY ETo'!I7 -> 0.048 | M7: IrrDay | N7: ='DAILY ETo'!I8 -> 0.072 | R7: IrrDay | S7: ='DAILY ETo'!I9 -> 0.102 | W7: IrrDay | X7: ='DAILY ETo'!I10 -> 0.132 | AB7: IrrDay | AC7: ='DAILY ETo'!I11 -> 0.156 | AG7: IrrDay | AH7: ='DAILY ETo'!I12 -> 0.168 | AL7: IrrDay | AM7: ='DAILY ETo'!I13 -> 0.15 | AQ7: IrrDay | AR7: ='DAILY ETo'!I14 -> 0.114 | AV7: IrrDay | AW7: ='DAILY ETo'!I15 -> 0.078 | BA7: IrrDay | BB7: ='DAILY ETo'!I16 -> 0.042 | BF7: IrrDay | BG7: ='DAILY ETo'!I17 -> 0.018
A8: Jan | F8: Feb | K8: Mar | P8: Apr | U8: May | Z8: Jun | AE8: Jul | AJ8: Aug | AO8: Sep | AT8: Oct | AY8: Nov | BD8: Dec
A9: =VLOOKUP(WEEKDAY(DATE(CalendarYear,1,B9)),DayOfWeek,2) -> Sun | B9: 1 | C9: =INDEX('DAILY ETo'!$Q$6:$Q$12,(MATCH(A9,'DAILY ETo'!$P$6:$P$12,0))) -> 0 | D9: =D7 -> 0.03 | E9: =IF(Amt_Applied>=JanETo,"","Run") ->  | F9: =VLOOKUP(WEEKDAY(DATE(CalendarYear,2,B9)),DayOfWeek,2) -> Wed | G9: 1 | H9: =INDEX('DAILY ETo'!$Q$6:$Q$12,(MATCH(F9,'DAILY ETo'!$P$6:$P$12,0))) -> 0 | I9: =IF(Amt_Applied>=Days_Btn_Irrig*I$7+D39,I$7+D39,IF(H9=1,I$7+D39-Amt_Applied,I$7+D39)) -> 0.3314693878 | J9: =IF(Amt_Applied>=Days_Btn_Irrig*I$7+D39,"",IF(H9=1,"Run","")) ->  | K9: =VLOOKUP(WEEKDAY(DATE(CalendarYear,3,B9)),DayOfWeek,2) -> Wed | L9: 1 | M9: =INDEX('DAILY ETo'!$Q$6:$Q$12,(MATCH(K9,'DAILY ETo'!$P$6:$P$12,0))) -> 0 | N9: =IF(G4=" is a Leap Year",IF(Amt_Applied>=Days_Btn_Irrig*N$7+I37,N$7+I37,IF(M9=1,N$7+I37-Amt_Applied,N$7+I37)), IF(Amt_Applied>=Days_Btn_Irrig*N$7+I36,N$7+I36,IF(M9=1,N$7+I36-Amt_Applied,N$7+I36))) -> 0.4064081633 | O9: =IF(G4=" is a Leap Year",IF(Amt_Applied>=Days_Btn_Irrig*N$7+I37,"",IF(M9=1,"Run","")),IF(Amt_Applied>=Days_Btn_Irrig*N$7+I36,"",IF(M9=1,"Run",""))) ->  | P9: =VLOOKUP(WEEKDAY(DATE(CalendarYear,4,B9)),DayOfWeek,2) -> Sat | Q9: 1 | R9: =INDEX('DAILY ETo'!$Q$6:$Q$12,(MATCH(P9,'DAILY ETo'!$P$6:$P$12,0))) -> 1 | S9: =IF(Amt_Applied>=Days_Btn_Irrig*S$7+N39,S$7+N39,IF(R9=1,S$7+N39-Amt_Applied,S$7+N39)) -> 0.08228571429 | T9: =IF(Amt_Applied>=Days_Btn_Irrig*S$7+N39,"",IF(R9=1,"Run","")) -> Run | U9: =VLOOKUP(WEEKDAY(DATE(CalendarYear,5,B9)),DayOfWeek,2) -> Mon | V9: 1 | W9: =INDEX('DAILY ETo'!$Q$6:$Q$12,(MATCH(U9,'DAILY ETo'!$P$6:$P$12,0))) -> 0 | X9: =IF(Amt_Applied>=Days_Btn_Irrig*X$7+S38,X$7+S38,IF(W9=1,X$7+S38-Amt_Applied,X$7+S38)) -> 0.5861632653 | Y9: =IF(Amt_Applied>=Days_Btn_Irrig*X$7+S38,"",IF(W9=1,"Run","")) ->  | Z9: =VLOOKUP(WEEKDAY(DATE(CalendarYear,6,B9)),DayOfWeek,2) -> Thu | AA9: 1 | AB9: =INDEX('DAILY ETo'!$Q$6:$Q$12,(MATCH(Z9,'DAILY ETo'!$P$6:$P$12,0))) -> 1 | AC9: =IF(Amt_Applied>=Days_Btn_Irrig*AC$7+X39,AC$7+X39,IF(AB9=1,AC$7+X39-Amt_Applied,AC$7+X39)) -> 0.1764489796 | AD9: =IF(Amt_Applied>=Days_Btn_Irrig*AC$7+X39,"",IF(AB9=1,"Run","")) -> Run | AE9: =VLOOKUP(WEEKDAY(DATE(CalendarYear,7,B9)),DayOfWeek,2) -> Sat | AF9: 1 | AG9: =INDEX('DAILY ETo'!$Q$6:$Q$12,(MATCH(AE9,'DAILY ETo'!$P$6:$P$12,0))) -> 1 | AH9: =IF(Amt_Applied>=Days_Btn_Irrig*AH$7+AC38,AH$7+AC38,IF(AG9=1,AH$7+AC38-Amt_Applied,AH$7+AC38)) -> 0.3427346939 | AI9: =IF(Amt_Applied>=Days_Btn_Irrig*AH$7+AC38,"",IF(AG9=1,"Run","")) ->  | AJ9: =VLOOKUP(WEEKDAY(DATE(CalendarYear,8,B9)),DayOfWeek,2) -> Tue | AK9: 1 | AL9: =INDEX('DAILY ETo'!$Q$6:$Q$12,(MATCH(AJ9,'DAILY ETo'!$P$6:$P$12,0))) -> 1 | AM9: =IF(Amt_Applied>=Days_Btn_Irrig*AM$7+AH39,AM$7+AH39,IF(AL9=1,AM$7+AH39-Amt_Applied,AM$7+AH39)) -> 0.3604897959 | AN9: =IF(Amt_Applied>=Days_Btn_Irrig*AM$7+AH39,"",IF(AL9=1,"Run","")) -> Run | AO9: =VLOOKUP(WEEKDAY(DATE(CalendarYear,9,B9)),DayOfWeek,2) -> Fri | AP9: 1 | AQ9: =INDEX('DAILY ETo'!$Q$6:$Q$12,(MATCH(AO9,'DAILY ETo'!$P$6:$P$12,0))) -> 0 | AR9: =IF(Amt_Applied>=Days_Btn_Irrig*AR$7+AM39,AR$7+AM39,IF(AQ9=1,AR$7+AM39-Amt_Applied,AR$7+AM39)) -> 0.4487755102 | AS9: =IF(Amt_Applied>=Days_Btn_Irrig*AR$7+AM39,"",IF(AQ9=1,"Run","")) ->  | AT9: =VLOOKUP(WEEKDAY(DATE(CalendarYear,10,B9)),DayOfWeek,2) -> Sun | AU9: 1 | AV9: =INDEX('DAILY ETo'!$Q$6:$Q$12,(MATCH(AT9,'DAILY ETo'!$P$6:$P$12,0))) -> 0 | AW9: =IF(Amt_Applied>=Days_Btn_Irrig*AW$7+AR38,AW$7+AR38,IF(AV9=1,AW$7+AR38-Amt_Applied,AW$7+AR38)) -> 0.600122449 | AX9: =IF(Amt_Applied>=Days_Btn_Irrig*AW$7+AR38,"",IF(AV9=1,"Run","")) ->  | AY9: =VLOOKUP(WEEKDAY(DATE(CalendarYear,11,B9)),DayOfWeek,2) -> Wed | AZ9: 1 | BA9: =INDEX('DAILY ETo'!$Q$6:$Q$12,(MATCH(AY9,'DAILY ETo'!$P$6:$P$12,0))) -> 0 | BB9: =IF(Amt_Applied>=Days_Btn_Irrig*BB$7+AW39,BB$7+AW39,IF(BA9=1,BB$7+AW39-Amt_Applied,BB$7+AW39)) -> 0.396 | BC9: =IF(Amt_Applied>=Days_Btn_Irrig*BB$7+AW39,"",IF(BA9=1,"Run","")) ->  | BD9: =VLOOKUP(WEEKDAY(DATE(CalendarYear,12,B9)),DayOfWeek,2) -> Fri | BE9: 1 | BF9: =INDEX('DAILY ETo'!$Q$6:$Q$12,(MATCH(BD9,'DAILY ETo'!$P$6:$P$12,0))) -> 0 | BG9: =IF(Amt_Applied>=Days_Btn_Irrig*BG$7+BB38,BG$7+BB38,IF(BF9=1,BG$7+BB38-Amt_Applied,BG$7+BB38)) -> 0.3389387755 | BH9: =IF(Amt_Applied>=Days_Btn_Irrig*BG$7+BB38,"",IF(BF9=1,"Run","")) -> 
A10: =VLOOKUP(WEEKDAY(DATE(CalendarYear,1,B10)),DayOfWeek,2) -> Mon | B10: 2 | C10: =INDEX('DAILY ETo'!$Q$6:$Q$12,(MATCH(A10,'DAILY ETo'!$P$6:$P$12,0))) -> 0 | D10: =IF(Amt_Applied>=Days_Btn_Irrig*D$7+D9,D$7+D9,IF(C10=1,D$7+D9-Amt_Applied,D$7+D9)) -> 0.06 | E10: =IF(Amt_Applied>=Days_Btn_Irrig*D$7+D9,"",IF(C10=1,"Run","")) ->  | F10: Thu | G10: 2 | H10: =INDEX('DAILY ETo'!$Q$6:$Q$12,(MATCH(F10,'DAILY ETo'!$P$6:$P$12,0))) -> 1 | I10: =IF(Amt_Applied>=Days_Btn_Irrig*I$7+I9,I$7+I9,IF(H10=1,I$7+I9-Amt_Applied,I$7+I9)) -> 0.3794693878 | J10: =IF(Amt_Applied>=Days_Btn_Irrig*I$7+I9,"",IF(H10=1,"Run","")) ->  | K10: Thu | L10: 2 | M10: =INDEX('DAILY ETo'!$Q$6:$Q$12,(MATCH(K10,'DAILY ETo'!$P$6:$P$12,0))) -> 1 | N10: =IF(Amt_Applied>=Days_Btn_Irrig*N$7+N9,N$7+N9,IF(M10=1,N$7+N9-Amt_Applied,N$7+N9)) -> 0.4784081633 | O10: =IF(Amt_Applied>=Days_Btn_Irrig*N$7+N9,"",IF(M10=1,"Run","")) ->  | P10: Sun | Q10: 2 | R10: =INDEX('DAILY ETo'!$Q$6:$Q$12,(MATCH(P10,'DAILY ETo'!$P$6:$P$12,0))) -> 0 | S10: =IF(Amt_Applied>=Days_Btn_Irrig*S$7+S9,S$7+S9,IF(R10=1,S$7+S9-Amt_Applied,S$7+S9)) -> 0.1842857143 | T10: =IF(Amt_Applied>=Days_Btn_Irrig*S$7+S9,"",IF(R10=1,"Run","")) ->  | U10: Tue | V10: 2 | W10: =INDEX('DAILY ETo'!$Q$6:$Q$12,(MATCH(U10,'DAILY ETo'!$P$6:$P$12,0))) -> 1 | X10: =IF(Amt_Applied>=Days_Btn_Irrig*X$7+X9,X$7+X9,IF(W10=1,X$7+X9-Amt_Applied,X$7+X9)) -> 0.07163265306 | Y10: =IF(Amt_Applied>=Days_Btn_Irrig*X$7+X9,"",IF(W10=1,"Run","")) -> Run | Z10: Fri | AA10: 2 | AB10: =INDEX('DAILY ETo'!$Q$6:$Q$12,(MATCH(Z10,'DAILY ETo'!$P$6:$P$12,0))) -> 0 | AC10: =IF(Amt_Applied>=Days_Btn_Irrig*AC$7+AC9,AC$7+AC9,IF(AB10=1,AC$7+AC9-Amt_Applied,AC$7+AC9)) -> 0.3324489796 | AD10: =IF(Amt_Applied>=Days_Btn_Irrig*AC$7+AC9,"",IF(AB10=1,"Run","")) ->  | AE10: Sun | AF10: 2 | AG10: =INDEX('DAILY ETo'!$Q$6:$Q$12,(MATCH(AE10,'DAILY ETo'!$P$6:$P$12,0))) -> 0 | AH10: =IF(Amt_Applied>=Days_Btn_Irrig*AH$7+AH9,AH$7+AH9,IF(AG10=1,AH$7+AH9-Amt_Applied,AH$7+AH9)) -> 0.5107346939 | AI10: =IF(Amt_Applied>=Days_Btn_Irrig*AH$7+AH9,"",IF(AG10=1,"Run","")) ->  | AJ10: Wed | AK10: 2 | AL10: =INDEX('DAILY ETo'!$Q$6:$Q$12,(MATCH(AJ10,'DAILY ETo'!$P$6:$P$12,0))) -> 0 | AM10: =IF(Amt_Applied>=Days_Btn_Irrig*AM$7+AM9,AM$7+AM9,IF(AL10=1,AM$7+AM9-Amt_Applied,AM$7+AM9)) -> 0.5104897959 | AN10: =IF(Amt_Applied>=Days_Btn_Irrig*AM$7+AM9,"",IF(AL10=1,"Run","")) ->  | AO10: Sat | AP10: 2 | AQ10: =INDEX('DAILY ETo'!$Q$6:$Q$12,(MATCH(AO10,'DAILY ETo'!$P$6:$P$12,0))) -> 1 | AR10: =IF(Amt_Applied>=Days_Btn_Irrig*AR$7+AR9,AR$7+AR9,IF(AQ10=1,AR$7+AR9-Amt_Applied,AR$7+AR9)) -> 0.5627755102 | AS10: =IF(Amt_Applied>=Days_Btn_Irrig*AR$7+AR9,"",IF(AQ10=1,"Run","")) ->  | AT10: Mon | AU10: 2 | AV10: =INDEX('DAILY ETo'!$Q$6:$Q$12,(MATCH(AT10,'DAILY ETo'!$P$6:$P$12,0))) -> 0 | AW10: =IF(Amt_Applied>=Days_Btn_Irrig*AW$7+AW9,AW$7+AW9,IF(AV10=1,AW$7+AW9-Amt_Applied,AW$7+AW9)) -> 0.678122449 | AX10: =IF(Amt_Applied>=Days_Btn_Irrig*AW$7+AW9,"",IF(AV10=1,"Run","")) ->  | AY10: Thu | AZ10: 2 | BA10: =INDEX('DAILY ETo'!$Q$6:$Q$12,(MATCH(AY10,'DAILY ETo'!$P$6:$P$12,0))) -> 1 | BB10: =IF(Amt_Applied>=Days_Btn_Irrig*BB$7+BB9,BB$7+BB9,IF(BA10=1,BB$7+BB9-Amt_Applied,BB$7+BB9)) -> 0.438 | BC10: =IF(Amt_Applied>=Days_Btn_Irrig*BB$7+BB9,"",IF(BA10=1,"Run","")) ->  | BD10: Sat | BE10: 2 | BF10: =INDEX('DAILY ETo'!$Q$6:$Q$12,(MATCH(BD10,'DAILY ETo'!$P$6:$P$12,0))) -> 1 | BG10: =IF(Amt_Applied>=Days_Btn_Irrig*BG$7+BG9,BG$7+BG9,IF(BF10=1,BG$7+BG9-Amt_Applied,BG$7+BG9)) -> 0.3569387755 | BH10: =IF(Amt_Applied>=Days_Btn_Irrig*BG$7+BG9,"",IF(BF10=1,"Run","")) -> 
A11: Tue | B11: 3 | C11: =INDEX('DAILY ETo'!$Q$6:$Q$12,(MATCH(A11,'DAILY ETo'!$P$6:$P$12,0))) -> 1 | D11: =IF(Amt_Applied>=Days_Btn_Irrig*D$7+D10,D$7+D10,IF(C11=1,D$7+D10-Amt_Applied,D$7+D10)) -> 0.09 | F11: Fri | G11: 3 | H11: =INDEX('DAILY ETo'!$Q$6:$Q$12,(MATCH(F11,'DAILY ETo'!$P$6:$P$12,0))) -> 0 | I11: 0.4274693878 | K11: Fri | L11: 3 | M11: =INDEX('DAILY ETo'!$Q$6:$Q$12,(MATCH(K11,'DAILY ETo'!$P$6:$P$12,0))) -> 0 | N11: 0.5504081633 | P11: Mon | Q11: 3 | R11: =INDEX('DAILY ETo'!$Q$6:$Q$12,(MATCH(P11,'DAILY ETo'!$P$6:$P$12,0))) -> 0 | S11: 0.2862857143 | U11: Wed | V11: 3 | W11: =INDEX('DAILY ETo'!$Q$6:$Q$12,(MATCH(U11,'DAILY ETo'!$P$6:$P$12,0))) -> 0 | X11: 0.2036326531 | Z11: Sat | AA11: 3 | AB11: =INDEX('DAILY ETo'!$Q$6:$Q$12,(MATCH(Z11,'DAILY ETo'!$P$6:$P$12,0))) -> 1 | AC11: 0.4884489796 | AE11: Mon | AF11: 3 | AG11: =INDEX('DAILY ETo'!$Q$6:$Q$12,(MATCH(AE11,'DAILY ETo'!$P$6:$P$12,0))) -> 0 | AH11: 0.6787346939 | AJ11: Thu | AK11: 3 | AL11: =INDEX('DAILY ETo'!$Q$6:$Q$12,(MATCH(AJ11,'DAILY ETo'!$P$6:$P$12,0))) -> 1 | AM11: 0.01395918367 | AN11: Run | AO11: Sun | AP11: 3 | AQ11: =INDEX('DAILY ETo'!$Q$6:$Q$12,(MATCH(AO11,'DAILY ETo'!$P$6:$P$12,0))) -> 0 | AR11: 0.6767755102 | AT11: Tue | AU11: 3 | AV11: =INDEX('DAILY ETo'!$Q$6:$Q$12,(MATCH(AT11,'DAILY ETo'!$P$6:$P$12,0))) -> 1 | AW11: 0.1095918367 | AX11: Run | AY11: Fri | AZ11: 3 | BA11: =INDEX('DAILY ETo'!$Q$6:$Q$12,(MATCH(AY11,'DAILY ETo'!$P$6:$P$12,0))) -> 0 | BB11: 0.48 | BD11: Sun | BE11: 3 | BF11: =INDEX('DAILY ETo'!$Q$6:$Q$12,(MATCH(BD11,'DAILY ETo'!$P$6:$P$12,0))) -> 0 | BG11: 0.3749387755
A12: Wed | B12: 4 | C12: =INDEX('DAILY ETo'!$Q$6:$Q$12,(MATCH(A12,'DAILY ETo'!$P$6:$P$12,0))) -> 0 | D12: 0.12 | F12: Sat | G12: 4 | H12: =INDEX('DAILY ETo'!$Q$6:$Q$12,(MATCH(F12,'DAILY ETo'!$P$6:$P$12,0))) -> 1 | I12: 0.4754693878 | K12: Sat | L12: 4 | M12: =INDEX('DAILY ETo'!$Q$6:$Q$12,(MATCH(K12,'DAILY ETo'!$P$6:$P$12,0))) -> 1 | N12: 0.6224081633 | P12: Tue | Q12: 4 | R12: =INDEX('DAILY ETo'!$Q$6:$Q$12,(MATCH(P12,'DAILY ETo'!$P$6:$P$12,0))) -> 1 | S12: 0.3882857143 | U12: Thu | V12: 4 | W12: =INDEX('DAILY ETo'!$Q$6:$Q$12,(MATCH(U12,'DAILY ETo'!$P$6:$P$12,0))) -> 1 | X12: 0.3356326531 | Z12: Sun | AA12: 4 | AB12: =INDEX('DAILY ETo'!$Q$6:$Q$12,(MATCH(Z12,'DAILY ETo'!$P$6:$P$12,0))) -> 0 | AC12: 0.6444489796 | AE12: Tue | AF12: 4 | AG12: =INDEX('DAILY ETo'!$Q$6:$Q$12,(MATCH(AE12,'DAILY ETo'!$P$6:$P$12,0))) -> 1 | AH12: 0.2002040816 | AI12: Run | AJ12: Fri | AK12: 4 | AL12: =INDEX('DAILY ETo'!$Q$6:$Q$12,(MATCH(AJ12,'DAILY ETo'!$P$6:$P$12,0))) -> 0 | AM12: 0.1639591837 | AO12: Mon | AP12: 4 | AQ12: =INDEX('DAILY ETo'!$Q$6:$Q$12,(MATCH(AO12,'DAILY ETo'!$P$6:$P$12,0))) -> 0 | AR12: 0.7907755102 | AT12: Wed | AU12: 4 | AV12: =INDEX('DAILY ETo'!$Q$6:$Q$12,(MATCH(AT12,'DAILY ETo'!$P$6:$P$12,0))) -> 0 | AW12: 0.1875918367 | AY12: Sat | AZ12: 4 | BA12: =INDEX('DAILY ETo'!$Q$6:$Q$12,(MATCH(AY12,'DAILY ETo'!$P$6:$P$12,0))) -> 1 | BB12: 0.522 | BD12: Mon | BE12: 4 | BF12: =INDEX('DAILY ETo'!$Q$6:$Q$12,(MATCH(BD12,'DAILY ETo'!$P$6:$P$12,0))) -> 0 | BG12: 0.3929387755
A13: Thu | B13: 5 | C13: =INDEX('DAILY ETo'!$Q$6:$Q$12,(MATCH(A13,'DAILY ETo'!$P$6:$P$12,0))) -> 1 | D13: 0.15 | F13: Sun | G13: 5 | H13: =INDEX('DAILY ETo'!$Q$6:$Q$12,(MATCH(F13,'DAILY ETo'!$P$6:$P$12,0))) -> 0 | I13: 0.5234693878 | K13: Sun | L13: 5 | M13: =INDEX('DAILY ETo'!$Q$6:$Q$12,(MATCH(K13,'DAILY ETo'!$P$6:$P$12,0))) -> 0 | N13: 0.6944081633 | P13: Wed | Q13: 5 | R13: =INDEX('DAILY ETo'!$Q$6:$Q$12,(MATCH(P13,'DAILY ETo'!$P$6:$P$12,0))) -> 0 | S13: 0.4902857143 | U13: Fri | V13: 5 | W13: =INDEX('DAILY ETo'!$Q$6:$Q$12,(MATCH(U13,'DAILY ETo'!$P$6:$P$12,0))) -> 0 | X13: 0.4676326531 | Z13: Mon | AA13: 5 | AB13: =INDEX('DAILY ETo'!$Q$6:$Q$12,(MATCH(Z13,'DAILY ETo'!$P$6:$P$12,0))) -> 0 | AC13: 0.8004489796 | AE13: Wed | AF13: 5 | AG13: =INDEX('DAILY ETo'!$Q$6:$Q$12,(MATCH(AE13,'DAILY ETo'!$P$6:$P$12,0))) -> 0 | AH13: 0.3682040816 | AJ13: Sat | AK13: 5 | AL13: =INDEX('DAILY ETo'!$Q$6:$Q$12,(MATCH(AJ13,'DAILY ETo'!$P$6:$P$12,0))) -> 1 | AM13: 0.3139591837 | AO13: Tue | AP13: 5 | AQ13: =INDEX('DAILY ETo'!$Q$6:$Q$12,(MATCH(AO13,'DAILY ETo'!$P$6:$P$12,0))) -> 1 | AR13: 0.258244898 | AS13: Run | AT13: Thu | AU13: 5 | AV13: =INDEX('DAILY ETo'!$Q$6:$Q$12,(MATCH(AT13,'DAILY ETo'!$P$6:$P$12,0))) -> 1 | AW13: 0.2655918367 | AY13: Sun | AZ13: 5 | BA13: =INDEX('DAILY ETo'!$Q$6:$Q$12,(MATCH(AY13,'DAILY ETo'!$P$6:$P$12,0))) -> 0 | BB13: 0.564 | BD13: Tue | BE13: 5 | BF13: =INDEX('DAILY ETo'!$Q$6:$Q$12,(MATCH(BD13,'DAILY ETo'!$P$6:$P$12,0))) -> 1 | BG13: 0.4109387755
A14: Fri | B14: 6 | C14: =INDEX('DAILY ETo'!$Q$6:$Q$12,(MATCH(A14,'DAILY ETo'!$P$6:$P$12,0))) -> 0 | D14: 0.18 | F14: Mon | G14: 6 | H14: =INDEX('DAILY ETo'!$Q$6:$Q$12,(MATCH(F14,'DAILY ETo'!$P$6:$P$12,0))) -> 0 | I14: 0.5714693878 | K14: Mon | L14: 6 | M14: =INDEX('DAILY ETo'!$Q$6:$Q$12,(MATCH(K14,'DAILY ETo'!$P$6:$P$12,0))) -> 0 | N14: 0.7664081633 | P14: Thu | Q14: 6 | R14: =INDEX('DAILY ETo'!$Q$6:$Q$12,(MATCH(P14,'DAILY ETo'!$P$6:$P$12,0))) -> 1 | S14: 0.5922857143 | U14: Sat | V14: 6 | W14: =INDEX('DAILY ETo'!$Q$6:$Q$12,(MATCH(U14,'DAILY ETo'!$P$6:$P$12,0))) -> 1 | X14: 0.5996326531 | Z14: Tue | AA14: 6 | AB14: =INDEX('DAILY ETo'!$Q$6:$Q$12,(MATCH(Z14,'DAILY ETo'!$P$6:$P$12,0))) -> 1 | AC14: 0.3099183673 | AD14: Run | AE14: Thu | AF14: 6 | AG14: =INDEX('DAILY ETo'!$Q$6:$Q$12,(MATCH(AE14,'DAILY ETo'!$P$6:$P$12,0))) -> 1 | AH14: 0.5362040816 | AJ14: Sun | AK14: 6 | AL14: =INDEX('DAILY ETo'!$Q$6:$Q$12,(MATCH(AJ14,'DAILY ETo'!$P$6:$P$12,0))) -> 0 | AM14: 0.4639591837 | AO14: Wed | AP14: 6 | AQ14: =INDEX('DAILY ETo'!$Q$6:$Q$12,(MATCH(AO14,'DAILY ETo'!$P$6:$P$12,0))) -> 0 | AR14: 0.372244898 | AT14: Fri | AU14: 6 | AV14: =INDEX('DAILY ETo'!$Q$6:$Q$12,(MATCH(AT14,'DAILY ETo'!$P$6:$P$12,0))) -> 0 | AW14: 0.3435918367 | AY14: Mon | AZ14: 6 | BA14: =INDEX('DAILY ETo'!$Q$6:$Q$12,(MATCH(AY14,'DAILY ETo'!$P$6:$P$12,0))) -> 0 | BB14: 0.606 | BD14: Wed | BE14: 6 | BF14: =INDEX('DAILY ETo'!$Q$6:$Q$12,(MATCH(BD14,'DAILY ETo'!$P$6:$P$12,0))) -> 0 | BG14: 0.4289387755
A15: Sat | B15: 7 | C15: =INDEX('DAILY ETo'!$Q$6:$Q$12,(MATCH(A15,'DAILY ETo'!$P$6:$P$12,0))) -> 1 | D15: 0.21 | F15: Tue | G15: 7 | H15: =INDEX('DAILY ETo'!$Q$6:$Q$12,(MATCH(F15,'DAILY ETo'!$P$6:$P$12,0))) -> 1 | I15: 0.6194693878 | K15: Tue | L15: 7 | M15: =INDEX('DAILY ETo'!$Q$6:$Q$12,(MATCH(K15,'DAILY ETo'!$P$6:$P$12,0))) -> 1 | N15: 0.191877551 | O15: Run | P15: Fri | Q15: 7 | R15: =INDEX('DAILY ETo'!$Q$6:$Q$12,(MATCH(P15,'DAILY ETo'!$P$6:$P$12,0))) -> 0 | S15: 0.6942857143 | U15: Sun | V15: 7 | W15: =INDEX('DAILY ETo'!$Q$6:$Q$12,(MATCH(U15,'DAILY ETo'!$P$6:$P$12,0))) -> 0 | X15: 0.7316326531 | Z15: Wed | AA15: 7 | AB15: =INDEX('DAILY ETo'!$Q$6:$Q$12,(MATCH(Z15,'DAILY ETo'!$P$6:$P$12,0))) -> 0 | AC15: 0.4659183673 | AE15: Fri | AF15: 7 | AG15: =INDEX('DAILY ETo'!$Q$6:$Q$12,(MATCH(AE15,'DAILY ETo'!$P$6:$P$12,0))) -> 0 | AH15: 0.7042040816 | AJ15: Mon | AK15: 7 | AL15: =INDEX('DAILY ETo'!$Q$6:$Q$12,(MATCH(AJ15,'DAILY ETo'!$P$6:$P$12,0))) -> 0 | AM15: 0.6139591837 | AO15: Thu | AP15: 7 | AQ15: =INDEX('DAILY ETo'!$Q$6:$Q$12,(MATCH(AO15,'DAILY ETo'!$P$6:$P$12,0))) -> 1 | AR15: 0.486244898 | AT15: Sat | AU15: 7 | AV15: =INDEX('DAILY ETo'!$Q$6:$Q$12,(MATCH(AT15,'DAILY ETo'!$P$6:$P$12,0))) -> 1 | AW15: 0.4215918367 | AY15: Tue | AZ15: 7 | BA15: =INDEX('DAILY ETo'!$Q$6:$Q$12,(MATCH(AY15,'DAILY ETo'!$P$6:$P$12,0))) -> 1 | BB15: 0.001469387755 | BC15: Run | BD15: Thu | BE15: 7 | BF15: =INDEX('DAILY ETo'!$Q$6:$Q$12,(MATCH(BD15,'DAILY ETo'!$P$6:$P$12,0))) -> 1 | BG15: 0.4469387755
A16: Sun | B16: 8 | C16: =INDEX('DAILY ETo'!$Q$6:$Q$12,(MATCH(A16,'DAILY ETo'!$P$6:$P$12,0))) -> 0 | D16: 0.24 | F16: Wed | G16: 8 | H16: =INDEX('DAILY ETo'!$Q$6:$Q$12,(MATCH(F16,'DAILY ETo'!$P$6:$P$12,0))) -> 0 | I16: 0.6674693878 | K16: Wed | L16: 8 | M16: =INDEX('DAILY ETo'!$Q$6:$Q$12,(MATCH(K16,'DAILY ETo'!$P$6:$P$12,0))) -> 0 | N16: 0.263877551 | P16: Sat | Q16: 8 | R16: =INDEX('DAILY ETo'!$Q$6:$Q$12,(MATCH(P16,'DAILY ETo'!$P$6:$P$12,0))) -> 1 | S16: 0.149755102 | T16: Run | U16: Mon | V16: 8 | W16: =INDEX('DAILY ETo'!$Q$6:$Q$12,(MATCH(U16,'DAILY ETo'!$P$6:$P$12,0))) -> 0 | X16: 0.8636326531 | Z16: Thu | AA16: 8 | AB16: =INDEX('DAILY ETo'!$Q$6:$Q$12,(MATCH(Z16,'DAILY ETo'!$P$6:$P$12,0))) -> 1 | AC16: -0.0246122449 | AD16: Run | AE16: Sat | AF16: 8 | AG16: =INDEX('DAILY ETo'!$Q$6:$Q$12,(MATCH(AE16,'DAILY ETo'!$P$6:$P$12,0))) -> 1 | AH16: 0.2256734694 | AI16: Run | AJ16: Tue | AK16: 8 | AL16: =INDEX('DAILY ETo'!$Q$6:$Q$12,(MATCH(AJ16,'DAILY ETo'!$P$6:$P$12,0))) -> 1 | AM16: 0.1174285714 | AN16: Run | AO16: Fri | AP16: 8 | AQ16: =INDEX('DAILY ETo'!$Q$6:$Q$12,(MATCH(AO16,'DAILY ETo'!$P$6:$P$12,0))) -> 0 | AR16: 0.600244898 | AT16: Sun | AU16: 8 | AV16: =INDEX('DAILY ETo'!$Q$6:$Q$12,(MATCH(AT16,'DAILY ETo'!$P$6:$P$12,0))) -> 0 | AW16: 0.4995918367 | AY16: Wed | AZ16: 8 | BA16: =INDEX('DAILY ETo'!$Q$6:$Q$12,(MATCH(AY16,'DAILY ETo'!$P$6:$P$12,0))) -> 0 | BB16: 0.04346938776 | BD16: Fri | BE16: 8 | BF16: =INDEX('DAILY ETo'!$Q$6:$Q$12,(MATCH(BD16,'DAILY ETo'!$P$6:$P$12,0))) -> 0 | BG16: 0.4649387755
A17: Mon | B17: 9 | C17: =INDEX('DAILY ETo'!$Q$6:$Q$12,(MATCH(A17,'DAILY ETo'!$P$6:$P$12,0))) -> 0 | D17: 0.27 | F17: Thu | G17: 9 | H17: =INDEX('DAILY ETo'!$Q$6:$Q$12,(MATCH(F17,'DAILY ETo'!$P$6:$P$12,0))) -> 1 | I17: 0.06893877551 | J17: Run | K17: Thu | L17: 9 | M17: =INDEX('DAILY ETo'!$Q$6:$Q$12,(MATCH(K17,'DAILY ETo'!$P$6:$P$12,0))) -> 1 | N17: 0.335877551 | P17: Sun | Q17: 9 | R17: =INDEX('DAILY ETo'!$Q$6:$Q$12,(MATCH(P17,'DAILY ETo'!$P$6:$P$12,0))) -> 0 | S17: 0.251755102 | U17: Tue | V17: 9 | W17: =INDEX('DAILY ETo'!$Q$6:$Q$12,(MATCH(U17,'DAILY ETo'!$P$6:$P$12,0))) -> 1 | X17: 0.3491020408 | Y17: Run | Z17: Fri | AA17: 9 | AB17: =INDEX('DAILY ETo'!$Q$6:$Q$12,(MATCH(Z17,'DAILY ETo'!$P$6:$P$12,0))) -> 0 | AC17: 0.1313877551 | AE17: Sun | AF17: 9 | AG17: =INDEX('DAILY ETo'!$Q$6:$Q$12,(MATCH(AE17,'DAILY ETo'!$P$6:$P$12,0))) -> 0 | AH17: 0.3936734694 | AJ17: Wed | AK17: 9 | AL17: =INDEX('DAILY ETo'!$Q$6:$Q$12,(MATCH(AJ17,'DAILY ETo'!$P$6:$P$12,0))) -> 0 | AM17: 0.2674285714 | AO17: Sat | AP17: 9 | AQ17: =INDEX('DAILY ETo'!$Q$6:$Q$12,(MATCH(AO17,'DAILY ETo'!$P$6:$P$12,0))) -> 1 | AR17: 0.06771428571 | AS17: Run | AT17: Mon | AU17: 9 | AV17: =INDEX('DAILY ETo'!$Q$6:$Q$12,(MATCH(AT17,'DAILY ETo'!$P$6:$P$12,0))) -> 0 | AW17: 0.5775918367 | AY17: Thu | AZ17: 9 | BA17: =INDEX('DAILY ETo'!$Q$6:$Q$12,(MATCH(AY17,'DAILY ETo'!$P$6:$P$12,0))) -> 1 | BB17: 0.08546938776 | BD17: Sat | BE17: 9 | BF17: =INDEX('DAILY ETo'!$Q$6:$Q$12,(MATCH(BD17,'DAILY ETo'!$P$6:$P$12,0))) -> 1 | BG17: 0.4829387755
A18: Tue | B18: 10 | C18: =INDEX('DAILY ETo'!$Q$6:$Q$12,(MATCH(A18,'DAILY ETo'!$P$6:$P$12,0))) -> 1 | D18: 0.3 | F18: Fri | G18: 10 | H18: =INDEX('DAILY ETo'!$Q$6:$Q$12,(MATCH(F18,'DAILY ETo'!$P$6:$P$12,0))) -> 0 | I18: 0.1169387755 | K18: Fri | L18: 10 | M18: =INDEX('DAILY ETo'!$Q$6:$Q$12,(MATCH(K18,'DAILY ETo'!$P$6:$P$12,0))) -> 0 | N18: 0.407877551 | P18: Mon | Q18: 10 | R18: =INDEX('DAILY ETo'!$Q$6:$Q$12,(MATCH(P18,'DAILY ETo'!$P$6:$P$12,0))) -> 0 | S18: 0.353755102 | U18: Wed | V18: 10 | W18: =INDEX('DAILY ETo'!$Q$6:$Q$12,(MATCH(U18,'DAILY ETo'!$P$6:$P$12,0))) -> 0 | X18: 0.4811020408 | Z18: Sat | AA18: 10 | AB18: =INDEX('DAILY ETo'!$Q$6:$Q$12,(MATCH(Z18,'DAILY ETo'!$P$6:$P$12,0))) -> 1 | AC18: 0.2873877551 | AE18: Mon | AF18: 10 | AG18: =INDEX('DAILY ETo'!$Q$6:$Q$12,(MATCH(AE18,'DAILY ETo'!$P$6:$P$12,0))) -> 0 | AH18: 0.5616734694 | AJ18: Thu | AK18: 10 | AL18: =INDEX('DAILY ETo'!$Q$6:$Q$12,(MATCH(AJ18,'DAILY ETo'!$P$6:$P$12,0))) -> 1 | AM18: 0.4174285714 | AO18: Sun | AP18: 10 | AQ18: =INDEX('DAILY ETo'!$Q$6:$Q$12,(MATCH(AO18,'DAILY ETo'!$P$6:$P$12,0))) -> 0 | AR18: 0.1817142857 | AT18: Tue | AU18: 10 | AV18: =INDEX('DAILY ETo'!$Q$6:$Q$12,(MATCH(AT18,'DAILY ETo'!$P$6:$P$12,0))) -> 1 | AW18: 0.00906122449 | AX18: Run | AY18: Fri | AZ18: 10 | BA18: =INDEX('DAILY ETo'!$Q$6:$Q$12,(MATCH(AY18,'DAILY ETo'!$P$6:$P$12,0))) -> 0 | BB18: 0.1274693878 | BD18: Sun | BE18: 10 | BF18: =INDEX('DAILY ETo'!$Q$6:$Q$12,(MATCH(BD18,'DAILY ETo'!$P$6:$P$12,0))) -> 0 | BG18: 0.5009387755
A19: Wed | B19: 11 | C19: =INDEX('DAILY ETo'!$Q$6:$Q$12,(MATCH(A19,'DAILY ETo'!$P$6:$P$12,0))) -> 0 | D19: 0.33 | F19: Sat | G19: 11 | H19: =INDEX('DAILY ETo'!$Q$6:$Q$12,(MATCH(F19,'DAILY ETo'!$P$6:$P$12,0))) -> 1 | I19: 0.1649387755 | K19: Sat | L19: 11 | M19: =INDEX('DAILY ETo'!$Q$6:$Q$12,(MATCH(K19,'DAILY ETo'!$P$6:$P$12,0))) -> 1 | N19: 0.479877551 | P19: Tue | Q19: 11 | R19: =INDEX('DAILY ETo'!$Q$6:$Q$12,(MATCH(P19,'DAILY ETo'!$P$6:$P$12,0))) -> 1 | S19: 0.455755102 | U19: Thu | V19: 11 | W19: =INDEX('DAILY ETo'!$Q$6:$Q$12,(MATCH(U19,'DAILY ETo'!$P$6:$P$12,0))) -> 1 | X19: -0.03342857143 | Y19: Run | Z19: Sun | AA19: 11 | AB19: =INDEX('DAILY ETo'!$Q$6:$Q$12,(MATCH(Z19,'DAILY ETo'!$P$6:$P$12,0))) -> 0 | AC19: 0.4433877551 | AE19: Tue | AF19: 11 | AG19: =INDEX('DAILY ETo'!$Q$6:$Q$12,(MATCH(AE19,'DAILY ETo'!$P$6:$P$12,0))) -> 1 | AH19: 0.08314285714 | AI19: Run | AJ19: Fri | AK19: 11 | AL19: =INDEX('DAILY ETo'!$Q$6:$Q$12,(MATCH(AJ19,'DAILY ETo'!$P$6:$P$12,0))) -> 0 | AM19: 0.5674285714 | AO19: Mon | AP19: 11 | AQ19: =INDEX('DAILY ETo'!$Q$6:$Q$12,(MATCH(AO19,'DAILY ETo'!$P$6:$P$12,0))) -> 0 | AR19: 0.2957142857 | AT19: Wed | AU19: 11 | AV19: =INDEX('DAILY ETo'!$Q$6:$Q$12,(MATCH(AT19,'DAILY ETo'!$P$6:$P$12,0))) -> 0 | AW19: 0.08706122449 | AY19: Sat | AZ19: 11 | BA19: =INDEX('DAILY ETo'!$Q$6:$Q$12,(MATCH(AY19,'DAILY ETo'!$P$6:$P$12,0))) -> 1 | BB19: 0.1694693878 | BD19: Mon | BE19: 11 | BF19: =INDEX('DAILY ETo'!$Q$6:$Q$12,(MATCH(BD19,'DAILY ETo'!$P$6:$P$12,0))) -> 0 | BG19: 0.5189387755
A20: Thu | B20: 12 | C20: =INDEX('DAILY ETo'!$Q$6:$Q$12,(MATCH(A20,'DAILY ETo'!$P$6:$P$12,0))) -> 1 | D20: 0.36 | F20: Sun | G20: 12 | H20: =INDEX('DAILY ETo'!$Q$6:$Q$12,(MATCH(F20,'DAILY ETo'!$P$6:$P$12,0))) -> 0 | I20: 0.2129387755 | K20: Sun | L20: 12 | M20: =INDEX('DAILY ETo'!$Q$6:$Q$12,(MATCH(K20,'DAILY ETo'!$P$6:$P$12,0))) -> 0 | N20: 0.551877551 | P20: Wed | Q20: 12 | R20: =INDEX('DAILY ETo'!$Q$6:$Q$12,(MATCH(P20,'DAILY ETo'!$P$6:$P$12,0))) -> 0 | S20: 0.557755102 | U20: Fri | V20: 12 | W20: =INDEX('DAILY ETo'!$Q$6:$Q$12,(MATCH(U20,'DAILY ETo'!$P$6:$P$12,0))) -> 0 | X20: 0.09857142857 | Z20: Mon | AA20: 12 | AB20: =INDEX('DAILY ETo'!$Q$6:$Q$12,(MATCH(Z20,'DAILY ETo'!$P$6:$P$12,0))) -> 0 | AC20: 0.5993877551 | AE20: Wed | AF20: 12 | AG20: =INDEX('DAILY ETo'!$Q$6:$Q$12,(MATCH(AE20,'DAILY ETo'!$P$6:$P$12,0))) -> 0 | AH20: 0.2511428571 | AJ20: Sat | AK20: 12 | AL20: =INDEX('DAILY ETo'!$Q$6:$Q$12,(MATCH(AJ20,'DAILY ETo'!$P$6:$P$12,0))) -> 1 | AM20: 0.07089795918 | AN20: Run | AO20: Tue | AP20: 12 | AQ20: =INDEX('DAILY ETo'!$Q$6:$Q$12,(MATCH(AO20,'DAILY ETo'!$P$6:$P$12,0))) -> 1 | AR20: 0.4097142857 | AT20: Thu | AU20: 12 | AV20: =INDEX('DAILY ETo'!$Q$6:$Q$12,(MATCH(AT20,'DAILY ETo'!$P$6:$P$12,0))) -> 1 | AW20: 0.1650612245 | AY20: Sun | AZ20: 12 | BA20: =INDEX('DAILY ETo'!$Q$6:$Q$12,(MATCH(AY20,'DAILY ETo'!$P$6:$P$12,0))) -> 0 | BB20: 0.2114693878 | BD20: Tue | BE20: 12 | BF20: =INDEX('DAILY ETo'!$Q$6:$Q$12,(MATCH(BD20,'DAILY ETo'!$P$6:$P$12,0))) -> 1 | BG20: 0.5369387755
A21: Fri | B21: 13 | C21: =INDEX('DAILY ETo'!$Q$6:$Q$12,(MATCH(A21,'DAILY ETo'!$P$6:$P$12,0))) -> 0 | D21: 0.39 | F21: Mon | G21: 13 | H21: =INDEX('DAILY ETo'!$Q$6:$Q$12,(MATCH(F21,'DAILY ETo'!$P$6:$P$12,0))) -> 0 | I21: 0.2609387755 | K21: Mon | L21: 13 | M21: =INDEX('DAILY ETo'!$Q$6:$Q$12,(MATCH(K21,'DAILY ETo'!$P$6:$P$12,0))) -> 0 | N21: 0.623877551 | P21: Thu | Q21: 13 | R21: =INDEX('DAILY ETo'!$Q$6:$Q$12,(MATCH(P21,'DAILY ETo'!$P$6:$P$12,0))) -> 1 | S21: 0.0132244898 | T21: Run | U21: Sat | V21: 13 | W21: =INDEX('DAILY ETo'!$Q$6:$Q$12,(MATCH(U21,'DAILY ETo'!$P$6:$P$12,0))) -> 1 | X21: 0.2305714286 | Z21: Tue | AA21: 13 | AB21: =INDEX('DAILY ETo'!$Q$6:$Q$12,(MATCH(Z21,'DAILY ETo'!$P$6:$P$12,0))) -> 1 | AC21: 0.1088571429 | AD21: Run | AE21: Thu | AF21: 13 | AG21: =INDEX('DAILY ETo'!$Q$6:$Q$12,(MATCH(AE21,'DAILY ETo'!$P$6:$P$12,0))) -> 1 | AH21: 0.4191428571 | AJ21: Sun | AK21: 13 | AL21: =INDEX('DAILY ETo'!$Q$6:$Q$12,(MATCH(AJ21,'DAILY ETo'!$P$6:$P$12,0))) -> 0 | AM21: 0.2208979592 | AO21: Wed | AP21: 13 | AQ21: =INDEX('DAILY ETo'!$Q$6:$Q$12,(MATCH(AO21,'DAILY ETo'!$P$6:$P$12,0))) -> 0 | AR21: 0.5237142857 | AT21: Fri | AU21: 13 | AV21: =INDEX('DAILY ETo'!$Q$6:$Q$12,(MATCH(AT21,'DAILY ETo'!$P$6:$P$12,0))) -> 0 | AW21: 0.2430612245 | AY21: Mon | AZ21: 13 | BA21: =INDEX('DAILY ETo'!$Q$6:$Q$12,(MATCH(AY21,'DAILY ETo'!$P$6:$P$12,0))) -> 0 | BB21: 0.2534693878 | BD21: Wed | BE21: 13 | BF21: =INDEX('DAILY ETo'!$Q$6:$Q$12,(MATCH(BD21,'DAILY ETo'!$P$6:$P$12,0))) -> 0 | BG21: 0.5549387755
A22: Sat | B22: 14 | C22: =INDEX('DAILY ETo'!$Q$6:$Q$12,(MATCH(A22,'DAILY ETo'!$P$6:$P$12,0))) -> 1 | D22: 0.42 | F22: Tue | G22: 14 | H22: =INDEX('DAILY ETo'!$Q$6:$Q$12,(MATCH(F22,'DAILY ETo'!$P$6:$P$12,0))) -> 1 | I22: 0.3089387755 | K22: Tue | L22: 14 | M22: =INDEX('DAILY ETo'!$Q$6:$Q$12,(MATCH(K22,'DAILY ETo'!$P$6:$P$12,0))) -> 1 | N22: 0.04934693878 | O22: Run | P22: Fri | Q22: 14 | R22: =INDEX('DAILY ETo'!$Q$6:$Q$12,(MATCH(P22,'DAILY ETo'!$P$6:$P$12,0))) -> 0 | S22: 0.1152244898 | U22: Sun | V22: 14 | W22: =INDEX('DAILY ETo'!$Q$6:$Q$12,(MATCH(U22,'DAILY ETo'!$P$6:$P$12,0))) -> 0 | X22: 0.3625714286 | Z22: Wed | AA22: 14 | AB22: =INDEX('DAILY ETo'!$Q$6:$Q$12,(MATCH(Z22,'DAILY ETo'!$P$6:$P$12,0))) -> 0 | AC22: 0.2648571429 | AE22: Fri | AF22: 14 | AG22: =INDEX('DAILY ETo'!$Q$6:$Q$12,(MATCH(AE22,'DAILY ETo'!$P$6:$P$12,0))) -> 0 | AH22: 0.5871428571 | AJ22: Mon | AK22: 14 | AL22: =INDEX('DAILY ETo'!$Q$6:$Q$12,(MATCH(AJ22,'DAILY ETo'!$P$6:$P$12,0))) -> 0 | AM22: 0.3708979592 | AO22: Thu | AP22: 14 | AQ22: =INDEX('DAILY ETo'!$Q$6:$Q$12,(MATCH(AO22,'DAILY ETo'!$P$6:$P$12,0))) -> 1 | AR22: -0.008816326531 | AS22: Run | AT22: Sat | AU22: 14 | AV22: =INDEX('DAILY ETo'!$Q$6:$Q$12,(MATCH(AT22,'DAILY ETo'!$P$6:$P$12,0))) -> 1 | AW22: 0.3210612245 | AY22: Tue | AZ22: 14 | BA22: =INDEX('DAILY ETo'!$Q$6:$Q$12,(MATCH(AY22,'DAILY ETo'!$P$6:$P$12,0))) -> 1 | BB22: 0.2954693878 | BD22: Thu | BE22: 14 | BF22: =INDEX('DAILY ETo'!$Q$6:$Q$12,(MATCH(BD22,'DAILY ETo'!$P$6:$P$12,0))) -> 1 | BG22: 0.5729387755
A23: Sun | B23: 15 | C23: =INDEX('DAILY ETo'!$Q$6:$Q$12,(MATCH(A23,'DAILY ETo'!$P$6:$P$12,0))) -> 0 | D23: 0.45 | F23: Wed | G23: 15 | H23: =INDEX('DAILY ETo'!$Q$6:$Q$12,(MATCH(F23,'DAILY ETo'!$P$6:$P$12,0))) -> 0 | I23: 0.3569387755 | K23: Wed | L23: 15 | M23: =INDEX('DAILY ETo'!$Q$6:$Q$12,(MATCH(K23,'DAILY ETo'!$P$6:$P$12,0))) -> 0 | N23: 0.1213469388 | P23: Sat | Q23: 15 | R23: =INDEX('DAILY ETo'!$Q$6:$Q$12,(MATCH(P23,'DAILY ETo'!$P$6:$P$12,0))) -> 1 | S23: 0.2172244898 | U23: Mon | V23: 15 | W23: =INDEX('DAILY ETo'!$Q$6:$Q$12,(MATCH(U23,'DAILY ETo'!$P$6:$P$12,0))) -> 0 | X23: 0.4945714286 | Z23: Thu | AA23: 15 | AB23: =INDEX('DAILY ETo'!$Q$6:$Q$12,(MATCH(Z23,'DAILY ETo'!$P$6:$P$12,0))) -> 1 | AC23: 0.4208571429 | AE23: Sat | AF23: 15 | AG23: =INDEX('DAILY ETo'!$Q$6:$Q$12,(MATCH(AE23,'DAILY ETo'!$P$6:$P$12,0))) -> 1 | AH23: 0.1086122449 | AI23: Run | AJ23: Tue | AK23: 15 | AL23: =INDEX('DAILY ETo'!$Q$6:$Q$12,(MATCH(AJ23,'DAILY ETo'!$P$6:$P$12,0))) -> 1 | AM23: 0.5208979592 | AO23: Fri | AP23: 15 | AQ23: =INDEX('DAILY ETo'!$Q$6:$Q$12,(MATCH(AO23,'DAILY ETo'!$P$6:$P$12,0))) -> 0 | AR23: 0.1051836735 | AT23: Sun | AU23: 15 | AV23: =INDEX('DAILY ETo'!$Q$6:$Q$12,(MATCH(AT23,'DAILY ETo'!$P$6:$P$12,0))) -> 0 | AW23: 0.3990612245 | AY23: Wed | AZ23: 15 | BA23: =INDEX('DAILY ETo'!$Q$6:$Q$12,(MATCH(AY23,'DAILY ETo'!$P$6:$P$12,0))) -> 0 | BB23: 0.3374693878 | BD23: Fri | BE23: 15 | BF23: =INDEX('DAILY ETo'!$Q$6:$Q$12,(MATCH(BD23,'DAILY ETo'!$P$6:$P$12,0))) -> 0 | BG23: 0.5909387755
A24: Mon | B24: 16 | C24: =INDEX('DAILY ETo'!$Q$6:$Q$12,(MATCH(A24,'DAILY ETo'!$P$6:$P$12,0))) -> 0 | D24: 0.48 | F24: Thu | G24: 16 | H24: =INDEX('DAILY ETo'!$Q$6:$Q$12,(MATCH(F24,'DAILY ETo'!$P$6:$P$12,0))) -> 1 | I24: 0.4049387755 | K24: Thu | L24: 16 | M24: =INDEX('DAILY ETo'!$Q$6:$Q$12,(MATCH(K24,'DAILY ETo'!$P$6:$P$12,0))) -> 1 | N24: 0.1933469388 | P24: Sun | Q24: 16 | R24: =INDEX('DAILY ETo'!$Q$6:$Q$12,(MATCH(P24,'DAILY ETo'!$P$6:$P$12,0))) -> 0 | S24: 0.3192244898 | U24: Tue | V24: 16 | W24: =INDEX('DAILY ETo'!$Q$6:$Q$12,(MATCH(U24,'DAILY ETo'!$P$6:$P$12,0))) -> 1 | X24: -0.01995918367 | Y24: Run | Z24: Fri | AA24: 16 | AB24: =INDEX('DAILY ETo'!$Q$6:$Q$12,(MATCH(Z24,'DAILY ETo'!$P$6:$P$12,0))) -> 0 | AC24: 0.5768571429 | AE24: Sun | AF24: 16 | AG24: =INDEX('DAILY ETo'!$Q$6:$Q$12,(MATCH(AE24,'DAILY ETo'!$P$6:$P$12,0))) -> 0 | AH24: 0.2766122449 | AJ24: Wed | AK24: 16 | AL24: =INDEX('DAILY ETo'!$Q$6:$Q$12,(MATCH(AJ24,'DAILY ETo'!$P$6:$P$12,0))) -> 0 | AM24: 0.6708979592 | AO24: Sat | AP24: 16 | AQ24: =INDEX('DAILY ETo'!$Q$6:$Q$12,(MATCH(AO24,'DAILY ETo'!$P$6:$P$12,0))) -> 1 | AR24: 0.2191836735 | AT24: Mon | AU24: 16 | AV24: =INDEX('DAILY ETo'!$Q$6:$Q$12,(MATCH(AT24,'DAILY ETo'!$P$6:$P$12,0))) -> 0 | AW24: 0.4770612245 | AY24: Thu | AZ24: 16 | BA24: =INDEX('DAILY ETo'!$Q$6:$Q$12,(MATCH(AY24,'DAILY ETo'!$P$6:$P$12,0))) -> 1 | BB24: 0.3794693878 | BD24: Sat | BE24: 16 | BF24: =INDEX('DAILY ETo'!$Q$6:$Q$12,(MATCH(BD24,'DAILY ETo'!$P$6:$P$12,0))) -> 1 | BG24: 0.6089387755
A25: Tue | B25: 17 | C25: =INDEX('DAILY ETo'!$Q$6:$Q$12,(MATCH(A25,'DAILY ETo'!$P$6:$P$12,0))) -> 1 | D25: 0.51 | F25: Fri | G25: 17 | H25: =INDEX('DAILY ETo'!$Q$6:$Q$12,(MATCH(F25,'DAILY ETo'!$P$6:$P$12,0))) -> 0 | I25: 0.4529387755 | K25: Fri | L25: 17 | M25: =INDEX('DAILY ETo'!$Q$6:$Q$12,(MATCH(K25,'DAILY ETo'!$P$6:$P$12,0))) -> 0 | N25: 0.2653469388 | P25: Mon | Q25: 17 | R25: =INDEX('DAILY ETo'!$Q$6:$Q$12,(MATCH(P25,'DAILY ETo'!$P$6:$P$12,0))) -> 0 | S25: 0.4212244898 | U25: Wed | V25: 17 | W25: =INDEX('DAILY ETo'!$Q$6:$Q$12,(MATCH(U25,'DAILY ETo'!$P$6:$P$12,0))) -> 0 | X25: 0.1120408163 | Z25: Sat | AA25: 17 | AB25: =INDEX('DAILY ETo'!$Q$6:$Q$12,(MATCH(Z25,'DAILY ETo'!$P$6:$P$12,0))) -> 1 | AC25: 0.08632653061 | AD25: Run | AE25: Mon | AF25: 17 | AG25: =INDEX('DAILY ETo'!$Q$6:$Q$12,(MATCH(AE25,'DAILY ETo'!$P$6:$P$12,0))) -> 0 | AH25: 0.4446122449 | AJ25: Thu | AK25: 17 | AL25: =INDEX('DAILY ETo'!$Q$6:$Q$12,(MATCH(AJ25,'DAILY ETo'!$P$6:$P$12,0))) -> 1 | AM25: 0.1743673469 | AN25: Run | AO25: Sun | AP25: 17 | AQ25: =INDEX('DAILY ETo'!$Q$6:$Q$12,(MATCH(AO25,'DAILY ETo'!$P$6:$P$12,0))) -> 0 | AR25: 0.3331836735 | AT25: Tue | AU25: 17 | AV25: =INDEX('DAILY ETo'!$Q$6:$Q$12,(MATCH(AT25,'DAILY ETo'!$P$6:$P$12,0))) -> 1 | AW25: 0.5550612245 | AY25: Fri | AZ25: 17 | BA25: =INDEX('DAILY ETo'!$Q$6:$Q$12,(MATCH(AY25,'DAILY ETo'!$P$6:$P$12,0))) -> 0 | BB25: 0.4214693878 | BD25: Sun | BE25: 17 | BF25: =INDEX('DAILY ETo'!$Q$6:$Q$12,(MATCH(BD25,'DAILY ETo'!$P$6:$P$12,0))) -> 0 | BG25: 0.6269387755
A26: Wed | B26: 18 | C26: =INDEX('DAILY ETo'!$Q$6:$Q$12,(MATCH(A26,'DAILY ETo'!$P$6:$P$12,0))) -> 0 | D26: 0.54 | F26: Sat | G26: 18 | H26: =INDEX('DAILY ETo'!$Q$6:$Q$12,(MATCH(F26,'DAILY ETo'!$P$6:$P$12,0))) -> 1 | I26: 0.5009387755 | K26: Sat | L26: 18 | M26: =INDEX('DAILY ETo'!$Q$6:$Q$12,(MATCH(K26,'DAILY ETo'!$P$6:$P$12,0))) -> 1 | N26: 0.3373469388 | P26: Tue | Q26: 18 | R26: =INDEX('DAILY ETo'!$Q$6:$Q$12,(MATCH(P26,'DAILY ETo'!$P$6:$P$12,0))) -> 1 | S26: 0.5232244898 | U26: Thu | V26: 18 | W26: =INDEX('DAILY ETo'!$Q$6:$Q$12,(MATCH(U26,'DAILY ETo'!$P$6:$P$12,0))) -> 1 | X26: 0.2440408163 | Z26: Sun | AA26: 18 | AB26: =INDEX('DAILY ETo'!$Q$6:$Q$12,(MATCH(Z26,'DAILY ETo'!$P$6:$P$12,0))) -> 0 | AC26: 0.2423265306 | AE26: Tue | AF26: 18 | AG26: =INDEX('DAILY ETo'!$Q$6:$Q$12,(MATCH(AE26,'DAILY ETo'!$P$6:$P$12,0))) -> 1 | AH26: -0.03391836735 | AI26: Run | AJ26: Fri | AK26: 18 | AL26: =INDEX('DAILY ETo'!$Q$6:$Q$12,(MATCH(AJ26,'DAILY ETo'!$P$6:$P$12,0))) -> 0 | AM26: 0.3243673469 | AO26: Mon | AP26: 18 | AQ26: =INDEX('DAILY ETo'!$Q$6:$Q$12,(MATCH(AO26,'DAILY ETo'!$P$6:$P$12,0))) -> 0 | AR26: 0.4471836735 | AT26: Wed | AU26: 18 | AV26: =INDEX('DAILY ETo'!$Q$6:$Q$12,(MATCH(AT26,'DAILY ETo'!$P$6:$P$12,0))) -> 0 | AW26: 0.6330612245 | AY26: Sat | AZ26: 18 | BA26: =INDEX('DAILY ETo'!$Q$6:$Q$12,(MATCH(AY26,'DAILY ETo'!$P$6:$P$12,0))) -> 1 | BB26: 0.4634693878 | BD26: Mon | BE26: 18 | BF26: =INDEX('DAILY ETo'!$Q$6:$Q$12,(MATCH(BD26,'DAILY ETo'!$P$6:$P$12,0))) -> 0 | BG26: 0.6449387755
A27: Thu | B27: 19 | C27: =INDEX('DAILY ETo'!$Q$6:$Q$12,(MATCH(A27,'DAILY ETo'!$P$6:$P$12,0))) -> 1 | D27: 0.57 | F27: Sun | G27: 19 | H27: =INDEX('DAILY ETo'!$Q$6:$Q$12,(MATCH(F27,'DAILY ETo'!$P$6:$P$12,0))) -> 0 | I27: 0.5489387755 | K27: Sun | L27: 19 | M27: =INDEX('DAILY ETo'!$Q$6:$Q$12,(MATCH(K27,'DAILY ETo'!$P$6:$P$12,0))) -> 0 | N27: 0.4093469388 | P27: Wed | Q27: 19 | R27: =INDEX('DAILY ETo'!$Q$6:$Q$12,(MATCH(P27,'DAILY ETo'!$P$6:$P$12,0))) -> 0 | S27: 0.6252244898 | U27: Fri | V27: 19 | W27: =INDEX('DAILY ETo'!$Q$6:$Q$12,(MATCH(U27,'DAILY ETo'!$P$6:$P$12,0))) -> 0 | X27: 0.3760408163 | Z27: Mon | AA27: 19 | AB27: =INDEX('DAILY ETo'!$Q$6:$Q$12,(MATCH(Z27,'DAILY ETo'!$P$6:$P$12,0))) -> 0 | AC27: 0.3983265306 | AE27: Wed | AF27: 19 | AG27: =INDEX('DAILY ETo'!$Q$6:$Q$12,(MATCH(AE27,'DAILY ETo'!$P$6:$P$12,0))) -> 0 | AH27: 0.1340816327 | AJ27: Sat | AK27: 19 | AL27: =INDEX('DAILY ETo'!$Q$6:$Q$12,(MATCH(AJ27,'DAILY ETo'!$P$6:$P$12,0))) -> 1 | AM27: 0.4743673469 | AO27: Tue | AP27: 19 | AQ27: =INDEX('DAILY ETo'!$Q$6:$Q$12,(MATCH(AO27,'DAILY ETo'!$P$6:$P$12,0))) -> 1 | AR27: 0.5611836735 | AT27: Thu | AU27: 19 | AV27: =INDEX('DAILY ETo'!$Q$6:$Q$12,(MATCH(AT27,'DAILY ETo'!$P$6:$P$12,0))) -> 1 | AW27: 0.06453061224 | AX27: Run | AY27: Sun | AZ27: 19 | BA27: =INDEX('DAILY ETo'!$Q$6:$Q$12,(MATCH(AY27,'DAILY ETo'!$P$6:$P$12,0))) -> 0 | BB27: 0.5054693878 | BD27: Tue | BE27: 19 | BF27: =INDEX('DAILY ETo'!$Q$6:$Q$12,(MATCH(BD27,'DAILY ETo'!$P$6:$P$12,0))) -> 1 | BG27: 0.01640816327 | BH27: Run
A28: Fri | B28: 20 | C28: =INDEX('DAILY ETo'!$Q$6:$Q$12,(MATCH(A28,'DAILY ETo'!$P$6:$P$12,0))) -> 0 | D28: 0.6 | F28: Mon | G28: 20 | H28: =INDEX('DAILY ETo'!$Q$6:$Q$12,(MATCH(F28,'DAILY ETo'!$P$6:$P$12,0))) -> 0 | I28: 0.5969387755 | K28: Mon | L28: 20 | M28: =INDEX('DAILY ETo'!$Q$6:$Q$12,(MATCH(K28,'DAILY ETo'!$P$6:$P$12,0))) -> 0 | N28: 0.4813469388 | P28: Thu | Q28: 20 | R28: =INDEX('DAILY ETo'!$Q$6:$Q$12,(MATCH(P28,'DAILY ETo'!$P$6:$P$12,0))) -> 1 | S28: 0.08069387755 | T28: Run | U28: Sat | V28: 20 | W28: =INDEX('DAILY ETo'!$Q$6:$Q$12,(MATCH(U28,'DAILY ETo'!$P$6:$P$12,0))) -> 1 | X28: 0.5080408163 | Z28: Tue | AA28: 20 | AB28: =INDEX('DAILY ETo'!$Q$6:$Q$12,(MATCH(Z28,'DAILY ETo'!$P$6:$P$12,0))) -> 1 | AC28: 0.5543265306 | AE28: Thu | AF28: 20 | AG28: =INDEX('DAILY ETo'!$Q$6:$Q$12,(MATCH(AE28,'DAILY ETo'!$P$6:$P$12,0))) -> 1 | AH28: 0.3020816327 | AJ28: Sun | AK28: 20 | AL28: =INDEX('DAILY ETo'!$Q$6:$Q$12,(MATCH(AJ28,'DAILY ETo'!$P$6:$P$12,0))) -> 0 | AM28: 0.6243673469 | AO28: Wed | AP28: 20 | AQ28: =INDEX('DAILY ETo'!$Q$6:$Q$12,(MATCH(AO28,'DAILY ETo'!$P$6:$P$12,0))) -> 0 | AR28: 0.6751836735 | AT28: Fri | AU28: 20 | AV28: =INDEX('DAILY ETo'!$Q$6:$Q$12,(MATCH(AT28,'DAILY ETo'!$P$6:$P$12,0))) -> 0 | AW28: 0.1425306122 | AY28: Mon | AZ28: 20 | BA28: =INDEX('DAILY ETo'!$Q$6:$Q$12,(MATCH(AY28,'DAILY ETo'!$P$6:$P$12,0))) -> 0 | BB28: 0.5474693878 | BD28: Wed | BE28: 20 | BF28: =INDEX('DAILY ETo'!$Q$6:$Q$12,(MATCH(BD28,'DAILY ETo'!$P$6:$P$12,0))) -> 0 | BG28: 0.03440816327
A29: Sat | B29: 21 | C29: =INDEX('DAILY ETo'!$Q$6:$Q$12,(MATCH(A29,'DAILY ETo'!$P$6:$P$12,0))) -> 1 | D29: 0.63 | F29: Tue | G29: 21 | H29: =INDEX('DAILY ETo'!$Q$6:$Q$12,(MATCH(F29,'DAILY ETo'!$P$6:$P$12,0))) -> 1 | I29: -0.001591836735 | J29: Run | K29: Tue | L29: 21 | M29: =INDEX('DAILY ETo'!$Q$6:$Q$12,(MATCH(K29,'DAILY ETo'!$P$6:$P$12,0))) -> 1 | N29: 0.5533469388 | P29: Fri | Q29: 21 | R29: =INDEX('DAILY ETo'!$Q$6:$Q$12,(MATCH(P29,'DAILY ETo'!$P$6:$P$12,0))) -> 0 | S29: 0.1826938776 | U29: Sun | V29: 21 | W29: =INDEX('DAILY ETo'!$Q$6:$Q$12,(MATCH(U29,'DAILY ETo'!$P$6:$P$12,0))) -> 0 | X29: 0.6400408163 | Z29: Wed | AA29: 21 | AB29: =INDEX('DAILY ETo'!$Q$6:$Q$12,(MATCH(Z29,'DAILY ETo'!$P$6:$P$12,0))) -> 0 | AC29: 0.7103265306 | AE29: Fri | AF29: 21 | AG29: =INDEX('DAILY ETo'!$Q$6:$Q$12,(MATCH(AE29,'DAILY ETo'!$P$6:$P$12,0))) -> 0 | AH29: 0.4700816327 | AJ29: Mon | AK29: 21 | AL29: =INDEX('DAILY ETo'!$Q$6:$Q$12,(MATCH(AJ29,'DAILY ETo'!$P$6:$P$12,0))) -> 0 | AM29: 0.7743673469 | AO29: Thu | AP29: 21 | AQ29: =INDEX('DAILY ETo'!$Q$6:$Q$12,(MATCH(AO29,'DAILY ETo'!$P$6:$P$12,0))) -> 1 | AR29: 0.1426530612 | AS29: Run | AT29: Sat | AU29: 21 | AV29: =INDEX('DAILY ETo'!$Q$6:$Q$12,(MATCH(AT29,'DAILY ETo'!$P$6:$P$12,0))) -> 1 | AW29: 0.2205306122 | AY29: Tue | AZ29: 21 | BA29: =INDEX('DAILY ETo'!$Q$6:$Q$12,(MATCH(AY29,'DAILY ETo'!$P$6:$P$12,0))) -> 1 | BB29: 0.5894693878 | BD29: Thu | BE29: 21 | BF29: =INDEX('DAILY ETo'!$Q$6:$Q$12,(MATCH(BD29,'DAILY ETo'!$P$6:$P$12,0))) -> 1 | BG29: 0.05240816327
A30: Sun | B30: 22 | C30: =INDEX('DAILY ETo'!$Q$6:$Q$12,(MATCH(A30,'DAILY ETo'!$P$6:$P$12,0))) -> 0 | D30: 0.66 | F30: Wed | G30: 22 | H30: =INDEX('DAILY ETo'!$Q$6:$Q$12,(MATCH(F30,'DAILY ETo'!$P$6:$P$12,0))) -> 0 | I30: 0.04640816327 | K30: Wed | L30: 22 | M30: =INDEX('DAILY ETo'!$Q$6:$Q$12,(MATCH(K30,'DAILY ETo'!$P$6:$P$12,0))) -> 0 | N30: 0.6253469388 | P30: Sat | Q30: 22 | R30: =INDEX('DAILY ETo'!$Q$6:$Q$12,(MATCH(P30,'DAILY ETo'!$P$6:$P$12,0))) -> 1 | S30: 0.2846938776 | U30: Mon | V30: 22 | W30: =INDEX('DAILY ETo'!$Q$6:$Q$12,(MATCH(U30,'DAILY ETo'!$P$6:$P$12,0))) -> 0 | X30: 0.7720408163 | Z30: Thu | AA30: 22 | AB30: =INDEX('DAILY ETo'!$Q$6:$Q$12,(MATCH(Z30,'DAILY ETo'!$P$6:$P$12,0))) -> 1 | AC30: 0.2197959184 | AD30: Run | AE30: Sat | AF30: 22 | AG30: =INDEX('DAILY ETo'!$Q$6:$Q$12,(MATCH(AE30,'DAILY ETo'!$P$6:$P$12,0))) -> 1 | AH30: -0.008448979592 | AI30: Run | AJ30: Tue | AK30: 22 | AL30: =INDEX('DAILY ETo'!$Q$6:$Q$12,(MATCH(AJ30,'DAILY ETo'!$P$6:$P$12,0))) -> 1 | AM30: 0.2778367347 | AN30: Run | AO30: Fri | AP30: 22 | AQ30: =INDEX('DAILY ETo'!$Q$6:$Q$12,(MATCH(AO30,'DAILY ETo'!$P$6:$P$12,0))) -> 0 | AR30: 0.2566530612 | AT30: Sun | AU30: 22 | AV30: =INDEX('DAILY ETo'!$Q$6:$Q$12,(MATCH(AT30,'DAILY ETo'!$P$6:$P$12,0))) -> 0 | AW30: 0.2985306122 | AY30: Wed | AZ30: 22 | BA30: =INDEX('DAILY ETo'!$Q$6:$Q$12,(MATCH(AY30,'DAILY ETo'!$P$6:$P$12,0))) -> 0 | BB30: 0.6314693878 | BD30: Fri | BE30: 22 | BF30: =INDEX('DAILY ETo'!$Q$6:$Q$12,(MATCH(BD30,'DAILY ETo'!$P$6:$P$12,0))) -> 0 | BG30: 0.07040816327
A31: Mon | B31: 23 | C31: =INDEX('DAILY ETo'!$Q$6:$Q$12,(MATCH(A31,'DAILY ETo'!$P$6:$P$12,0))) -> 0 | D31: 0.69 | F31: Thu | G31: 23 | H31: =INDEX('DAILY ETo'!$Q$6:$Q$12,(MATCH(F31,'DAILY ETo'!$P$6:$P$12,0))) -> 1 | I31: 0.09440816327 | K31: Thu | L31: 23 | M31: =INDEX('DAILY ETo'!$Q$6:$Q$12,(MATCH(K31,'DAILY ETo'!$P$6:$P$12,0))) -> 1 | N31: 0.05081632653 | O31: Run | P31: Sun | Q31: 23 | R31: =INDEX('DAILY ETo'!$Q$6:$Q$12,(MATCH(P31,'DAILY ETo'!$P$6:$P$12,0))) -> 0 | S31: 0.3866938776 | U31: Tue | V31: 23 | W31: =INDEX('DAILY ETo'!$Q$6:$Q$12,(MATCH(U31,'DAILY ETo'!$P$6:$P$12,0))) -> 1 | X31: 0.2575102041 | Y31: Run | Z31: Fri | AA31: 23 | AB31: =INDEX('DAILY ETo'!$Q$6:$Q$12,(MATCH(Z31,'DAILY ETo'!$P$6:$P$12,0))) -> 0 | AC31: 0.3757959184 | AE31: Sun | AF31: 23 | AG31: =INDEX('DAILY ETo'!$Q$6:$Q$12,(MATCH(AE31,'DAILY ETo'!$P$6:$P$12,0))) -> 0 | AH31: 0.1595510204 | AJ31: Wed | AK31: 23 | AL31: =INDEX('DAILY ETo'!$Q$6:$Q$12,(MATCH(AJ31,'DAILY ETo'!$P$6:$P$12,0))) -> 0 | AM31: 0.4278367347 | AO31: Sat | AP31: 23 | AQ31: =INDEX('DAILY ETo'!$Q$6:$Q$12,(MATCH(AO31,'DAILY ETo'!$P$6:$P$12,0))) -> 1 | AR31: 0.3706530612 | AT31: Mon | AU31: 23 | AV31: =INDEX('DAILY ETo'!$Q$6:$Q$12,(MATCH(AT31,'DAILY ETo'!$P$6:$P$12,0))) -> 0 | AW31: 0.3765306122 | AY31: Thu | AZ31: 23 | BA31: =INDEX('DAILY ETo'!$Q$6:$Q$12,(MATCH(AY31,'DAILY ETo'!$P$6:$P$12,0))) -> 1 | BB31: 0.02693877551 | BC31: Run | BD31: Sat | BE31: 23 | BF31: =INDEX('DAILY ETo'!$Q$6:$Q$12,(MATCH(BD31,'DAILY ETo'!$P$6:$P$12,0))) -> 1 | BG31: 0.08840816327
A32: Tue | B32: 24 | C32: =INDEX('DAILY ETo'!$Q$6:$Q$12,(MATCH(A32,'DAILY ETo'!$P$6:$P$12,0))) -> 1 | D32: 0.07346938776 | E32: Run | F32: Fri | G32: 24 | H32: =INDEX('DAILY ETo'!$Q$6:$Q$12,(MATCH(F32,'DAILY ETo'!$P$6:$P$12,0))) -> 0 | I32: 0.1424081633 | K32: Fri | L32: 24 | M32: =INDEX('DAILY ETo'!$Q$6:$Q$12,(MATCH(K32,'DAILY ETo'!$P$6:$P$12,0))) -> 0 | N32: 0.1228163265 | P32: Mon | Q32: 24 | R32: =INDEX('DAILY ETo'!$Q$6:$Q$12,(MATCH(P32,'DAILY ETo'!$P$6:$P$12,0))) -> 0 | S32: 0.4886938776 | U32: Wed | V32: 24 | W32: =INDEX('DAILY ETo'!$Q$6:$Q$12,(MATCH(U32,'DAILY ETo'!$P$6:$P$12,0))) -> 0 | X32: 0.3895102041 | Z32: Sat | AA32: 24 | AB32: =INDEX('DAILY ETo'!$Q$6:$Q$12,(MATCH(Z32,'DAILY ETo'!$P$6:$P$12,0))) -> 1 | AC32: 0.5317959184 | AE32: Mon | AF32: 24 | AG32: =INDEX('DAILY ETo'!$Q$6:$Q$12,(MATCH(AE32,'DAILY ETo'!$P$6:$P$12,0))) -> 0 | AH32: 0.3275510204 | AJ32: Thu | AK32: 24 | AL32: =INDEX('DAILY ETo'!$Q$6:$Q$12,(MATCH(AJ32,'DAILY ETo'!$P$6:$P$12,0))) -> 1 | AM32: 0.5778367347 | AO32: Sun | AP32: 24 | AQ32: =INDEX('DAILY ETo'!$Q$6:$Q$12,(MATCH(AO32,'DAILY ETo'!$P$6:$P$12,0))) -> 0 | AR32: 0.4846530612 | AT32: Tue | AU32: 24 | AV32: =INDEX('DAILY ETo'!$Q$6:$Q$12,(MATCH(AT32,'DAILY ETo'!$P$6:$P$12,0))) -> 1 | AW32: 0.4545306122 | AY32: Fri | AZ32: 24 | BA32: =INDEX('DAILY ETo'!$Q$6:$Q$12,(MATCH(AY32,'DAILY ETo'!$P$6:$P$12,0))) -> 0 | BB32: 0.06893877551 | BD32: Sun | BE32: 24 | BF32: =INDEX('DAILY ETo'!$Q$6:$Q$12,(MATCH(BD32,'DAILY ETo'!$P$6:$P$12,0))) -> 0 | BG32: 0.1064081633
A33: Wed | B33: 25 | C33: =INDEX('DAILY ETo'!$Q$6:$Q$12,(MATCH(A33,'DAILY ETo'!$P$6:$P$12,0))) -> 0 | D33: 0.1034693878 | F33: Sat | G33: 25 | H33: =INDEX('DAILY ETo'!$Q$6:$Q$12,(MATCH(F33,'DAILY ETo'!$P$6:$P$12,0))) -> 1 | I33: 0.1904081633 | K33: Sat | L33: 25 | M33: =INDEX('DAILY ETo'!$Q$6:$Q$12,(MATCH(K33,'DAILY ETo'!$P$6:$P$12,0))) -> 1 | N33: 0.1948163265 | P33: Tue | Q33: 25 | R33: =INDEX('DAILY ETo'!$Q$6:$Q$12,(MATCH(P33,'DAILY ETo'!$P$6:$P$12,0))) -> 1 | S33: 0.5906938776 | U33: Thu | V33: 25 | W33: =INDEX('DAILY ETo'!$Q$6:$Q$12,(MATCH(U33,'DAILY ETo'!$P$6:$P$12,0))) -> 1 | X33: 0.5215102041 | Z33: Sun | AA33: 25 | AB33: =INDEX('DAILY ETo'!$Q$6:$Q$12,(MATCH(Z33,'DAILY ETo'!$P$6:$P$12,0))) -> 0 | AC33: 0.6877959184 | AE33: Tue | AF33: 25 | AG33: =INDEX('DAILY ETo'!$Q$6:$Q$12,(MATCH(AE33,'DAILY ETo'!$P$6:$P$12,0))) -> 1 | AH33: 0.4955510204 | AJ33: Fri | AK33: 25 | AL33: =INDEX('DAILY ETo'!$Q$6:$Q$12,(MATCH(AJ33,'DAILY ETo'!$P$6:$P$12,0))) -> 0 | AM33: 0.7278367347 | AO33: Mon | AP33: 25 | AQ33: =INDEX('DAILY ETo'!$Q$6:$Q$12,(MATCH(AO33,'DAILY ETo'!$P$6:$P$12,0))) -> 0 | AR33: 0.5986530612 | AT33: Wed | AU33: 25 | AV33: =INDEX('DAILY ETo'!$Q$6:$Q$12,(MATCH(AT33,'DAILY ETo'!$P$6:$P$12,0))) -> 0 | AW33: 0.5325306122 | AY33: Sat | AZ33: 25 | BA33: =INDEX('DAILY ETo'!$Q$6:$Q$12,(MATCH(AY33,'DAILY ETo'!$P$6:$P$12,0))) -> 1 | BB33: 0.1109387755 | BD33: Mon | BE33: 25 | BF33: =INDEX('DAILY ETo'!$Q$6:$Q$12,(MATCH(BD33,'DAILY ETo'!$P$6:$P$12,0))) -> 0 | BG33: 0.1244081633
A34: Thu | B34: 26 | C34: =INDEX('DAILY ETo'!$Q$6:$Q$12,(MATCH(A34,'DAILY ETo'!$P$6:$P$12,0))) -> 1 | D34: 0.1334693878 | F34: Sun | G34: 26 | H34: =INDEX('DAILY ETo'!$Q$6:$Q$12,(MATCH(F34,'DAILY ETo'!$P$6:$P$12,0))) -> 0 | I34: 0.2384081633 | K34: Sun | L34: 26 | M34: =INDEX('DAILY ETo'!$Q$6:$Q$12,(MATCH(K34,'DAILY ETo'!$P$6:$P$12,0))) -> 0 | N34: 0.2668163265 | P34: Wed | Q34: 26 | R34: =INDEX('DAILY ETo'!$Q$6:$Q$12,(MATCH(P34,'DAILY ETo'!$P$6:$P$12,0))) -> 0 | S34: 0.6926938776 | U34: Fri | V34: 26 | W34: =INDEX('DAILY ETo'!$Q$6:$Q$12,(MATCH(U34,'DAILY ETo'!$P$6:$P$12,0))) -> 0 | X34: 0.6535102041 | Z34: Mon | AA34: 26 | AB34: =INDEX('DAILY ETo'!$Q$6:$Q$12,(MATCH(Z34,'DAILY ETo'!$P$6:$P$12,0))) -> 0 | AC34: 0.8437959184 | AE34: Wed | AF34: 26 | AG34: =INDEX('DAILY ETo'!$Q$6:$Q$12,(MATCH(AE34,'DAILY ETo'!$P$6:$P$12,0))) -> 0 | AH34: 0.6635510204 | AJ34: Sat | AK34: 26 | AL34: =INDEX('DAILY ETo'!$Q$6:$Q$12,(MATCH(AJ34,'DAILY ETo'!$P$6:$P$12,0))) -> 1 | AM34: 0.2313061224 | AN34: Run | AO34: Tue | AP34: 26 | AQ34: =INDEX('DAILY ETo'!$Q$6:$Q$12,(MATCH(AO34,'DAILY ETo'!$P$6:$P$12,0))) -> 1 | AR34: 0.06612244898 | AS34: Run | AT34: Thu | AU34: 26 | AV34: =INDEX('DAILY ETo'!$Q$6:$Q$12,(MATCH(AT34,'DAILY ETo'!$P$6:$P$12,0))) -> 1 | AW34: 0.6105306122 | AY34: Sun | AZ34: 26 | BA34: =INDEX('DAILY ETo'!$Q$6:$Q$12,(MATCH(AY34,'DAILY ETo'!$P$6:$P$12,0))) -> 0 | BB34: 0.1529387755 | BD34: Tue | BE34: 26 | BF34: =INDEX('DAILY ETo'!$Q$6:$Q$12,(MATCH(BD34,'DAILY ETo'!$P$6:$P$12,0))) -> 1 | BG34: 0.1424081633
A35: Fri | B35: 27 | C35: =INDEX('DAILY ETo'!$Q$6:$Q$12,(MATCH(A35,'DAILY ETo'!$P$6:$P$12,0))) -> 0 | D35: 0.1634693878 | F35: Mon | G35: 27 | H35: =INDEX('DAILY ETo'!$Q$6:$Q$12,(MATCH(F35,'DAILY ETo'!$P$6:$P$12,0))) -> 0 | I35: 0.2864081633 | K35: Mon | L35: 27 | M35: =INDEX('DAILY ETo'!$Q$6:$Q$12,(MATCH(K35,'DAILY ETo'!$P$6:$P$12,0))) -> 0 | N35: 0.3388163265 | P35: Thu | Q35: 27 | R35: =INDEX('DAILY ETo'!$Q$6:$Q$12,(MATCH(P35,'DAILY ETo'!$P$6:$P$12,0))) -> 1 | S35: 0.1481632653 | T35: Run | U35: Sat | V35: 27 | W35: =INDEX('DAILY ETo'!$Q$6:$Q$12,(MATCH(U35,'DAILY ETo'!$P$6:$P$12,0))) -> 1 | X35: 0.1389795918 | Y35: Run | Z35: Tue | AA35: 27 | AB35: =INDEX('DAILY ETo'!$Q$6:$Q$12,(MATCH(Z35,'DAILY ETo'!$P$6:$P$12,0))) -> 1 | AC35: 0.3532653061 | AD35: Run | AE35: Thu | AF35: 27 | AG35: =INDEX('DAILY ETo'!$Q$6:$Q$12,(MATCH(AE35,'DAILY ETo'!$P$6:$P$12,0))) -> 1 | AH35: 0.1850204082 | AI35: Run | AJ35: Sun | AK35: 27 | AL35: =INDEX('DAILY ETo'!$Q$6:$Q$12,(MATCH(AJ35,'DAILY ETo'!$P$6:$P$12,0))) -> 0 | AM35: 0.3813061224 | AO35: Wed | AP35: 27 | AQ35: =INDEX('DAILY ETo'!$Q$6:$Q$12,(MATCH(AO35,'DAILY ETo'!$P$6:$P$12,0))) -> 0 | AR35: 0.180122449 | AT35: Fri | AU35: 27 | AV35: =INDEX('DAILY ETo'!$Q$6:$Q$12,(MATCH(AT35,'DAILY ETo'!$P$6:$P$12,0))) -> 0 | AW35: 0.6885306122 | AY35: Mon | AZ35: 27 | BA35: =INDEX('DAILY ETo'!$Q$6:$Q$12,(MATCH(AY35,'DAILY ETo'!$P$6:$P$12,0))) -> 0 | BB35: 0.1949387755 | BD35: Wed | BE35: 27 | BF35: =INDEX('DAILY ETo'!$Q$6:$Q$12,(MATCH(BD35,'DAILY ETo'!$P$6:$P$12,0))) -> 0 | BG35: 0.1604081633
A36: Sat | B36: 28 | C36: =INDEX('DAILY ETo'!$Q$6:$Q$12,(MATCH(A36,'DAILY ETo'!$P$6:$P$12,0))) -> 1 | D36: 0.1934693878 | F36: Tue | G36: 28 | H36: =INDEX('DAILY ETo'!$Q$6:$Q$12,(MATCH(F36,'DAILY ETo'!$P$6:$P$12,0))) -> 1 | I36: 0.3344081633 | K36: Tue | L36: 28 | M36: =INDEX('DAILY ETo'!$Q$6:$Q$12,(MATCH(K36,'DAILY ETo'!$P$6:$P$12,0))) -> 1 | N36: 0.4108163265 | P36: Fri | Q36: 28 | R36: =INDEX('DAILY ETo'!$Q$6:$Q$12,(MATCH(P36,'DAILY ETo'!$P$6:$P$12,0))) -> 0 | S36: 0.2501632653 | U36: Sun | V36: 28 | W36: =INDEX('DAILY ETo'!$Q$6:$Q$12,(MATCH(U36,'DAILY ETo'!$P$6:$P$12,0))) -> 0 | X36: 0.2709795918 | Z36: Wed | AA36: 28 | AB36: =INDEX('DAILY ETo'!$Q$6:$Q$12,(MATCH(Z36,'DAILY ETo'!$P$6:$P$12,0))) -> 0 | AC36: 0.5092653061 | AE36: Fri | AF36: 28 | AG36: =INDEX('DAILY ETo'!$Q$6:$Q$12,(MATCH(AE36,'DAILY ETo'!$P$6:$P$12,0))) -> 0 | AH36: 0.3530204082 | AJ36: Mon | AK36: 28 | AL36: =INDEX('DAILY ETo'!$Q$6:$Q$12,(MATCH(AJ36,'DAILY ETo'!$P$6:$P$12,0))) -> 0 | AM36: 0.5313061224 | AO36: Thu | AP36: 28 | AQ36: =INDEX('DAILY ETo'!$Q$6:$Q$12,(MATCH(AO36,'DAILY ETo'!$P$6:$P$12,0))) -> 1 | AR36: 0.294122449 | AT36: Sat | AU36: 28 | AV36: =INDEX('DAILY ETo'!$Q$6:$Q$12,(MATCH(AT36,'DAILY ETo'!$P$6:$P$12,0))) -> 1 | AW36: 0.12 | AX36: Run | AY36: Tue | AZ36: 28 | BA36: =INDEX('DAILY ETo'!$Q$6:$Q$12,(MATCH(AY36,'DAILY ETo'!$P$6:$P$12,0))) -> 1 | BB36: 0.2369387755 | BD36: Thu | BE36: 28 | BF36: =INDEX('DAILY ETo'!$Q$6:$Q$12,(MATCH(BD36,'DAILY ETo'!$P$6:$P$12,0))) -> 1 | BG36: 0.1784081633
A37: Sun | B37: 29 | C37: =INDEX('DAILY ETo'!$Q$6:$Q$12,(MATCH(A37,'DAILY ETo'!$P$6:$P$12,0))) -> 0 | D37: 0.2234693878 | F37: =IF(OR(MOD(Irrig_Year,400)=0,AND(MOD(Irrig_Year,4)=0,MOD(Irrig_Year,100)<>0)),VLOOKUP(WEEKDAY(DATE(CalendarYear,2,B37)),DayOfWeek,2), "") ->  | G37: =IF(OR(MOD(Irrig_Year,400)=0,AND(MOD(Irrig_Year,4)=0,MOD(Irrig_Year,100)<>0)),VALUE(29),"") ->  | H37: =INDEX('DAILY ETo'!$Q$6:$Q$12,(MATCH(F37,'DAILY ETo'!$P$6:$P$12,0))) ->  | I37: 0.3824081633 | K37: Wed | L37: 29 | M37: =INDEX('DAILY ETo'!$Q$6:$Q$12,(MATCH(K37,'DAILY ETo'!$P$6:$P$12,0))) -> 0 | N37: 0.4828163265 | P37: Sat | Q37: 29 | R37: =INDEX('DAILY ETo'!$Q$6:$Q$12,(MATCH(P37,'DAILY ETo'!$P$6:$P$12,0))) -> 1 | S37: 0.3521632653 | U37: Mon | V37: 29 | W37: =INDEX('DAILY ETo'!$Q$6:$Q$12,(MATCH(U37,'DAILY ETo'!$P$6:$P$12,0))) -> 0 | X37: 0.4029795918 | Z37: Thu | AA37: 29 | AB37: =INDEX('DAILY ETo'!$Q$6:$Q$12,(MATCH(Z37,'DAILY ETo'!$P$6:$P$12,0))) -> 1 | AC37: 0.01873469388 | AD37: Run | AE37: Sat | AF37: 29 | AG37: =INDEX('DAILY ETo'!$Q$6:$Q$12,(MATCH(AE37,'DAILY ETo'!$P$6:$P$12,0))) -> 1 | AH37: 0.5210204082 | AJ37: Tue | AK37: 29 | AL37: =INDEX('DAILY ETo'!$Q$6:$Q$12,(MATCH(AJ37,'DAILY ETo'!$P$6:$P$12,0))) -> 1 | AM37: 0.0347755102 | AN37: Run | AO37: Fri | AP37: 29 | AQ37: =INDEX('DAILY ETo'!$Q$6:$Q$12,(MATCH(AO37,'DAILY ETo'!$P$6:$P$12,0))) -> 0 | AR37: 0.408122449 | AT37: Sun | AU37: 29 | AV37: =INDEX('DAILY ETo'!$Q$6:$Q$12,(MATCH(AT37,'DAILY ETo'!$P$6:$P$12,0))) -> 0 | AW37: 0.198 | AY37: Wed | AZ37: 29 | BA37: =INDEX('DAILY ETo'!$Q$6:$Q$12,(MATCH(AY37,'DAILY ETo'!$P$6:$P$12,0))) -> 0 | BB37: 0.2789387755 | BD37: Fri | BE37: 29 | BF37: =INDEX('DAILY ETo'!$Q$6:$Q$12,(MATCH(BD37,'DAILY ETo'!$P$6:$P$12,0))) -> 0 | BG37: 0.1964081633
A38: Mon | B38: 30 | C38: =INDEX('DAILY ETo'!$Q$6:$Q$12,(MATCH(A38,'DAILY ETo'!$P$6:$P$12,0))) -> 0 | D38: 0.2534693878 | K38: Thu | L38: 30 | M38: =INDEX('DAILY ETo'!$Q$6:$Q$12,(MATCH(K38,'DAILY ETo'!$P$6:$P$12,0))) -> 1 | N38: 0.5548163265 | P38: Sun | Q38: 30 | R38: =INDEX('DAILY ETo'!$Q$6:$Q$12,(MATCH(P38,'DAILY ETo'!$P$6:$P$12,0))) -> 0 | S38: 0.4541632653 | U38: Tue | V38: 30 | W38: =INDEX('DAILY ETo'!$Q$6:$Q$12,(MATCH(U38,'DAILY ETo'!$P$6:$P$12,0))) -> 1 | X38: 0.5349795918 | Z38: Fri | AA38: 30 | AB38: =INDEX('DAILY ETo'!$Q$6:$Q$12,(MATCH(Z38,'DAILY ETo'!$P$6:$P$12,0))) -> 0 | AC38: 0.1747346939 | AE38: Sun | AF38: 30 | AG38: =INDEX('DAILY ETo'!$Q$6:$Q$12,(MATCH(AE38,'DAILY ETo'!$P$6:$P$12,0))) -> 0 | AH38: 0.6890204082 | AJ38: Wed | AK38: 30 | AL38: =INDEX('DAILY ETo'!$Q$6:$Q$12,(MATCH(AJ38,'DAILY ETo'!$P$6:$P$12,0))) -> 0 | AM38: 0.1847755102 | AO38: Sat | AP38: 30 | AQ38: =INDEX('DAILY ETo'!$Q$6:$Q$12,(MATCH(AO38,'DAILY ETo'!$P$6:$P$12,0))) -> 1 | AR38: 0.522122449 | AT38: Mon | AU38: 30 | AV38: =INDEX('DAILY ETo'!$Q$6:$Q$12,(MATCH(AT38,'DAILY ETo'!$P$6:$P$12,0))) -> 0 | AW38: 0.276 | AY38: Thu | AZ38: 30 | BA38: =INDEX('DAILY ETo'!$Q$6:$Q$12,(MATCH(AY38,'DAILY ETo'!$P$6:$P$12,0))) -> 1 | BB38: 0.3209387755 | BD38: Sat | BE38: 30 | BF38: =INDEX('DAILY ETo'!$Q$6:$Q$12,(MATCH(BD38,'DAILY ETo'!$P$6:$P$12,0))) -> 1 | BG38: 0.2144081633
A39: Tue | B39: 31 | C39: =INDEX('DAILY ETo'!$Q$6:$Q$12,(MATCH(A39,'DAILY ETo'!$P$6:$P$12,0))) -> 1 | D39: 0.2834693878 | K39: Fri | L39: 31 | M39: =INDEX('DAILY ETo'!$Q$6:$Q$12,(MATCH(K39,'DAILY ETo'!$P$6:$P$12,0))) -> 0 | N39: 0.6268163265 | U39: Wed | V39: 31 | W39: =INDEX('DAILY ETo'!$Q$6:$Q$12,(MATCH(U39,'DAILY ETo'!$P$6:$P$12,0))) -> 0 | X39: 0.6669795918 | AE39: Mon | AF39: 31 | AG39: =INDEX('DAILY ETo'!$Q$6:$Q$12,(MATCH(AE39,'DAILY ETo'!$P$6:$P$12,0))) -> 0 | AH39: 0.8570204082 | AJ39: Thu | AK39: 31 | AL39: =INDEX('DAILY ETo'!$Q$6:$Q$12,(MATCH(AJ39,'DAILY ETo'!$P$6:$P$12,0))) -> 1 | AM39: 0.3347755102 | AT39: Tue | AU39: 31 | AV39: =INDEX('DAILY ETo'!$Q$6:$Q$12,(MATCH(AT39,'DAILY ETo'!$P$6:$P$12,0))) -> 1 | AW39: 0.354 | BD39: Sun | BE39: 31 | BF39: =INDEX('DAILY ETo'!$Q$6:$Q$12,(MATCH(BD39,'DAILY ETo'!$P$6:$P$12,0))) -> 0 | BG39: 0.2324081633
